Workbook

Sheet Main
B10: 2018-10-26
B12: Sheet No. | C12: Template Name | D12: Summary
B13: 1 | C13: Future Intra | D13: For Intraday trading in F&O segment
B14: 2 | C14: Cash Intra | D14: For Intraday trading in cash market segment
B15: 3 | C15: Mid-cap Intra | D15: For Intraday trading in Mid-cap stocks
B16: 4 | C16: Bulk Deals | D16: Reveals Bulk Deals carried on NSE & BSE
B17: 5 | C17: Call Tracker

Sheet Future Intra
M5: Back to Main Page
A6: FOR INTRA DAY TRADING | L6: =Main!B10 -> 2018-10-26
A9: Sr.no | B9: Sector | C9: Scrip | D9: CLOSE RATE | E9: Pivot Point | F9: Supports | I9: Resistances
B10: Sector | D10: Point | E10: Point | F10: S1 | G10: S2 | H10: S3 | I10: R1 | J10: R2 | K10: R3 | L10: HIGH | M10: LOW | N10: OI | O10: % Change in OI
A11: 1 | B11: Index | C11: BANKNIFTY | D11: 24952.85 | E11: 24956.88 | F11: 24815.97 | G11: 24679.08 | H11: 24538.17 | I11: 25093.77 | J11: 25234.68 | K11: 25371.57 | L11: 25097.8 | M11: 24820 | N11: 1697600 | O11: -10.06%
A12: 2 | B12: Index | C12: NIFTY | D12: 10174.55 | E12: 10172.38 | F12: 10124.82 | G12: 10075.08 | H12: 10027.52 | I12: 10222.12 | J12: 10269.68 | K12: 10319.42 | L12: 10219.95 | M12: 10122.65 | N12: 22024650 | O12: -16.29%
A13: 3 | B13: Index | C13: NIFTYCPSE | D13: 2419.25 | E13: 806.42 | F13: 1612.83 | G13: 806.42 | H13: 1612.83 | I13: 1612.83 | J13: 806.42 | K13: 1612.83 | L13: 0 | M13: 0 | N13: 0 | O13: 0.00%
A14: 4 | B14: Index | C14: NIFTYINFRA | D14: 3312.70 | E14: 1104.23 | F14: 2208.47 | G14: 1104.23 | H14: 2208.47 | I14: 2208.47 | J14: 1104.23 | K14: 2208.47 | L14: 0 | M14: 0 | N14: 0 | O14: 0.00%
A15: 5 | B15: Index | C15: NIFTYIT | D15: 14141.00 | E15: 14102.00 | F15: 13961.00 | G15: 13781.00 | H15: 13640.00 | I15: 14282.00 | J15: 14423.00 | K15: 14603.00 | L15: 14243 | M15: 13922 | N15: 27700 | O15: -25.03%
A16: 6 | B16: Index | C16: NIFTYMID50 | D16: 4491.50 | E16: 4491.50 | F16: 4491.50 | G16: 4491.50 | H16: 4491.50 | I16: 4491.50 | J16: 4491.50 | K16: 4491.50 | L16: 4491.5 | M16: 4491.5 | N16: 725670 | O16: -0.02%
A17: 7 | B17: Index | C17: NIFTYPSE | D17: 3770.40 | E17: 1256.80 | F17: 2513.60 | G17: 1256.80 | H17: 2513.60 | I17: 2513.60 | J17: 1256.80 | K17: 2513.60 | L17: 0 | M17: 0 | N17: 0 | O17: 0.00%
A18: 8 | B18: Cement | C18: ACC | D18: 1362.35 | E18: 1365.32 | F18: 1353.83 | G18: 1345.32 | H18: 1333.83 | I18: 1373.83 | J18: 1385.32 | K18: 1393.83 | L18: 1376.8 | M18: 1356.8 | N18: 888800 | O18: -35.01%
A19: 9 | B19: Others | C19: ADANIENT | D19: 173.50 | E19: 170.52 | F19: 165.73 | G19: 157.97 | H19: 153.18 | I19: 178.28 | J19: 183.07 | K19: 190.83 | L19: 175.3 | M19: 162.75 | N19: 33904000 | O19: -11.63%
A20: 10 | B20: Others | C20: ADANIPORTS | D20: 307.35 | E20: 307.45 | F20: 300.15 | G20: 292.95 | H20: 285.65 | I20: 314.65 | J20: 321.95 | K20: 329.15 | L20: 314.75 | M20: 300.25 | N20: 13442500 | O20: -10.29%
A21: 11 | B21: Power | C21: ADANIPOWER | D21: 33.40 | E21: 33.57 | F21: 32.98 | G21: 32.57 | H21: 31.98 | I21: 33.98 | J21: 34.57 | K21: 34.98 | L21: 34.15 | M21: 33.15 | N21: 160700000 | O21: -14.74%
A22: 12 | B22: Pharma | C22: AJANTPHARM | D22: 993.50 | E22: 997.83 | F22: 979.67 | G22: 965.83 | H22: 947.67 | I22: 1011.67 | J22: 1029.83 | K22: 1043.67 | L22: 1016 | M22: 984 | N22: 474000 | O22: -11.57%
A23: 13 | B23: Banking | C23: ALBK | D23: 37.15 | E23: 37.08 | F23: 36.52 | G23: 35.88 | H23: 35.32 | I23: 37.72 | J23: 38.28 | K23: 38.92 | L23: 37.65 | M23: 36.45 | N23: 13706000 | O23: -11.00%
A24: 14 | B24: Automobile | C24: AMARAJABAT | D24: 753.75 | E24: 744.12 | F24: 731.28 | G24: 708.82 | H24: 695.98 | I24: 766.58 | J24: 779.42 | K24: 801.88 | L24: 756.95 | M24: 721.65 | N24: 1159200 | O24: -21.33%
A25: 15 | B25: Cement | C25: AMBUJACEM | D25: 194.10 | E25: 195.15 | F25: 192.20 | G25: 190.30 | H25: 187.35 | I25: 197.05 | J25: 200.00 | K25: 201.90 | L25: 198.1 | M25: 193.25 | N25: 10522500 | O25: -24.97%
A26: 17 | B26: Others | C26: APOLLOHOSP | D26: 1115.30 | E26: 1109.57 | F26: 1084.13 | G26: 1052.97 | H26: 1027.53 | I26: 1140.73 | J26: 1166.17 | K26: 1197.33 | L26: 1135 | M26: 1078.4 | N26: 814500 | O26: -13.67%
A27: 18 | B27: Automobile | C27: APOLLOTYRE | D27: 207.25 | E27: 205.48 | F27: 202.07 | G27: 196.88 | H27: 193.47 | I27: 210.67 | J27: 214.08 | K27: 219.27 | L27: 208.9 | M27: 200.3 | N27: 7857000 | O27: -24.24%
A28: 19 | B28: Textile | C28: ARVIND | D28: 321.20 | E28: 320.20 | F28: 316.80 | G28: 312.40 | H28: 309.00 | I28: 324.60 | J28: 328.00 | K28: 332.40 | L28: 323.6 | M28: 315.8 | N28: 5002000 | O28: -26.44%
A29: 20 | B29: Automobile | C29: ASHOKLEY | D29: 113.10 | E29: 113.58 | F29: 111.12 | G29: 109.13 | H29: 106.67 | I29: 115.57 | J29: 118.03 | K29: 120.02 | L29: 116.05 | M29: 111.6 | N29: 50752000 | O29: -13.65%
A30: 21 | B30: FMCG | C30: ASIANPAINT | D30: 1199.60 | E30: 1194.65 | F30: 1180.70 | G30: 1161.80 | H30: 1147.85 | I30: 1213.55 | J30: 1227.50 | K30: 1246.40 | L30: 1208.6 | M30: 1175.75 | N30: 5015400 | O30: -20.67%
A31: 22 | B31: Pharma | C31: AUROPHARMA | D31: 723.90 | E31: 729.85 | F31: 714.70 | G31: 705.50 | H31: 690.35 | I31: 739.05 | J31: 754.20 | K31: 763.40 | L31: 745 | M31: 720.65 | N31: 18210000 | O31: -9.19%
A32: 23 | B32: Banking | C32: AXISBANK | D32: 564.40 | E32: 562.42 | F32: 557.43 | G32: 550.47 | H32: 545.48 | I32: 569.38 | J32: 574.37 | K32: 581.33 | L32: 567.4 | M32: 555.45 | N32: 37396800 | O32: -11.11%
A33: 24 | B33: Automobile | C33: BAJAJ-AUTO | D33: 2487.60 | E33: 2478.42 | F33: 2450.63 | G33: 2413.67 | H33: 2385.88 | I33: 2515.38 | J33: 2543.17 | K33: 2580.13 | L33: 2506.2 | M33: 2441.45 | N33: 2252000 | O33: -27.37%
A34: 25 | B34: Others | C34: BAJAJFINSV | D34: 5395.90 | E34: 5392.25 | F34: 5297.55 | G34: 5199.20 | H34: 5104.50 | I34: 5490.60 | J34: 5585.30 | K34: 5683.65 | L34: 5486.95 | M34: 5293.9 | N34: 729250 | O34: -16.31%
A35: 26 | B35: Finance | C35: BAJFINANCE | D35: 2342.35 | E35: 2322.62 | F35: 2289.78 | G35: 2237.22 | H35: 2204.38 | I35: 2375.18 | J35: 2408.02 | K35: 2460.58 | L35: 2355.45 | M35: 2270.05 | N35: 6683000 | O35: -21.71%
A36: 27 | B36: Others | C36: BALKRISIND | D36: 1027.45 | E36: 1029.15 | F36: 1008.30 | G36: 989.15 | H36: 968.30 | I36: 1048.30 | J36: 1069.15 | K36: 1088.30 | L36: 1050 | M36: 1010 | N36: 1528000 | O36: -13.54%
A37: 29 | B37: Banking | C37: BANKBARODA | D37: 99.20 | E37: 100.45 | F37: 97.40 | G37: 95.60 | H37: 92.55 | I37: 102.25 | J37: 105.30 | K37: 107.10 | L37: 103.5 | M37: 98.65 | N37: 74924000 | O37: -2.45%
A38: 30 | B38: Banking | C38: BANKINDIA | D38: 75.30 | E38: 75.28 | F38: 73.57 | G38: 71.83 | H38: 70.12 | I38: 77.02 | J38: 78.73 | K38: 80.47 | L38: 77 | M38: 73.55 | N38: 18948000 | O38: -9.87%
A39: 31 | B39: FMCG | C39: BATAINDIA | D39: 923.60 | E39: 907.20 | F39: 887.45 | G39: 851.30 | H39: 831.55 | I39: 943.35 | J39: 963.10 | K39: 999.25 | L39: 926.95 | M39: 871.05 | N39: 1758900 | O39: -5.33%
A40: 32 | B40: Capital_Goods | C40: BEL | D40: 83.80 | E40: 84.00 | F40: 82.20 | G40: 80.60 | H40: 78.80 | I40: 85.60 | J40: 87.40 | K40: 89.00 | L40: 85.8 | M40: 82.4 | N40: 24284700 | O40: -13.58%
A41: 33 | B41: Infrastructure | C41: BEML | D41: 545.85 | E41: 552.33 | F41: 538.02 | G41: 530.18 | H41: 515.87 | I41: 560.17 | J41: 574.48 | K41: 582.32 | L41: 566.65 | M41: 544.5 | N41: 1539500 | O41: -6.75%
A42: 34 | B42: Others | C42: BERGEPAINT | D42: 282.25 | E42: 279.25 | F42: 271.00 | G42: 259.75 | H42: 251.50 | I42: 290.50 | J42: 298.75 | K42: 310.00 | L42: 287.5 | M42: 268 | N42: 2316600 | O42: -21.42%
A43: 35 | B43: Finance | C43: BHARATFIN | D43: 910.55 | E43: 911.00 | F43: 891.00 | G43: 871.45 | H43: 851.45 | I43: 930.55 | J43: 950.55 | K43: 970.10 | L43: 931 | M43: 891.45 | N43: 7623000 | O43: -2.01%
A44: 36 | B44: Automobile | C44: BHARATFORG | D44: 549.70 | E44: 549.58 | F44: 543.17 | G44: 536.63 | H44: 530.22 | I44: 556.12 | J44: 562.53 | K44: 569.07 | L44: 556 | M44: 543.05 | N44: 6622800 | O44: -12.80%
A45: 37 | B45: Telecom | C45: BHARTIARTL | D45: 295.90 | E45: 299.53 | F45: 289.17 | G45: 282.43 | H45: 272.07 | I45: 306.27 | J45: 316.63 | K45: 323.37 | L45: 309.9 | M45: 292.8 | N45: 45039800 | O45: -13.46%
A46: 38 | B46: Capital_Goods | C46: BHEL | D46: 70.30 | E46: 72.15 | F46: 67.50 | G46: 64.70 | H46: 60.05 | I46: 74.95 | J46: 79.60 | K46: 82.40 | L46: 76.8 | M46: 69.35 | N46: 42465000 | O46: -6.26%
A47: 39 | B47: Pharma | C47: BIOCON | D47: 621.90 | E47: 630.70 | F47: 607.40 | G47: 592.90 | H47: 569.60 | I47: 645.20 | J47: 668.50 | K47: 683.00 | L47: 654 | M47: 616.2 | N47: 6000300 | O47: -4.07%
A48: 40 | B48: Automobile | C48: BOSCHLTD | D48: 19160.40 | E48: 18845.50 | F48: 18438.60 | G48: 17716.80 | H48: 17309.90 | I48: 19567.30 | J48: 19974.20 | K48: 20696.00 | L48: 19252.4 | M48: 18123.7 | N48: 121440 | O48: -4.98%
A49: 41 | B49: Oil_Gas | C49: BPCL | D49: 278.60 | E49: 279.62 | F49: 275.23 | G49: 271.87 | H49: 267.48 | I49: 282.98 | J49: 287.37 | K49: 290.73 | L49: 284 | M49: 276.25 | N49: 14540400 | O49: -20.66%
A50: 42 | B50: FMCG | C50: BRITANNIA | D50: 5345.10 | E50: 5355.23 | F50: 5272.47 | G50: 5199.83 | H50: 5117.07 | I50: 5427.87 | J50: 5510.63 | K50: 5583.27 | L50: 5438 | M50: 5282.6 | N50: 1338800 | O50: -4.25%
A51: 43 | B51: Pharma | C51: CADILAHC | D51: 342.65 | E51: 346.28 | F51: 336.57 | G51: 330.48 | H51: 320.77 | I51: 352.37 | J51: 362.08 | K51: 368.17 | L51: 356 | M51: 340.2 | N51: 8585600 | O51: -10.75%
A52: 44 | B52: Banking | C52: CANBK | D52: 213.05 | E52: 212.68 | F52: 209.27 | G52: 205.48 | H52: 202.07 | I52: 216.47 | J52: 219.88 | K52: 223.67 | L52: 216.1 | M52: 208.9 | N52: 8484000 | O52: -8.40%
A53: 45 | B53: Others | C53: CANFINHOME | D53: 258.85 | E53: 254.03 | F53: 246.82 | G53: 234.78 | H53: 227.57 | I53: 266.07 | J53: 273.28 | K53: 285.32 | L53: 261.25 | M53: 242 | N53: 4041250 | O53: -31.99%
A54: 46 | B54: Finance | C54: CAPF | D54: 463.75 | E54: 468.22 | F54: 457.53 | G54: 451.32 | H54: 440.63 | I54: 474.43 | J54: 485.12 | K54: 491.33 | L54: 478.9 | M54: 462 | N54: 5960000 | O54: -5.35%
A55: 47 | B55: Oil_Gas | C55: CASTROLIND | D55: 146.50 | E55: 145.70 | F55: 143.00 | G55: 139.50 | H55: 136.80 | I55: 149.20 | J55: 151.90 | K55: 155.40 | L55: 148.4 | M55: 142.2 | N55: 7540400 | O55: -23.93%
A56: 48 | B56: Automobile | C56: CEATLTD | D56: 1017.65 | E56: 1017.65 | F56: 995.30 | G56: 972.95 | H56: 950.60 | I56: 1040.00 | J56: 1062.35 | K56: 1084.70 | L56: 1040 | M56: 995.3 | N56: 947100 | O56: -10.96%
A57: 49 | B57: Textile | C57: CENTURYTEX | D57: 780.60 | E57: 775.95 | F57: 759.80 | G57: 739.00 | H57: 722.85 | I57: 796.75 | J57: 812.90 | K57: 833.70 | L57: 792.1 | M57: 755.15 | N57: 5867400 | O57: -2.67%
A58: 50 | B58: Power | C58: CESC | D58: 841.00 | E58: 851.13 | F58: 822.87 | G58: 804.73 | H58: 776.47 | I58: 869.27 | J58: 897.53 | K58: 915.67 | L58: 879.4 | M58: 833 | N58: 3172400 | O58: -29.71%
A59: 51 | B59: Power | C59: CGPOWER | D59: 35.85 | E59: 35.63 | F59: 35.27 | G59: 34.68 | H59: 34.32 | I59: 36.22 | J59: 36.58 | K59: 37.17 | L59: 36 | M59: 35.05 | N59: 33660000 | O59: -11.12%
A60: 52 | B60: Others | C60: CHENNPETRO | D60: 258.90 | E60: 260.75 | F60: 255.50 | G60: 252.10 | H60: 246.85 | I60: 264.15 | J60: 269.40 | K60: 272.80 | L60: 266 | M60: 257.35 | N60: 1086000 | O60: -24.11%
A61: 53 | B61: Others | C61: CHOLAFIN | D61: 1179.60 | E61: 1180.20 | F61: 1158.05 | G61: 1136.50 | H61: 1114.35 | I61: 1201.75 | J61: 1223.90 | K61: 1245.45 | L61: 1202.35 | M61: 1158.65 | N61: 572500 | O61: -28.21%
A62: 54 | B62: Pharma | C62: CIPLA | D62: 613.35 | E62: 616.33 | F62: 606.72 | G62: 600.08 | H62: 590.47 | I62: 622.97 | J62: 632.58 | K62: 639.22 | L62: 625.95 | M62: 609.7 | N62: 8544000 | O62: -24.17%
A63: 55 | B63: Others | C63: COALINDIA | D63: 283.55 | E63: 281.25 | F63: 277.80 | G63: 272.05 | H63: 268.60 | I63: 287.00 | J63: 290.45 | K63: 296.20 | L63: 284.7 | M63: 275.5 | N63: 14484800 | O63: -23.32%
A64: 56 | B64: FMCG | C64: COLPAL | D64: 1106.65 | E64: 1110.52 | F64: 1094.68 | G64: 1082.72 | H64: 1066.88 | I64: 1122.48 | J64: 1138.32 | K64: 1150.28 | L64: 1126.35 | M64: 1098.55 | N64: 1446200 | O64: -14.24%
A65: 57 | B65: Others | C65: CONCOR | D65: 554.20 | E65: 554.33 | F65: 545.67 | G65: 537.13 | H65: 528.47 | I65: 562.87 | J65: 571.53 | K65: 580.07 | L65: 563 | M65: 545.8 | N65: 2237500 | O65: -53.26%
A66: 58 | B66: Capital_Goods | C66: CUMMINSIND | D66: 677.00 | E66: 677.53 | F66: 668.47 | G66: 659.93 | H66: 650.87 | I66: 686.07 | J66: 695.13 | K66: 703.67 | L66: 686.6 | M66: 669 | N66: 746200 | O66: -22.30%
A67: 59 | B67: FMCG | C67: DABUR | D67: 400.00 | E67: 401.67 | F67: 396.33 | G67: 392.67 | H67: 387.33 | I67: 405.33 | J67: 410.67 | K67: 414.33 | L67: 407 | M67: 398 | N67: 15740000 | O67: -5.85%
A68: 60 | B68: Cement | C68: DALMIABHA | D68: 2060.60 | E68: 2038.53 | F68: 1992.07 | G68: 1923.53 | H68: 1877.07 | I68: 2107.07 | J68: 2153.53 | K68: 2222.07 | L68: 2085 | M68: 1970 | N68: 370500 | O68: -38.19%
A69: 61 | B69: Banking | C69: DCBBANK | D69: 157.30 | E69: 156.75 | F69: 153.60 | G69: 149.90 | H69: 146.75 | I69: 160.45 | J69: 163.60 | K69: 167.30 | L69: 159.9 | M69: 153.05 | N69: 4072500 | O69: -18.76%
A70: 62 | B70: Finance | C70: DHFL | D70: 178.85 | E70: 175.52 | F70: 168.48 | G70: 158.12 | H70: 151.08 | I70: 185.88 | J70: 192.92 | K70: 203.28 | L70: 182.55 | M70: 165.15 | N70: 18123000 | O70: -15.62%
A71: 63 | B71: Media | C71: DISHTV | D71: 36.50 | E71: 39.53 | F71: 32.97 | G71: 29.43 | H71: 22.87 | I71: 43.07 | J71: 49.63 | K71: 53.17 | L71: 46.1 | M71: 36 | N71: 43336000 | O71: -4.11%
A72: 64 | B72: Pharma | C72: DIVISLAB | D72: 1257.75 | E72: 1252.60 | F72: 1238.20 | G72: 1218.65 | H72: 1204.25 | I72: 1272.15 | J72: 1286.55 | K72: 1306.10 | L72: 1267 | M72: 1233.05 | N72: 2387200 | O72: -11.82%
A73: 65 | B73: Realty | C73: DLF | D73: 155.40 | E73: 155.07 | F73: 151.88 | G73: 148.37 | H73: 145.18 | I73: 158.58 | J73: 161.77 | K73: 165.28 | L73: 158.25 | M73: 151.55 | N73: 25752500 | O73: -9.70%
A74: 66 | B74: Pharma | C74: DRREDDY | D74: 2407.10 | E74: 2423.35 | F74: 2384.95 | G74: 2362.80 | H74: 2324.40 | I74: 2445.50 | J74: 2483.90 | K74: 2506.05 | L74: 2461.75 | M74: 2401.2 | N74: 3970750 | O74: -6.73%
A75: 67 | B75: Automobile | C75: EICHERMOT | D75: 22192.00 | E75: 22222.02 | F75: 21889.98 | G75: 21587.97 | H75: 21255.93 | I75: 22524.03 | J75: 22856.07 | K75: 23158.08 | L75: 22554.05 | M75: 21920 | N75: 275450 | O75: -15.47%
A76: 68 | B76: Infrastructure | C76: ENGINERSIN | D76: 113.10 | E76: 113.35 | F76: 112.15 | G76: 111.20 | H76: 110.00 | I76: 114.30 | J76: 115.50 | K76: 116.45 | L76: 114.55 | M76: 112.4 | N76: 6461000 | O76: -38.22%
A77: 69 | B77: Finance | C77: EQUITAS | D77: 128.80 | E77: 126.73 | F77: 124.07 | G77: 119.33 | H77: 116.67 | I77: 131.47 | J77: 134.13 | K77: 138.87 | L77: 129.4 | M77: 122 | N77: 9180000 | O77: -11.12%
A78: 70 | B78: Automobile | C78: ESCORTS | D78: 574.05 | E78: 576.70 | F78: 564.45 | G78: 554.85 | H78: 542.60 | I78: 586.30 | J78: 598.55 | K78: 608.15 | L78: 588.95 | M78: 567.1 | N78: 4065600 | O78: -7.11%
A79: 71 | B79: Automobile | C79: EXIDEIND | D79: 255.30 | E79: 253.82 | F79: 250.98 | G79: 246.67 | H79: 243.83 | I79: 258.13 | J79: 260.97 | K79: 265.28 | L79: 256.65 | M79: 249.5 | N79: 4896000 | O79: -23.69%
A80: 72 | B80: Banking | C80: FEDERALBNK | D80: 80.90 | E80: 80.88 | F80: 79.67 | G80: 78.43 | H80: 77.22 | I80: 82.12 | J80: 83.33 | K80: 84.57 | L80: 82.1 | M80: 79.65 | N80: 43538000 | O80: -15.19%
A81: 73 | B81: Oil_Gas | C81: GAIL | D81: 342.50 | E81: 342.20 | F81: 337.30 | G81: 332.10 | H81: 327.20 | I81: 347.40 | J81: 352.30 | K81: 357.50 | L81: 347.1 | M81: 337 | N81: 20149185 | O81: -21.61%
A82: 74 | B82: Pharma | C82: GLENMARK | D82: 615.15 | E82: 615.85 | F82: 603.70 | G82: 592.25 | H82: 580.10 | I82: 627.30 | J82: 639.45 | K82: 650.90 | L82: 628 | M82: 604.4 | N82: 3711000 | O82: -11.58%
A83: 75 | B83: Infrastructure | C83: GMRINFRA | D83: 15.80 | E83: 15.92 | F83: 15.43 | G83: 15.07 | H83: 14.58 | I83: 16.28 | J83: 16.77 | K83: 17.13 | L83: 16.4 | M83: 15.55 | N83: 170280000 | O83: -18.90%
A84: 76 | B84: Others | C84: GODFRYPHLP | D84: 721.40 | E84: 718.43 | F84: 706.02 | G84: 690.63 | H84: 678.22 | I84: 733.82 | J84: 746.23 | K84: 761.62 | L84: 730.85 | M84: 703.05 | N84: 472500 | O84: -13.35%
A85: 77 | B85: FMCG | C85: GODREJCP | D85: 705.35 | E85: 710.12 | F85: 687.23 | G85: 669.12 | H85: 646.23 | I85: 728.23 | J85: 751.12 | K85: 769.23 | L85: 733 | M85: 692 | N85: 4312800 | O85: -8.78%
A86: 78 | B86: FMCG | C86: GODREJIND | D86: 450.90 | E86: 448.28 | F86: 438.22 | G86: 425.53 | H86: 415.47 | I86: 460.97 | J86: 471.03 | K86: 483.72 | L86: 458.35 | M86: 435.6 | N86: 2271000 | O86: -6.66%
A87: 79 | B87: Pharma | C87: GRANULES | D87: 92.30 | E87: 93.25 | F87: 90.50 | G87: 88.70 | H87: 85.95 | I87: 95.05 | J87: 97.80 | K87: 99.60 | L87: 96 | M87: 91.45 | N87: 12930000 | O87: -8.17%
A88: 80 | B88: Cement | C88: GRASIM | D88: 790.10 | E88: 793.40 | F88: 781.80 | G88: 773.50 | H88: 761.90 | I88: 801.70 | J88: 813.30 | K88: 821.60 | L88: 805 | M88: 785.1 | N88: 5706000 | O88: -0.07%
A89: 81 | B89: Others | C89: GSFC | D89: 93.95 | E89: 94.63 | F89: 92.87 | G89: 91.78 | H89: 90.02 | I89: 95.72 | J89: 97.48 | K89: 98.57 | L89: 96.4 | M89: 93.55 | N89: 13018500 | O89: -6.92%
A90: 82 | B90: Others | C90: HAVELLS | D90: 603.25 | E90: 603.25 | F90: 594.65 | G90: 586.05 | H90: 577.45 | I90: 611.85 | J90: 620.45 | K90: 629.05 | L90: 611.85 | M90: 594.65 | N90: 4529000 | O90: -10.46%
A91: 83 | B91: Others | C91: HCC | D91: 12.00 | E91: 11.85 | F91: 11.65 | G91: 11.30 | H91: 11.10 | I91: 12.20 | J91: 12.40 | K91: 12.75 | L91: 12.05 | M91: 11.5 | N91: 28476000 | O91: -38.66%
A92: 84 | B92: Technology | C92: HCLTECH | D92: 1007.85 | E92: 997.17 | F92: 980.38 | G92: 952.92 | H92: 936.13 | I92: 1024.63 | J92: 1041.42 | K92: 1068.88 | L92: 1013.95 | M92: 969.7 | N92: 7404600 | O92: -13.18%
A93: 85 | B93: Finance | C93: HDFC | D93: 1704.75 | E93: 1717.25 | F93: 1684.50 | G93: 1664.25 | H93: 1631.50 | I93: 1737.50 | J93: 1770.25 | K93: 1790.50 | L93: 1750 | M93: 1697 | N93: 23973500 | O93: -4.22%
A94: 86 | B94: Banking | C94: HDFCBANK | D94: 1982.05 | E94: 1989.97 | F94: 1967.73 | G94: 1953.42 | H94: 1931.18 | I94: 2004.28 | J94: 2026.52 | K94: 2040.83 | L94: 2012.2 | M94: 1975.65 | N94: 12872000 | O94: -5.74%
A95: 88 | B95: Automobile | C95: HEROMOTOCO | D95: 2711.20 | E95: 2699.98 | F95: 2676.97 | G95: 2642.73 | H95: 2619.72 | I95: 2734.22 | J95: 2757.23 | K95: 2791.47 | L95: 2723 | M95: 2665.75 | N95: 1377400 | O95: -21.91%
A96: 89 | B96: Technology | C96: HEXAWARE | D96: 331.85 | E96: 329.78 | F96: 322.07 | G96: 312.28 | H96: 304.57 | I96: 339.57 | J96: 347.28 | K96: 357.07 | L96: 337.5 | M96: 320 | N96: 5370000 | O96: -14.90%
A97: 90 | B97: Metals | C97: HINDALCO | D97: 223.90 | E97: 224.63 | F97: 219.77 | G97: 215.63 | H97: 210.77 | I97: 228.77 | J97: 233.63 | K97: 237.77 | L97: 229.5 | M97: 220.5 | N97: 31318000 | O97: -10.79%
A98: 91 | B98: Oil_Gas | C98: HINDPETRO | D98: 227.50 | E98: 230.10 | F98: 223.05 | G98: 218.60 | H98: 211.55 | I98: 234.55 | J98: 241.60 | K98: 246.05 | L98: 237.15 | M98: 225.65 | N98: 21125475 | O98: -11.58%
A99: 92 | B99: FMCG | C99: HINDUNILVR | D99: 1582.60 | E99: 1581.87 | F99: 1563.73 | G99: 1544.87 | H99: 1526.73 | I99: 1600.73 | J99: 1618.87 | K99: 1637.73 | L99: 1600 | M99: 1563 | N99: 7852200 | O99: -22.12%
A100: 93 | B100: Metals | C100: HINDZINC | D100: 272.25 | E100: 274.65 | F100: 268.55 | G100: 264.85 | H100: 258.75 | I100: 278.35 | J100: 284.45 | K100: 288.15 | L100: 280.75 | M100: 270.95 | N100: 6860800 | O100: -42.52%
A101: 94 | B101: Finance | C101: IBULHSGFIN | D101: 693.90 | E101: 704.45 | F101: 676.45 | G101: 659.00 | H101: 631.00 | I101: 721.90 | J101: 749.90 | K101: 767.35 | L101: 732.45 | M101: 687 | N101: 17389000 | O101: -14.19%
A102: 95 | B102: Banking | C102: ICICIBANK | D102: 319.80 | E102: 318.88 | F102: 313.92 | G102: 308.03 | H102: 303.07 | I102: 324.77 | J102: 329.73 | K102: 335.62 | L102: 323.85 | M102: 313 | N102: 93005000 | O102: -14.43%
A103: 96 | B103: Others | C103: ICICIPRULI | D103: 317.80 | E103: 317.37 | F103: 314.43 | G103: 311.07 | H103: 308.13 | I103: 320.73 | J103: 323.67 | K103: 327.03 | L103: 320.3 | M103: 314 | N103: 3996200 | O103: -15.55%
A104: 97 | B104: Banking | C104: IDBI | D104: 59.30 | E104: 59.37 | F104: 58.93 | G104: 58.57 | H104: 58.13 | I104: 59.73 | J104: 60.17 | K104: 60.53 | L104: 59.8 | M104: 59 | N104: 38110000 | O104: -29.29%
A105: 98 | B105: Telecom | C105: IDEA | D105: 37.50 | E105: 36.93 | F105: 35.42 | G105: 33.33 | H105: 31.82 | I105: 39.02 | J105: 40.53 | K105: 42.62 | L105: 38.45 | M105: 34.85 | N105: 134064000 | O105: -18.69%
A106: 99 | B106: Finance | C106: IDFC | D106: 35.50 | E106: 35.80 | F106: 34.90 | G106: 34.30 | H106: 33.40 | I106: 36.40 | J106: 37.30 | K106: 37.90 | L106: 36.7 | M106: 35.2 | N106: 109388400 | O106: -16.38%
A107: 100 | B107: Banking | C107: IDFCBANK | D107: 34.30 | E107: 34.68 | F107: 33.77 | G107: 33.23 | H107: 32.32 | I107: 35.22 | J107: 36.13 | K107: 36.67 | L107: 35.6 | M107: 34.15 | N107: 114939000 | O107: -20.15%
A108: 101 | B108: Finance | C108: IFCI | D108: 12.80 | E108: 12.83 | F108: 12.67 | G108: 12.53 | H108: 12.37 | I108: 12.97 | J108: 13.13 | K108: 13.27 | L108: 13 | M108: 12.7 | N108: 51225000 | O108: -30.42%
A109: 102 | B109: Oil_Gas | C109: IGL | D109: 255.20 | E109: 253.50 | F109: 249.90 | G109: 244.60 | H109: 241.00 | I109: 258.80 | J109: 262.40 | K109: 267.70 | L109: 257.1 | M109: 248.2 | N109: 2125750 | O109: -32.37%
A110: 103 | B110: Cement | C110: INDIACEM | D110: 82.10 | E110: 82.73 | F110: 80.97 | G110: 79.83 | H110: 78.07 | I110: 83.87 | J110: 85.63 | K110: 86.77 | L110: 84.5 | M110: 81.6 | N110: 18305000 | O110: -7.50%
A111: 104 | B111: Banking | C111: INDIANB | D111: 219.65 | E111: 219.12 | F111: 214.73 | G111: 209.82 | H111: 205.43 | I111: 224.03 | J111: 228.42 | K111: 233.33 | L111: 223.5 | M111: 214.2 | N111: 4662000 | O111: -4.23%
A112: 105 | B112: Others | C112: INDIGO | D112: 873.80 | E112: 849.18 | F112: 813.67 | G112: 753.53 | H112: 718.02 | I112: 909.32 | J112: 944.83 | K112: 1004.97 | L112: 884.7 | M112: 789.05 | N112: 4203600 | O112: -21.09%
A113: 106 | B113: Banking | C113: INDUSINDBK | D113: 1499.85 | E113: 1504.77 | F113: 1480.08 | G113: 1460.32 | H113: 1435.63 | I113: 1524.53 | J113: 1549.22 | K113: 1568.98 | L113: 1529.45 | M113: 1485 | N113: 6562200 | O113: -18.69%
A114: 107 | B114: Technology | C114: INFIBEAM | D114: 30.70 | E114: 32.37 | F114: 28.38 | G114: 26.07 | H114: 22.08 | I114: 34.68 | J114: 38.67 | K114: 40.98 | L114: 36.35 | M114: 30.05 | N114: 13200000 | O114: -35.18%
A115: 108 | B115: Telecom | C115: INFRATEL | D115: 259.40 | E115: 259.20 | F115: 254.35 | G115: 249.30 | H115: 244.45 | I115: 264.25 | J115: 269.10 | K115: 274.15 | L115: 264.05 | M115: 254.15 | N115: 5273400 | O115: -38.34%
A116: 109 | B116: Technology | C116: INFY | D116: 652.20 | E116: 650.47 | F116: 641.38 | G116: 630.57 | H116: 621.48 | I116: 661.28 | J116: 670.37 | K116: 681.18 | L116: 659.55 | M116: 639.65 | N116: 32164800 | O116: -16.15%
A117: 110 | B117: Oil_Gas | C117: IOC | D117: 139.50 | E117: 138.60 | F117: 136.85 | G117: 134.20 | H117: 132.45 | I117: 141.25 | J117: 143.00 | K117: 145.65 | L117: 140.35 | M117: 135.95 | N117: 29283000 | O117: -12.12%
A118: 111 | B118: Infrastructure | C118: IRB | D118: 121.25 | E118: 122.38 | F118: 119.57 | G118: 117.88 | H118: 115.07 | I118: 124.07 | J118: 126.88 | K118: 128.57 | L118: 125.2 | M118: 120.7 | N118: 12647500 | O118: -15.02%
A119: 112 | B119: FMCG | C119: ITC | D119: 289.00 | E119: 288.67 | F119: 286.43 | G119: 283.87 | H119: 281.63 | I119: 291.23 | J119: 293.47 | K119: 296.03 | L119: 290.9 | M119: 286.1 | N119: 62858400 | O119: -13.07%
A120: 113 | B120: Others | C120: JETAIRWAYS | D120: 230.00 | E120: 224.95 | F120: 218.60 | G120: 207.20 | H120: 200.85 | I120: 236.35 | J120: 242.70 | K120: 254.10 | L120: 231.3 | M120: 213.55 | N120: 5428800 | O120: -8.79%
A121: 114 | B121: Metals | C121: JINDALSTEL | D121: 163.30 | E121: 163.23 | F121: 159.72 | G121: 156.13 | H121: 152.62 | I121: 166.82 | J121: 170.33 | K121: 173.92 | L121: 166.75 | M121: 159.65 | N121: 24288750 | O121: -13.08%
A122: 115 | B122: Others | C122: JISLJALEQS | D122: 65.40 | E122: 66.03 | F122: 64.37 | G122: 63.33 | H122: 61.67 | I122: 67.07 | J122: 68.73 | K122: 69.77 | L122: 67.7 | M122: 65 | N122: 33777000 | O122: -5.44%
A123: 116 | B123: Realty | C123: JPASSOCIAT | D123: 6.20 | E123: 6.22 | F123: 6.08 | G123: 5.97 | H123: 5.83 | I123: 6.33 | J123: 6.47 | K123: 6.58 | L123: 6.35 | M123: 6.1 | N123: 105332000 | O123: -29.19%
A124: 117 | B124: Metals | C124: JSWSTEEL | D124: 355.70 | E124: 352.73 | F124: 348.37 | G124: 341.03 | H124: 336.67 | I124: 360.07 | J124: 364.43 | K124: 371.77 | L124: 357.1 | M124: 345.4 | N124: 47904000 | O124: -6.19%
A125: 118 | B125: Others | C125: JUBLFOOD | D125: 1081.10 | E125: 1107.43 | F125: 1046.62 | G125: 1012.13 | H125: 951.32 | I125: 1141.92 | J125: 1202.73 | K125: 1237.22 | L125: 1168.25 | M125: 1072.95 | N125: 3067500 | O125: -3.07%
A126: 119 | B126: Others | C126: JUSTDIAL | D126: 448.80 | E126: 450.20 | F126: 437.60 | G126: 426.40 | H126: 413.80 | I126: 461.40 | J126: 474.00 | K126: 485.20 | L126: 462.8 | M126: 439 | N126: 2017400 | O126: -12.83%
A127: 120 | B127: Others | C127: KAJARIACER | D127: 364.80 | E127: 353.45 | F127: 336.65 | G127: 308.50 | H127: 291.70 | I127: 381.60 | J127: 398.40 | K127: 426.55 | L127: 370.25 | M127: 325.3 | N127: 2143000 | O127: -16.29%
A128: 121 | B128: Banking | C128: KOTAKBANK | D128: 1191.10 | E128: 1186.35 | F128: 1173.80 | G128: 1156.50 | H128: 1143.95 | I128: 1203.65 | J128: 1216.20 | K128: 1233.50 | L128: 1198.9 | M128: 1169.05 | N128: 10255200 | O128: -27.54%
A129: 122 | B129: Technology | C129: KPIT | D129: 210.60 | E129: 209.98 | F129: 204.97 | G129: 199.33 | H129: 194.32 | I129: 215.62 | J129: 220.63 | K129: 226.27 | L129: 215 | M129: 204.35 | N129: 8595000 | O129: -16.34%
A130: 123 | B130: Others | C130: KSCL | D130: 474.20 | E130: 470.63 | F130: 463.57 | G130: 452.93 | H130: 445.87 | I130: 481.27 | J130: 488.33 | K130: 498.97 | L130: 477.7 | M130: 460 | N130: 793500 | O130: -29.56%
A131: 124 | B131: Banking | C131: KTKBANK | D131: 95.45 | E131: 95.35 | F131: 93.80 | G131: 92.15 | H131: 90.60 | I131: 97.00 | J131: 98.55 | K131: 100.20 | L131: 96.9 | M131: 93.7 | N131: 16623000 | O131: -8.99%
A132: 125 | B132: Finance | C132: L&TFH | D132: 117.45 | E132: 117.62 | F132: 112.58 | G132: 107.72 | H132: 102.68 | I132: 122.48 | J132: 127.52 | K132: 132.38 | L132: 122.65 | M132: 112.75 | N132: 28552500 | O132: -14.96%
A133: 126 | B133: Finance | C133: LICHSGFIN | D133: 411.80 | E133: 409.67 | F133: 406.03 | G133: 400.27 | H133: 396.63 | I133: 415.43 | J133: 419.07 | K133: 424.83 | L133: 413.3 | M133: 403.9 | N133: 9213600 | O133: -11.39%
A134: 127 | B134: Capital_Goods | C134: LT | D134: 1210.20 | E134: 1210.98 | F134: 1200.22 | G134: 1190.23 | H134: 1179.47 | I134: 1220.97 | J134: 1231.73 | K134: 1241.72 | L134: 1221.75 | M134: 1201 | N134: 10524750 | O134: -19.44%
A135: 128 | B135: Pharma | C135: LUPIN | D135: 855.45 | E135: 860.97 | F135: 846.93 | G135: 838.42 | H135: 824.38 | I135: 869.48 | J135: 883.52 | K135: 892.03 | L135: 875 | M135: 852.45 | N135: 8026900 | O135: -15.22%
A136: 129 | B136: Automobile | C136: M&M | D136: 733.45 | E136: 736.73 | F136: 726.52 | G136: 719.58 | H136: 709.37 | I136: 743.67 | J136: 753.88 | K136: 760.82 | L136: 746.95 | M136: 729.8 | N136: 17107000 | O136: -13.01%
A137: 130 | B137: Finance | C137: M&MFIN | D137: 406.00 | E137: 407.98 | F137: 397.32 | G137: 388.63 | H137: 377.97 | I137: 416.67 | J137: 427.33 | K137: 436.02 | L137: 418.65 | M137: 399.3 | N137: 9892500 | O137: -12.36%
A138: 131 | B138: Others | C138: MANAPPURAM | D138: 72.90 | E138: 72.65 | F138: 71.55 | G138: 70.20 | H138: 69.10 | I138: 74.00 | J138: 75.10 | K138: 76.45 | L138: 73.75 | M138: 71.3 | N138: 14928000 | O138: -24.86%
A139: 132 | B139: FMCG | C139: MARICO | D139: 297.65 | E139: 300.30 | F139: 293.60 | G139: 289.55 | H139: 282.85 | I139: 304.35 | J139: 311.05 | K139: 315.10 | L139: 307 | M139: 296.25 | N139: 5597800 | O139: -31.89%
A140: 133 | B140: Automobile | C140: MARUTI | D140: 6766.05 | E140: 6769.62 | F140: 6649.23 | G140: 6532.42 | H140: 6412.03 | I140: 6886.43 | J140: 7006.82 | K140: 7123.63 | L140: 6890 | M140: 6652.8 | N140: 2846175 | O140: -4.23%
A141: 134 | B141: FMCG | C141: MCDOWELL-N | D141: 537.05 | E141: 530.75 | F141: 521.50 | G141: 505.95 | H141: 496.70 | I141: 546.30 | J141: 555.55 | K141: 571.10 | L141: 540 | M141: 515.2 | N141: 11326250 | O141: -4.06%
A142: 135 | B142: Others | C142: MCX | D142: 705.10 | E142: 747.02 | F142: 659.03 | G142: 612.97 | H142: 524.98 | I142: 793.08 | J142: 881.07 | K142: 927.13 | L142: 835 | M142: 700.95 | N142: 4069100 | O142: -19.54%
A143: 136 | B143: Finance | C143: MFSL | D143: 375.05 | E143: 375.80 | F143: 370.95 | G143: 366.85 | H143: 362.00 | I143: 379.90 | J143: 384.75 | K143: 388.85 | L143: 380.65 | M143: 371.7 | N143: 2104800 | O143: -10.92%
A144: 137 | B144: Others | C144: MGL | D144: 825.10 | E144: 819.52 | F144: 809.28 | G144: 793.47 | H144: 783.23 | I144: 835.33 | J144: 845.57 | K144: 861.38 | L144: 829.75 | M144: 803.7 | N144: 1633800 | O144: -3.44%
A145: 138 | B145: Technology | C145: MINDTREE | D145: 785.10 | E145: 786.08 | F145: 769.02 | G145: 752.93 | H145: 735.87 | I145: 802.17 | J145: 819.23 | K145: 835.32 | L145: 803.15 | M145: 770 | N145: 4452000 | O145: -12.06%
A146: 139 | B146: Automobile | C146: MOTHERSUMI | D146: 233.25 | E146: 235.07 | F146: 226.68 | G146: 220.12 | H146: 211.73 | I146: 241.63 | J146: 250.02 | K146: 256.58 | L146: 243.45 | M146: 228.5 | N146: 14550400 | O146: 0.20%
A147: 140 | B147: Automobile | C147: MRF | D147: 61741.40 | E147: 61980.17 | F147: 61162.13 | G147: 60582.87 | H147: 59764.83 | I147: 62559.43 | J147: 63377.47 | K147: 63956.73 | L147: 62798.2 | M147: 61400.9 | N147: 21540 | O147: -12.40%
A148: 141 | B148: Others | C148: MRPL | D148: 83.75 | E148: 83.53 | F148: 82.47 | G148: 81.18 | H148: 80.12 | I148: 84.82 | J148: 85.88 | K148: 87.17 | L148: 84.6 | M148: 82.25 | N148: 4468500 | O148: -20.69%
A149: 142 | B149: Finance | C149: MUTHOOTFIN | D149: 389.00 | E149: 386.82 | F149: 383.13 | G149: 377.27 | H149: 373.58 | I149: 392.68 | J149: 396.37 | K149: 402.23 | L149: 390.5 | M149: 380.95 | N149: 1702500 | O149: -24.23%
A150: 143 | B150: Others | C150: NATIONALUM | D150: 66.65 | E150: 66.97 | F150: 65.88 | G150: 65.12 | H150: 64.03 | I150: 67.73 | J150: 68.82 | K150: 69.58 | L150: 68.05 | M150: 66.2 | N150: 30736000 | O150: -19.98%
A151: 144 | B151: Others | C151: NBCC | D151: 54.50 | E151: 53.98 | F151: 53.02 | G151: 51.53 | H151: 50.57 | I151: 55.47 | J151: 56.43 | K151: 57.92 | L151: 54.95 | M151: 52.5 | N151: 22578000 | O151: -26.92%
A152: 145 | B152: Infrastructure | C152: NCC | D152: 66.25 | E152: 66.80 | F152: 65.40 | G152: 64.55 | H152: 63.15 | I152: 67.65 | J152: 69.05 | K152: 69.90 | L152: 68.2 | M152: 65.95 | N152: 44864000 | O152: -11.98%
A153: 146 | B153: Others | C153: NESTLEIND | D153: 9591.80 | E153: 9585.77 | F153: 9520.03 | G153: 9448.27 | H153: 9382.53 | I153: 9657.53 | J153: 9723.27 | K153: 9795.03 | L153: 9651.5 | M153: 9514 | N153: 445000 | O153: -0.11%
A154: 147 | B154: Power | C154: NHPC | D154: 24.30 | E154: 24.27 | F154: 24.03 | G154: 23.77 | H154: 23.53 | I154: 24.53 | J154: 24.77 | K154: 25.03 | L154: 24.5 | M154: 24 | N154: 18576000 | O154: -12.24%
A155: 148 | B155: Technology | C155: NIITTECH | D155: 1189.85 | E155: 1202.27 | F155: 1170.08 | G155: 1150.32 | H155: 1118.13 | I155: 1222.03 | J155: 1254.22 | K155: 1273.98 | L155: 1234.45 | M155: 1182.5 | N155: 1348500 | O155: -24.36%
A156: 149 | B156: Metals | C156: NMDC | D156: 106.30 | E156: 107.28 | F156: 104.22 | G156: 102.13 | H156: 99.07 | I156: 109.37 | J156: 112.43 | K156: 114.52 | L156: 110.35 | M156: 105.2 | N156: 18996000 | O156: -17.44%
A157: 150 | B157: Power | C157: NTPC | D157: 162.75 | E157: 162.12 | F157: 159.13 | G157: 155.52 | H157: 152.53 | I157: 165.73 | J157: 168.72 | K157: 172.33 | L157: 165.1 | M157: 158.5 | N157: 35164000 | O157: -16.24%
A158: 151 | B158: Technology | C158: OFSS | D158: 3610.40 | E158: 3630.85 | F158: 3556.30 | G158: 3502.20 | H158: 3427.65 | I158: 3684.95 | J158: 3759.50 | K158: 3813.60 | L158: 3705.4 | M158: 3576.75 | N158: 226350 | O158: -20.03%
A159: 152 | B159: Oil_Gas | C159: OIL | D159: 197.85 | E159: 196.43 | F159: 192.07 | G159: 186.28 | H159: 181.92 | I159: 202.22 | J159: 206.58 | K159: 212.37 | L159: 200.8 | M159: 190.65 | N159: 2352108 | O159: -33.78%
A160: 153 | B160: Oil_Gas | C160: ONGC | D160: 155.65 | E160: 157.23 | F160: 151.97 | G160: 148.28 | H160: 143.02 | I160: 160.92 | J160: 166.18 | K160: 169.87 | L160: 162.5 | M160: 153.55 | N160: 33581250 | O160: -30.35%
A161: 154 | B161: Banking | C161: ORIENTBANK | D161: 67.00 | E161: 65.60 | F161: 63.45 | G161: 59.90 | H161: 57.75 | I161: 69.15 | J161: 71.30 | K161: 74.85 | L161: 67.75 | M161: 62.05 | N161: 11340000 | O161: -14.05%
A162: 155 | B162: Textile | C162: PAGEIND | D162: 28678.75 | E162: 28397.60 | F162: 27981.15 | G162: 27283.55 | H162: 26867.10 | I162: 29095.20 | J162: 29511.65 | K162: 30209.25 | L162: 28814.05 | M162: 27700 | N162: 107750 | O162: -6.81%
A163: 156 | B163: Others | C163: PCJEWELLER | D163: 48.00 | E163: 47.53 | F163: 46.07 | G163: 44.13 | H163: 42.67 | I163: 49.47 | J163: 50.93 | K163: 52.87 | L163: 49 | M163: 45.6 | N163: 9103500 | O163: -15.31%
A164: 157 | B164: Pharma | C164: PEL | D164: 1875.55 | E164: 1894.23 | F164: 1831.47 | G164: 1787.38 | H164: 1724.62 | I164: 1938.32 | J164: 2001.08 | K164: 2045.17 | L164: 1957 | M164: 1850.15 | N164: 3639402 | O164: -5.69%
A165: 158 | B165: Oil_Gas | C165: PETRONET | D165: 213.25 | E165: 212.65 | F165: 209.70 | G165: 206.15 | H165: 203.20 | I165: 216.20 | J165: 219.15 | K165: 222.70 | L165: 215.6 | M165: 209.1 | N165: 10341000 | O165: -39.10%
A166: 159 | B166: Finance | C166: PFC | D166: 83.60 | E166: 83.07 | F166: 81.63 | G166: 79.67 | H166: 78.23 | I166: 85.03 | J166: 86.47 | K166: 88.43 | L166: 84.5 | M166: 81.1 | N166: 32556000 | O166: -58.96%
A167: 160 | B167: FMCG | C167: PIDILITIND | D167: 939.70 | E167: 940.80 | F167: 927.75 | G167: 915.80 | H167: 902.75 | I167: 952.75 | J167: 965.80 | K167: 977.75 | L167: 953.85 | M167: 928.85 | N167: 2935000 | O167: -20.91%
A168: 161 | B168: Banking | C168: PNB | D168: 66.10 | E168: 66.12 | F168: 65.23 | G168: 64.37 | H168: 63.48 | I168: 66.98 | J168: 67.87 | K168: 68.73 | L168: 67 | M168: 65.25 | N168: 102360500 | O168: -11.65%
A169: 162 | B169: Power | C169: POWERGRID | D169: 192.30 | E169: 191.00 | F169: 189.20 | G169: 186.10 | H169: 184.30 | I169: 194.10 | J169: 195.90 | K169: 199.00 | L169: 192.8 | M169: 187.9 | N169: 36264000 | O169: -10.14%
A170: 163 | B170: Power | C170: PTC | D170: 76.25 | E170: 75.72 | F170: 74.33 | G170: 72.42 | H170: 71.03 | I170: 77.63 | J170: 79.02 | K170: 80.93 | L170: 77.1 | M170: 73.8 | N170: 9472000 | O170: -9.69%
A171: 164 | B171: Others | C171: PVR | D171: 1288.65 | E171: 1275.75 | F171: 1247.35 | G171: 1206.05 | H171: 1177.65 | I171: 1317.05 | J171: 1345.45 | K171: 1386.75 | L171: 1304.15 | M171: 1234.45 | N171: 1196000 | O171: 1.18%
A172: 165 | B172: Cement | C172: RAMCOCEM | D172: 567.60 | E172: 563.38 | F172: 552.37 | G172: 537.13 | H172: 526.12 | I172: 578.62 | J172: 589.63 | K172: 604.87 | L172: 574.4 | M172: 548.15 | N172: 704000 | O172: -28.22%
A173: 166 | B173: Others | C173: RAYMOND | D173: 622.20 | E173: 628.32 | F173: 612.63 | G173: 603.07 | H173: 587.38 | I173: 637.88 | J173: 653.57 | K173: 663.13 | L173: 644 | M173: 618.75 | N173: 4344000 | O173: -5.93%
A174: 167 | B174: Banking | C174: RBLBANK | D174: 495.65 | E174: 491.25 | F174: 483.85 | G174: 472.05 | H174: 464.65 | I174: 503.05 | J174: 510.45 | K174: 522.25 | L174: 498.65 | M174: 479.45 | N174: 7172400 | O174: -12.24%
A175: 168 | B175: Telecom | C175: RCOM | D175: 10.40 | E175: 10.57 | F175: 10.18 | G175: 9.97 | H175: 9.58 | I175: 10.78 | J175: 11.17 | K175: 11.38 | L175: 10.95 | M175: 10.35 | N175: 83720000 | O175: -27.16%
A176: 169 | B176: Power | C176: RECLTD | D176: 107.45 | E176: 108.10 | F176: 105.55 | G176: 103.65 | H176: 101.10 | I176: 110.00 | J176: 112.55 | K176: 114.45 | L176: 110.65 | M176: 106.2 | N176: 34218000 | O176: -11.29%
A177: 170 | B177: Finance | C177: RELCAPITAL | D177: 235.00 | E177: 236.00 | F177: 231.20 | G177: 227.40 | H177: 222.60 | I177: 239.80 | J177: 244.60 | K177: 248.40 | L177: 240.8 | M177: 232.2 | N177: 10758000 | O177: -6.74%
A178: 171 | B178: Oil_Gas | C178: RELIANCE | D178: 1037.00 | E178: 1035.97 | F178: 1024.53 | G178: 1012.07 | H178: 1000.63 | I178: 1048.43 | J178: 1059.87 | K178: 1072.33 | L178: 1047.4 | M178: 1023.5 | N178: 46180000 | O178: -12.39%
A179: 172 | B179: Power | C179: RELINFRA | D179: 342.70 | E179: 342.33 | F179: 336.62 | G179: 330.53 | H179: 324.82 | I179: 348.42 | J179: 354.13 | K179: 360.22 | L179: 348.05 | M179: 336.25 | N179: 6266000 | O179: -20.49%
A180: 173 | B180: Others | C180: REPCOHOME | D180: 343.55 | E180: 340.50 | F180: 335.25 | G180: 326.95 | H180: 321.70 | I180: 348.80 | J180: 354.05 | K180: 362.35 | L180: 345.75 | M180: 332.2 | N180: 583200 | O180: -33.13%
A181: 174 | B181: Power | C181: RPOWER | D181: 27.95 | E181: 27.87 | F181: 27.08 | G181: 26.22 | H181: 25.43 | I181: 28.73 | J181: 29.52 | K181: 30.38 | L181: 28.65 | M181: 27 | N181: 43004000 | O181: -32.67%
A182: 175 | B182: Metals | C182: SAIL | D182: 63.30 | E182: 63.80 | F182: 62.30 | G182: 61.30 | H182: 59.80 | I182: 64.80 | J182: 66.30 | K182: 67.30 | L182: 65.3 | M182: 62.8 | N182: 67956000 | O182: -10.47%
A183: 176 | B183: Banking | C183: SBIN | D183: 251.35 | E183: 252.70 | F183: 248.70 | G183: 246.05 | H183: 242.05 | I183: 255.35 | J183: 259.35 | K183: 262.00 | L183: 256.7 | M183: 250.05 | N183: 91716000 | O183: -13.87%
A184: 177 | B184: Cement | C184: SHREECEM | D184: 13623.85 | E184: 13628.87 | F184: 13457.78 | G184: 13291.72 | H184: 13120.63 | I184: 13794.93 | J184: 13966.02 | K184: 14132.08 | L184: 13799.95 | M184: 13462.8 | N184: 107100 | O184: -5.01%
A185: 178 | B185: Capital_Goods | C185: SIEMENS | D185: 881.00 | E185: 880.55 | F185: 869.10 | G185: 857.20 | H185: 845.75 | I185: 892.45 | J185: 903.90 | K185: 915.80 | L185: 892 | M185: 868.65 | N185: 1121000 | O185: -8.60%
A186: 179 | B186: Banking | C186: SOUTHBANK | D186: 13.40 | E186: 13.57 | F186: 13.18 | G186: 12.97 | H186: 12.58 | I186: 13.78 | J186: 14.17 | K186: 14.38 | L186: 13.95 | M186: 13.35 | N186: 125206698 | O186: -19.03%
A187: 180 | B187: Others | C187: SREINFRA | D187: 29.80 | E187: 29.85 | F187: 29.05 | G187: 28.30 | H187: 27.50 | I187: 30.60 | J187: 31.40 | K187: 32.15 | L187: 30.65 | M187: 29.1 | N187: 11760000 | O187: -22.83%
A188: 181 | B188: Textile | C188: SRF | D188: 1748.65 | E188: 1734.82 | F188: 1711.68 | G188: 1674.72 | H188: 1651.58 | I188: 1771.78 | J188: 1794.92 | K188: 1831.88 | L188: 1757.95 | M188: 1697.85 | N188: 633500 | O188: -10.71%
A189: 182 | B189: Finance | C189: SRTRANSFIN | D189: 1083.65 | E189: 1066.67 | F189: 1041.98 | G189: 1000.32 | H189: 975.63 | I189: 1108.33 | J189: 1133.02 | K189: 1174.68 | L189: 1091.35 | M189: 1025 | N189: 3778800 | O189: -6.07%
A190: 183 | B190: Pharma | C190: STAR | D190: 396.05 | E190: 399.90 | F190: 389.80 | G190: 383.55 | H190: 373.45 | I190: 406.15 | J190: 416.25 | K190: 422.50 | L190: 410 | M190: 393.65 | N190: 3838400 | O190: -8.49%
A191: 184 | B191: Pharma | C191: SUNPHARMA | D191: 560.30 | E191: 563.67 | F191: 552.08 | G191: 543.87 | H191: 532.28 | I191: 571.88 | J191: 583.47 | K191: 591.68 | L191: 575.25 | M191: 555.45 | N191: 29883700 | O191: -8.20%
A192: 185 | B192: Media | C192: SUNTV | D192: 618.05 | E192: 625.35 | F192: 607.05 | G192: 596.05 | H192: 577.75 | I192: 636.35 | J192: 654.65 | K192: 665.65 | L192: 643.65 | M192: 614.35 | N192: 6397000 | O192: -6.33%
A193: 186 | B193: Power | C193: SUZLON | D193: 6.10 | E193: 6.07 | F193: 5.93 | G193: 5.77 | H193: 5.63 | I193: 6.23 | J193: 6.37 | K193: 6.53 | L193: 6.2 | M193: 5.9 | N193: 277155000 | O193: -29.90%
A194: 187 | B194: Banking | C194: SYNDIBANK | D194: 31.50 | E194: 31.52 | F194: 30.98 | G194: 30.47 | H194: 29.93 | I194: 32.03 | J194: 32.57 | K194: 33.08 | L194: 32.05 | M194: 31 | N194: 23562000 | O194: -14.89%
A195: 188 | B195: Fertilisers | C195: TATACHEM | D195: 670.20 | E195: 670.00 | F195: 658.20 | G195: 646.20 | H195: 634.40 | I195: 682.00 | J195: 693.80 | K195: 705.80 | L195: 681.8 | M195: 658 | N195: 2328000 | O195: -18.06%
A196: 189 | B196: Telecom | C196: TATACOMM | D196: 449.90 | E196: 451.60 | F196: 443.15 | G196: 436.40 | H196: 427.95 | I196: 458.35 | J196: 466.80 | K196: 473.55 | L196: 460.05 | M196: 444.85 | N196: 2835200 | O196: -9.68%
A197: 190 | B197: Technology | C197: TATAELXSI | D197: 961.55 | E197: 963.52 | F197: 954.03 | G197: 946.52 | H197: 937.03 | I197: 971.03 | J197: 980.52 | K197: 988.03 | L197: 973 | M197: 956 | N197: 1536000 | O197: -14.78%
A198: 191 | B198: FMCG | C198: TATAGLOBAL | D198: 223.70 | E198: 222.43 | F198: 219.02 | G198: 214.33 | H198: 210.92 | I198: 227.12 | J198: 230.53 | K198: 235.22 | L198: 225.85 | M198: 217.75 | N198: 8901000 | O198: -18.98%
A199: 192 | B199: Automobile | C199: TATAMOTORS | D199: 166.50 | E199: 167.72 | F199: 164.43 | G199: 162.37 | H199: 159.08 | I199: 169.78 | J199: 173.07 | K199: 175.13 | L199: 171 | M199: 165.65 | N199: 63505500 | O199: -9.58%
A200: 193 | B200: Automobile | C200: TATAMTRDVR | D200: 91.85 | E200: 92.35 | F200: 90.90 | G200: 89.95 | H200: 88.50 | I200: 93.30 | J200: 94.75 | K200: 95.70 | L200: 93.8 | M200: 91.4 | N200: 26185600 | O200: -10.31%
A201: 194 | B201: Power | C201: TATAPOWER | D201: 69.55 | E201: 69.35 | F201: 68.20 | G201: 66.85 | H201: 65.70 | I201: 70.70 | J201: 71.85 | K201: 73.20 | L201: 70.5 | M201: 68 | N201: 39708000 | O201: -17.49%
A202: 195 | B202: Metals | C202: TATASTEEL | D202: 549.10 | E202: 547.73 | F202: 543.47 | G202: 537.83 | H202: 533.57 | I202: 553.37 | J202: 557.63 | K202: 563.27 | L202: 552 | M202: 542.1 | N202: 28804028 | O202: -9.88%
A203: 196 | B203: Technology | C203: TCS | D203: 1862.90 | E203: 1861.23 | F203: 1837.02 | G203: 1811.13 | H203: 1786.92 | I203: 1887.12 | J203: 1911.33 | K203: 1937.22 | L203: 1885.45 | M203: 1835.35 | N203: 8900000 | O203: -14.73%
A204: 197 | B204: Technology | C204: TECHM | D204: 655.95 | E204: 659.83 | F204: 649.22 | G204: 642.48 | H204: 631.87 | I204: 666.57 | J204: 677.18 | K204: 683.92 | L204: 670.45 | M204: 653.1 | N204: 14068800 | O204: -8.00%
A205: 198 | B205: FMCG | C205: TITAN | D205: 796.05 | E205: 792.62 | F205: 785.63 | G205: 775.22 | H205: 768.23 | I205: 803.03 | J205: 810.02 | K205: 820.43 | L205: 799.6 | M205: 782.2 | N205: 14167500 | O205: -10.67%
A206: 199 | B206: Pharma | C206: TORNTPHARM | D206: 1586.15 | E206: 1587.55 | F206: 1569.35 | G206: 1552.55 | H206: 1534.35 | I206: 1604.35 | J206: 1622.55 | K206: 1639.35 | L206: 1605.75 | M206: 1570.75 | N206: 451500 | O206: -24.12%
... 33 more rows

Sheet Cash Intra
M5: Back to Main Page
A6: FOR INTRA DAY TRADING | K6: =Main!B10 -> 2018-10-26
A8: Sr.no | B8: Scrip | C8: CLOSE RATE | D8: Pivot Point | E8: Supports | H8: Resistances
C9: Point | E9: S1 | F9: S2 | G9: S3 | H9: R1 | I9: R2 | J9: R3 | K9: HIGH | L9: LOW | M9: Total Trade Quanity in Lakhs
A10: 1 | B10: Nifty 50 | C10: 10124.9 | D10: 10123.60 | E10: 10080.60 | F10: 10036.30 | G10: 9993.30 | H10: 10167.90 | I10: 10210.90 | J10: 10255.20 | K10: 10166.6 | L10: 10079.3
A11: 2 | B11: Nifty Bank | C11: 24817.45 | D11: 24830.55 | E11: 24683.75 | F11: 24550.05 | G11: 24403.25 | H11: 24964.25 | I11: 25111.05 | J11: 25244.75 | K11: 24977.35 | L11: 24696.85
A12: 3 | B12: Nifty CPSE | C12: 2152.95 | D12: 2149.47 | E12: 2129.88 | F12: 2106.82 | G12: 2087.23 | H12: 2172.53 | I12: 2192.12 | J12: 2215.18 | K12: 2169.05 | L12: 2126.4
A13: 4 | B13: Nifty Infra | C13: 2851.65 | D13: 2852.87 | E13: 2837.48 | F13: 2823.32 | G13: 2807.93 | H13: 2867.03 | I13: 2882.42 | J13: 2896.58 | K13: 2868.25 | L13: 2838.7
A14: 5 | B14: Nifty IT | C14: 14070.8 | D14: 14038.13 | E14: 13896.57 | F14: 13722.33 | G14: 13580.77 | H14: 14212.37 | I14: 14353.93 | J14: 14528.17 | K14: 14179.7 | L14: 13863.9
A15: 6 | B15: Nifty PSE | C15: 3359.95 | D15: 3359.83 | E15: 3342.42 | F15: 3324.88 | G15: 3307.47 | H15: 3377.37 | I15: 3394.78 | J15: 3412.32 | K15: 3377.25 | L15: 3342.3
A16: 7 | B16: Nifty Midcap 50 | C16: 4462.35 | D16: 4455.95 | E16: 4416.65 | F16: 4370.95 | G16: 4331.65 | H16: 4501.65 | I16: 4540.95 | J16: 4586.65 | K16: 4495.25 | L16: 4410.25
A17: 8 | B17: ABB | C17: 1219.9 | D17: 1221.32 | E17: 1203.68 | F17: 1187.47 | G17: 1169.83 | H17: 1237.53 | I17: 1255.17 | J17: 1271.38 | K17: 1238.95 | L17: 1205.1 | M17: 0.24711
A18: 9 | B18: ACC | C18: 1367.6 | D18: 1368.40 | E18: 1356.90 | F18: 1346.20 | G18: 1334.70 | H18: 1379.10 | I18: 1390.60 | J18: 1401.30 | K18: 1379.9 | L18: 1357.7 | M18: 7.25333
A19: 10 | B19: AIAENG | C19: 1628.2 | D19: 1602.70 | E19: 1575.40 | F19: 1522.60 | G19: 1495.30 | H19: 1655.50 | I19: 1682.80 | J19: 1735.60 | K19: 1630 | L19: 1549.9 | M19: 0.3651
A20: 11 | B20: AUBANK | C20: 531.15 | D20: 526.17 | E20: 517.33 | F20: 503.52 | G20: 494.68 | H20: 539.98 | I20: 548.82 | J20: 562.63 | K20: 535 | L20: 512.35 | M20: 1.93086
A21: 12 | B21: ADANIENT | C21: 172.1 | D21: 169.33 | E21: 164.27 | F21: 156.43 | G21: 151.37 | H21: 177.17 | I21: 182.23 | J21: 190.07 | K21: 174.4 | L21: 161.5 | M21: 74.60591
A22: 13 | B22: ADANIPORTS | C22: 305.6 | D22: 305.73 | E22: 298.57 | F22: 291.53 | G22: 284.37 | H22: 312.77 | I22: 319.93 | J22: 326.97 | K22: 312.9 | L22: 298.7 | M22: 45.84103
A23: 14 | B23: ADANIPOWER | C23: 33 | D23: 33.12 | E23: 32.53 | F23: 32.07 | G23: 31.48 | H23: 33.58 | I23: 34.17 | J23: 34.63 | K23: 33.7 | L23: 32.65 | M23: 152.07295
A24: 15 | B24: ABFRL | C24: 173.8 | D24: 173.23 | E24: 171.67 | F24: 169.53 | G24: 167.97 | H24: 175.37 | I24: 176.93 | J24: 179.07 | K24: 174.8 | L24: 171.1 | M24: 2.24686
A25: 16 | B25: AJANTPHARM | C25: 995.45 | D25: 998.48 | E25: 976.97 | F25: 958.48 | G25: 936.97 | H25: 1016.97 | I25: 1038.48 | J25: 1056.97 | K25: 1020 | L25: 980 | M25: 3.30154
A26: 17 | B26: ALKEM | C26: 1949.45 | D26: 1948.82 | E26: 1923.63 | F26: 1897.82 | G26: 1872.63 | H26: 1974.63 | I26: 1999.82 | J26: 2025.63 | K26: 1974 | L26: 1923 | M26: 0.33714
A27: 18 | B27: AMARAJABAT | C27: 772.3 | D27: 761.42 | E27: 739.88 | F27: 707.47 | G27: 685.93 | H27: 793.83 | I27: 815.37 | J27: 847.78 | K27: 782.95 | L27: 729 | M27: 4.26134
A28: 19 | B28: AMBUJACEM | C28: 192.55 | D28: 193.93 | E28: 190.42 | F28: 188.28 | G28: 184.77 | H28: 196.07 | I28: 199.58 | J28: 201.72 | K28: 197.45 | L28: 191.8 | M28: 71.80208
A29: 20 | B29: APOLLOHOSP | C29: 1109.6 | D29: 1113.97 | E29: 1067.33 | F29: 1025.07 | G29: 978.43 | H29: 1156.23 | I29: 1202.87 | J29: 1245.13 | K29: 1160.6 | L29: 1071.7 | M29: 7.59796
A30: 21 | B30: APOLLOTYRE | C30: 207.05 | D30: 205.03 | E30: 201.22 | F30: 195.38 | G30: 191.57 | H30: 210.87 | I30: 214.68 | J30: 220.52 | K30: 208.85 | L30: 199.2 | M30: 30.4327
A31: 22 | B31: ARVIND | C31: 319.25 | D31: 318.88 | E31: 315.02 | F31: 310.78 | G31: 306.92 | H31: 323.12 | I31: 326.98 | J31: 331.22 | K31: 322.75 | L31: 314.65 | M31: 18.82028
A32: 23 | B32: ASHOKLEY | C32: 112.85 | D32: 113.23 | E32: 111.07 | F32: 109.28 | G32: 107.12 | H32: 115.02 | I32: 117.18 | J32: 118.97 | K32: 115.4 | L32: 111.45 | M32: 168.084
A33: 24 | B33: ASIANPAINT | C33: 1200.05 | D33: 1194.67 | E33: 1180.38 | F33: 1160.72 | G33: 1146.43 | H33: 1214.33 | I33: 1228.62 | J33: 1248.28 | K33: 1208.95 | L33: 1175 | M33: 19.95349
A34: 25 | B34: AUROPHARMA | C34: 720.95 | D34: 726.88 | E34: 711.77 | F34: 702.58 | G34: 687.47 | H34: 736.07 | I34: 751.18 | J34: 760.37 | K34: 742 | L34: 717.7 | M34: 40.89242
A35: 26 | B35: DMART | C35: 1187.1 | D35: 1179.73 | E35: 1150.47 | F35: 1113.83 | G35: 1084.57 | H35: 1216.37 | I35: 1245.63 | J35: 1282.27 | K35: 1209 | L35: 1143.1 | M35: 6.98215
A36: 27 | B36: AXISBANK | C36: 561.05 | D36: 559.40 | E36: 554.10 | F36: 547.15 | G36: 541.85 | H36: 566.35 | I36: 571.65 | J36: 578.60 | K36: 564.7 | L36: 552.45 | M36: 130.4186
A37: 28 | B37: BAJAJ-AUTO | C37: 2477.55 | D37: 2465.42 | E37: 2432.13 | F37: 2386.72 | G37: 2353.43 | H37: 2510.83 | I37: 2544.12 | J37: 2589.53 | K37: 2498.7 | L37: 2420 | M37: 9.13688
A38: 29 | B38: BAJFINANCE | C38: 2335 | D38: 2313.27 | E38: 2278.53 | F38: 2222.07 | G38: 2187.33 | H38: 2369.73 | I38: 2404.47 | J38: 2460.93 | K38: 2348 | L38: 2256.8 | M38: 52.01159
A39: 30 | B39: BAJAJFINSV | C39: 5367.65 | D39: 5362.32 | E39: 5262.58 | F39: 5157.52 | G39: 5057.78 | H39: 5467.38 | I39: 5567.12 | J39: 5672.18 | K39: 5462.05 | L39: 5257.25 | M39: 3.45421
A40: 31 | B40: BALKRISIND | C40: 1022 | D40: 1023.72 | E40: 1000.43 | F40: 978.87 | G40: 955.58 | H40: 1045.28 | I40: 1068.57 | J40: 1090.13 | K40: 1047 | L40: 1002.15 | M40: 3.14395
A41: 32 | B41: BANKBARODA | C41: 98.45 | D41: 99.72 | E41: 96.63 | F41: 94.82 | G41: 91.73 | H41: 101.53 | I41: 104.62 | J41: 106.43 | K41: 102.8 | L41: 97.9 | M41: 176.53402
A42: 33 | B42: BANKINDIA | C42: 74.9 | D42: 74.90 | E42: 73.20 | F42: 71.50 | G42: 69.80 | H42: 76.60 | I42: 78.30 | J42: 80.00 | K42: 76.6 | L42: 73.2 | M42: 61.55722
A43: 34 | B43: BATAINDIA | C43: 923.15 | D43: 906.20 | E43: 880.45 | F43: 837.75 | G43: 812.00 | H43: 948.90 | I43: 974.65 | J43: 1017.35 | K43: 931.95 | L43: 863.5 | M43: 26.83269
A44: 35 | B44: BERGEPAINT | C44: 290.95 | D44: 286.98 | E44: 277.97 | F44: 264.98 | G44: 255.97 | H44: 299.97 | I44: 308.98 | J44: 321.97 | K44: 296 | L44: 274 | M44: 17.79571
A45: 36 | B45: BEL | C45: 83.35 | D45: 83.52 | E45: 81.83 | F45: 80.32 | G45: 78.63 | H45: 85.03 | I45: 86.72 | J45: 88.23 | K45: 85.2 | L45: 82 | M45: 91.13303
A46: 37 | B46: BHARATFIN | C46: 904.6 | D46: 905.72 | E46: 884.88 | F46: 865.17 | G46: 844.33 | H46: 925.43 | I46: 946.27 | J46: 965.98 | K46: 926.55 | L46: 886 | M46: 29.04049
A47: 38 | B47: BHARATFORG | C47: 546.7 | D47: 547.17 | E47: 540.58 | F47: 534.47 | G47: 527.88 | H47: 553.28 | I47: 559.87 | J47: 565.98 | K47: 553.75 | L47: 541.05 | M47: 11.33717
A48: 39 | B48: BHEL | C48: 70.25 | D48: 72.00 | E48: 67.50 | F48: 64.75 | G48: 60.25 | H48: 74.75 | I48: 79.25 | J48: 82.00 | K48: 76.5 | L48: 69.25 | M48: 469.14007
A49: 40 | B49: BPCL | C49: 277 | D49: 277.83 | E49: 273.37 | F49: 269.73 | G49: 265.27 | H49: 281.47 | I49: 285.93 | J49: 289.57 | K49: 282.3 | L49: 274.2 | M49: 90.59983
A50: 41 | B50: BHARTIARTL | C50: 295.55 | D50: 299.37 | E50: 288.33 | F50: 281.12 | G50: 270.08 | H50: 306.58 | I50: 317.62 | J50: 324.83 | K50: 310.4 | L50: 292.15 | M50: 153.04817
A51: 42 | B51: INFRATEL | C51: 265 | D51: 265.23 | E51: 259.77 | F51: 254.53 | G51: 249.07 | H51: 270.47 | I51: 275.93 | J51: 281.17 | K51: 270.7 | L51: 260 | M51: 69.16739
A52: 43 | B52: BIOCON | C52: 618.3 | D52: 626.87 | E52: 603.43 | F52: 588.57 | G52: 565.13 | H52: 641.73 | I52: 665.17 | J52: 680.03 | K52: 650.3 | L52: 612 | M52: 26.31638
A53: 44 | B53: BOSCHLTD | C53: 19031.8 | D53: 18717.63 | E53: 18265.27 | F53: 17498.73 | G53: 17046.37 | H53: 19484.17 | I53: 19936.53 | J53: 20703.07 | K53: 19170 | L53: 17951.1 | M53: 0.13227
A54: 45 | B54: BRITANNIA | C54: 5309.3 | D54: 5324.97 | E54: 5240.33 | F54: 5171.37 | G54: 5086.73 | H54: 5393.93 | I54: 5478.57 | J54: 5547.53 | K54: 5409.6 | L54: 5256 | M54: 2.48108
A55: 46 | B55: CRISIL | C55: 1360.5 | D55: 1358.90 | E55: 1342.80 | F55: 1325.10 | G55: 1309.00 | H55: 1376.60 | I55: 1392.70 | J55: 1410.40 | K55: 1375 | L55: 1341.2 | M55: 0.77388
A56: 47 | B56: CADILAHC | C56: 340.7 | D56: 344.57 | E56: 335.13 | F56: 329.57 | G56: 320.13 | H56: 350.13 | I56: 359.57 | J56: 365.13 | K56: 354 | L56: 339 | M56: 29.26363
A57: 48 | B57: CANBK | C57: 211.65 | D57: 211.47 | E57: 208.18 | F57: 204.72 | G57: 201.43 | H57: 214.93 | I57: 218.22 | J57: 221.68 | K57: 214.75 | L57: 208 | M57: 47.14863
A58: 49 | B58: CASTROLIND | C58: 146.9 | D58: 145.63 | E58: 142.37 | F58: 137.83 | G58: 134.57 | H58: 150.17 | I58: 153.43 | J58: 157.97 | K58: 148.9 | L58: 141.1 | M58: 31.90626
A59: 50 | B59: CENTRALBK | C59: 29.4 | D59: 29.47 | E59: 29.23 | F59: 29.07 | G59: 28.83 | H59: 29.63 | I59: 29.87 | J59: 30.03 | K59: 29.7 | L59: 29.3 | M59: 3.69823
A60: 51 | B60: CENTURYTEX | C60: 776.8 | D60: 772.27 | E60: 755.03 | F60: 733.27 | G60: 716.03 | H60: 794.03 | I60: 811.27 | J60: 833.03 | K60: 789.5 | L60: 750.5 | M60: 6.76192
A61: 52 | B61: CHOLAFIN | C61: 1180 | D61: 1174.40 | E61: 1151.70 | F61: 1123.40 | G61: 1100.70 | H61: 1202.70 | I61: 1225.40 | J61: 1253.70 | K61: 1197.1 | L61: 1146.1 | M61: 2.88159
A62: 53 | B62: CIPLA | C62: 609 | D62: 612.72 | E62: 601.43 | F62: 593.87 | G62: 582.58 | H62: 620.28 | I62: 631.57 | J62: 639.13 | K62: 624 | L62: 605.15 | M62: 57.39386
A63: 54 | B63: COALINDIA | C63: 282.2 | D63: 280.08 | E63: 276.22 | F63: 270.23 | G63: 266.37 | H63: 286.07 | I63: 289.93 | J63: 295.92 | K63: 283.95 | L63: 274.1 | M63: 43.86393
A64: 55 | B64: COLPAL | C64: 1112.2 | D64: 1112.15 | E64: 1099.60 | F64: 1087.00 | G64: 1074.45 | H64: 1124.75 | I64: 1137.30 | J64: 1149.90 | K64: 1124.7 | L64: 1099.55 | M64: 3.9422
A65: 56 | B65: CONCOR | C65: 550.15 | D65: 550.72 | E65: 541.43 | F65: 532.72 | G65: 523.43 | H65: 559.43 | I65: 568.72 | J65: 577.43 | K65: 560 | L65: 542 | M65: 40.3622
A66: 57 | B66: COROMANDEL | C66: 384.35 | D66: 384.22 | E66: 373.23 | F66: 362.12 | G66: 351.13 | H66: 395.33 | I66: 406.32 | J66: 417.43 | K66: 395.2 | L66: 373.1 | M66: 0.69655
A67: 58 | B67: CROMPTON | C67: 199.4 | D67: 199.82 | E67: 196.63 | F67: 193.87 | G67: 190.68 | H67: 202.58 | I67: 205.77 | J67: 208.53 | K67: 203 | L67: 197.05 | M67: 3.80462
A68: 59 | B68: CUMMINSIND | C68: 674.6 | D68: 674.47 | E68: 664.93 | F68: 655.27 | G68: 645.73 | H68: 684.13 | I68: 693.67 | J68: 703.33 | K68: 684 | L68: 664.8 | M68: 8.33126
A69: 60 | B69: DLF | C69: 154.95 | D69: 154.37 | E69: 151.43 | F69: 147.92 | G69: 144.98 | H69: 157.88 | I69: 160.82 | J69: 164.33 | K69: 157.3 | L69: 150.85 | M69: 47.32368
A70: 61 | B70: DABUR | C70: 398.55 | D70: 400.05 | E70: 394.50 | F70: 390.45 | G70: 384.90 | H70: 404.10 | I70: 409.65 | J70: 413.70 | K70: 405.6 | L70: 396 | M70: 32.4154
A71: 62 | B71: DALMIABHA | C71: 2114.4 | D71: 2082.68 | E71: 2025.42 | F71: 1936.43 | G71: 1879.17 | H71: 2171.67 | I71: 2228.93 | J71: 2317.92 | K71: 2139.95 | L71: 1993.7 | M71: 1.77753
A72: 63 | B72: DHFL | C72: 183.85 | D72: 182.65 | E72: 177.30 | F72: 170.75 | G72: 165.40 | H72: 189.20 | I72: 194.55 | J72: 201.10 | K72: 188 | L72: 176.1 | M72: 272.68536
A73: 64 | B73: DISHTV | C73: 36.95 | D73: 39.58 | E73: 33.27 | F73: 29.58 | G73: 23.27 | H73: 43.27 | I73: 49.58 | J73: 53.27 | K73: 45.9 | L73: 35.9 | M73: 296.37816
A74: 65 | B74: DIVISLAB | C74: 1253 | D74: 1247.73 | E74: 1230.47 | F74: 1207.93 | G74: 1190.67 | H74: 1270.27 | I74: 1287.53 | J74: 1310.07 | K74: 1265 | L74: 1225.2 | M74: 10.84503
A75: 66 | B75: LALPATHLAB | C75: 875.75 | D75: 870.35 | E75: 856.70 | F75: 837.65 | G75: 824.00 | H75: 889.40 | I75: 903.05 | J75: 922.10 | K75: 884 | L75: 851.3 | M75: 0.84156
A76: 67 | B76: DRREDDY | C76: 2390.5 | D76: 2405.15 | E76: 2365.35 | F76: 2340.20 | G76: 2300.40 | H76: 2430.30 | I76: 2470.10 | J76: 2495.25 | K76: 2444.95 | L76: 2380 | M76: 13.393
A77: 68 | B77: EDELWEISS | C77: 133.9 | D77: 136.65 | E77: 131.15 | F77: 128.40 | G77: 122.90 | H77: 139.40 | I77: 144.90 | J77: 147.65 | K77: 142.15 | L77: 133.9 | M77: 30.59571
A78: 69 | B78: EICHERMOT | C78: 22092.2 | D78: 22139.83 | E78: 21852.37 | F78: 21612.53 | G78: 21325.07 | H78: 22379.67 | I78: 22667.13 | J78: 22906.97 | K78: 22427.3 | L78: 21900 | M78: 1.29819
A79: 70 | B79: EMAMILTD | C79: 405.4 | D79: 407.27 | E79: 398.58 | F79: 391.77 | G79: 383.08 | H79: 414.08 | I79: 422.77 | J79: 429.58 | K79: 415.95 | L79: 400.45 | M79: 1.33233
A80: 71 | B80: ENDURANCE | C80: 1082.15 | D80: 1084.80 | E80: 1062.60 | F80: 1043.05 | G80: 1020.85 | H80: 1104.35 | I80: 1126.55 | J80: 1146.10 | K80: 1107 | L80: 1065.25 | M80: 0.30294
A81: 72 | B81: ENGINERSIN | C81: 112.25 | D81: 112.93 | E81: 111.12 | F81: 109.98 | G81: 108.17 | H81: 114.07 | I81: 115.88 | J81: 117.02 | K81: 114.75 | L81: 111.8 | M81: 53.6296
A82: 73 | B82: EXIDEIND | C82: 255.5 | D82: 254.95 | E82: 249.90 | F82: 244.30 | G82: 239.25 | H82: 260.55 | I82: 265.60 | J82: 271.20 | K82: 260 | L82: 249.35 | M82: 21.62509
A83: 74 | B83: FEDERALBNK | C83: 80.65 | D83: 80.57 | E83: 79.38 | F83: 78.12 | G83: 76.93 | H83: 81.83 | I83: 83.02 | J83: 84.28 | K83: 81.75 | L83: 79.3 | M83: 89.19625
A84: 75 | B84: GAIL | C84: 339.75 | D84: 340.25 | E84: 335.50 | F84: 331.25 | G84: 326.50 | H84: 344.50 | I84: 349.25 | J84: 353.50 | K84: 345 | L84: 336 | M84: 230.67001
A85: 76 | B85: GMRINFRA | C85: 15.65 | D85: 15.82 | E85: 15.33 | F85: 15.02 | G85: 14.53 | H85: 16.13 | I85: 16.62 | J85: 16.93 | K85: 16.3 | L85: 15.5 | M85: 331.58326
A86: 77 | B86: GSKCONS | C86: 7000.35 | D86: 6940.57 | E86: 6861.13 | F86: 6721.92 | G86: 6642.48 | H86: 7079.78 | I86: 7159.22 | J86: 7298.43 | K86: 7020 | L86: 6801.35 | M86: 0.07224
A87: 78 | B87: GLAXO | C87: 1280.7 | D87: 1285.25 | E87: 1266.50 | F87: 1252.30 | G87: 1233.55 | H87: 1299.45 | I87: 1318.20 | J87: 1332.40 | K87: 1304 | L87: 1271.05 | M87: 0.16347
A88: 79 | B88: GLENMARK | C88: 612.6 | D88: 611.92 | E88: 600.93 | F88: 589.27 | G88: 578.28 | H88: 623.58 | I88: 634.57 | J88: 646.23 | K88: 622.9 | L88: 600.25 | M88: 8.13966
A89: 80 | B89: GODREJCP | C89: 701.75 | D89: 706.57 | E89: 682.33 | F89: 662.92 | G89: 638.68 | H89: 725.98 | I89: 750.22 | J89: 769.63 | K89: 730.8 | L89: 687.15 | M89: 16.82499
A90: 81 | B90: GODREJIND | C90: 449 | D90: 446.15 | E90: 437.35 | F90: 425.70 | G90: 416.90 | H90: 457.80 | I90: 466.60 | J90: 478.25 | K90: 454.95 | L90: 434.5 | M90: 4.52854
A91: 82 | B91: GRUH | C91: 276.65 | D91: 270.92 | E91: 262.33 | F91: 248.02 | G91: 239.43 | H91: 285.23 | I91: 293.82 | J91: 308.13 | K91: 279.5 | L91: 256.6 | M91: 7.65164
A92: 83 | B92: GPPL | C92: 100.05 | D92: 101.12 | E92: 98.23 | F92: 96.42 | G92: 93.53 | H92: 102.93 | I92: 105.82 | J92: 107.63 | K92: 104 | L92: 99.3 | M92: 0.7833
A93: 84 | B93: GSPL | C93: 167.1 | D93: 166.20 | E93: 162.10 | F93: 157.10 | G93: 153.00 | H93: 171.20 | I93: 175.30 | J93: 180.30 | K93: 170.3 | L93: 161.2 | M93: 2.8052
A94: 85 | B94: HCLTECH | C94: 1004.85 | D94: 994.77 | E94: 978.08 | F94: 951.32 | G94: 934.63 | H94: 1021.53 | I94: 1038.22 | J94: 1064.98 | K94: 1011.45 | L94: 968 | M94: 30.88129
A95: 86 | B95: HDFCBANK | C95: 1968.8 | D95: 1978.28 | E95: 1952.97 | F95: 1937.13 | G95: 1911.82 | H95: 1994.12 | I95: 2019.43 | J95: 2035.27 | K95: 2003.6 | L95: 1962.45 | M95: 74.61764
A96: 87 | B96: HAVELLS | C96: 599.3 | D96: 599.45 | E96: 590.95 | F96: 582.60 | G96: 574.10 | H96: 607.80 | I96: 616.30 | J96: 624.65 | K96: 607.95 | L96: 591.1 | M96: 12.20249
A97: 88 | B97: HEROMOTOCO | C97: 2695.1 | D97: 2686.03 | E97: 2657.07 | F97: 2619.03 | G97: 2590.07 | H97: 2724.07 | I97: 2753.03 | J97: 2791.07 | K97: 2715 | L97: 2648 | M97: 7.00158
A98: 89 | B98: HEXAWARE | C98: 331.6 | D98: 328.65 | E98: 319.50 | F98: 307.40 | G98: 298.25 | H98: 340.75 | I98: 349.90 | J98: 362.00 | K98: 337.8 | L98: 316.55 | M98: 38.6349
A99: 90 | B99: HINDALCO | C99: 222.35 | D99: 223.25 | E99: 218.50 | F99: 214.65 | G99: 209.90 | H99: 227.10 | I99: 231.85 | J99: 235.70 | K99: 228 | L99: 219.4 | M99: 73.34578
A100: 91 | B100: HINDPETRO | C100: 226.4 | D100: 228.93 | E100: 221.67 | F100: 216.93 | G100: 209.67 | H100: 233.67 | I100: 240.93 | J100: 245.67 | K100: 236.2 | L100: 224.2 | M100: 90.04893
A101: 92 | B101: HINDUNILVR | C101: 1571.55 | D101: 1571.98 | E101: 1552.22 | F101: 1532.88 | G101: 1513.12 | H101: 1591.32 | I101: 1611.08 | J101: 1630.42 | K101: 1591.75 | L101: 1552.65 | M101: 23.97242
A102: 93 | B102: HINDZINC | C102: 278.55 | D102: 278.75 | E102: 274.90 | F102: 271.25 | G102: 267.40 | H102: 282.40 | I102: 286.25 | J102: 289.90 | K102: 282.6 | L102: 275.1 | M102: 25.09513
A103: 94 | B103: HUDCO | C103: 40.95 | D103: 40.92 | E103: 40.63 | F103: 40.32 | G103: 40.03 | H103: 41.23 | I103: 41.52 | J103: 41.83 | K103: 41.2 | L103: 40.6 | M103: 3.3658
A104: 95 | B104: HDFC | C104: 1694.45 | D104: 1706.50 | E104: 1673.00 | F104: 1651.55 | G104: 1618.05 | H104: 1727.95 | I104: 1761.45 | J104: 1782.90 | K104: 1740 | L104: 1685.05 | M104: 44.35395
A105: 96 | B105: ITC | C105: 287.55 | D105: 287.18 | E105: 284.87 | F105: 282.18 | G105: 279.87 | H105: 289.87 | I105: 292.18 | J105: 294.87 | K105: 289.5 | L105: 284.5 | M105: 95.84217
A106: 97 | B106: ICICIBANK | C106: 319.95 | D106: 317.93 | E106: 313.82 | F106: 307.68 | G106: 303.57 | H106: 324.07 | I106: 328.18 | J106: 334.32 | K106: 322.05 | L106: 311.8 | M106: 269.2018
A107: 98 | B107: ICICIPRULI | C107: 317.7 | D107: 317.77 | E107: 315.03 | F107: 312.37 | G107: 309.63 | H107: 320.43 | I107: 323.17 | J107: 325.83 | K107: 320.5 | L107: 315.1 | M107: 13.69004
A108: 99 | B108: IDBI | C108: 58.9 | D108: 58.95 | E108: 58.55 | F108: 58.20 | G108: 57.80 | H108: 59.30 | I108: 59.70 | J108: 60.05 | K108: 59.35 | L108: 58.6 | M108: 27.26376
A109: 100 | B109: IDFCBANK | C109: 34.05 | D109: 34.43 | E109: 33.52 | F109: 32.98 | G109: 32.07 | H109: 34.97 | I109: 35.88 | J109: 36.42 | K109: 35.35 | L109: 33.9 | M109: 137.53219
A110: 101 | B110: IDFC | C110: 35.3 | D110: 35.62 | E110: 34.78 | F110: 34.27 | G110: 33.43 | H110: 36.13 | I110: 36.97 | J110: 37.48 | K110: 36.45 | L110: 35.1 | M110: 25.27707
A111: 102 | B111: IRB | C111: 120.4 | D111: 121.63 | E111: 118.52 | F111: 116.63 | G111: 113.52 | H111: 123.52 | I111: 126.63 | J111: 128.52 | K111: 124.75 | L111: 119.75 | M111: 17.34362
A112: 103 | B112: IDEA | C112: 37.25 | D112: 36.67 | E112: 35.08 | F112: 32.92 | G112: 31.33 | H112: 38.83 | I112: 40.42 | J112: 42.58 | K112: 38.25 | L112: 34.5 | M112: 218.89199
A113: 104 | B113: IBULHSGFIN | C113: 689.1 | D113: 700.75 | E113: 671.50 | F113: 653.90 | G113: 624.65 | H113: 718.35 | I113: 747.60 | J113: 765.20 | K113: 730 | L113: 683.15 | M113: 124.73797
A114: 105 | B114: INDIANB | C114: 218.35 | D114: 217.70 | E114: 213.25 | F114: 208.15 | G114: 203.70 | H114: 222.80 | I114: 227.25 | J114: 232.35 | K114: 222.15 | L114: 212.6 | M114: 13.98789
A115: 106 | B115: INDHOTEL | C115: 127.45 | D115: 126.62 | E115: 124.43 | F115: 121.42 | G115: 119.23 | H115: 129.63 | I115: 131.82 | J115: 134.83 | K115: 128.8 | L115: 123.6 | M115: 10.27461
A116: 107 | B116: IOC | C116: 140.1 | D116: 138.98 | E116: 136.42 | F116: 132.73 | G116: 130.17 | H116: 142.67 | I116: 145.23 | J116: 148.92 | K116: 141.55 | L116: 135.3 | M116: 208.46952
A117: 108 | B117: IGL | C117: 254.1 | D117: 252.32 | E117: 248.43 | F117: 242.77 | G117: 238.88 | H117: 257.98 | I117: 261.87 | J117: 267.53 | K117: 256.2 | L117: 246.65 | M117: 24.26348
A118: 109 | B118: INDUSINDBK | C118: 1491.1 | D118: 1496.53 | E118: 1470.17 | F118: 1449.23 | G118: 1422.87 | H118: 1517.47 | I118: 1543.83 | J118: 1564.77 | K118: 1522.9 | L118: 1475.6 | M118: 49.71095
A119: 110 | B119: NAUKRI | C119: 1607.5 | D119: 1580.17 | E119: 1535.33 | F119: 1463.17 | G119: 1418.33 | H119: 1652.33 | I119: 1697.17 | J119: 1769.33 | K119: 1625 | L119: 1508 | M119: 0.62785
A120: 111 | B120: INFY | C120: 648.75 | D120: 647.12 | E120: 637.88 | F120: 627.02 | G120: 617.78 | H120: 657.98 | I120: 667.22 | J120: 678.08 | K120: 656.35 | L120: 636.25 | M120: 82.70469
A121: 112 | B121: INDIGO | C121: 877.95 | D121: 852.20 | E121: 812.40 | F121: 746.85 | G121: 707.05 | H121: 917.75 | I121: 957.55 | J121: 1023.10 | K121: 892 | L121: 786.65 | M121: 44.11095
A122: 113 | B122: IPCALAB | C122: 643.8 | D122: 645.03 | E122: 630.07 | F122: 616.33 | G122: 601.37 | H122: 658.77 | I122: 673.73 | J122: 687.47 | K122: 660 | L122: 631.3 | M122: 0.60125
A123: 114 | B123: JSWENERGY | C123: 63.05 | D123: 63.05 | E123: 62.30 | F123: 61.55 | G123: 60.80 | H123: 63.80 | I123: 64.55 | J123: 65.30 | K123: 63.8 | L123: 62.3 | M123: 2.89668
A124: 115 | B124: JSWSTEEL | C124: 353.4 | D124: 350.70 | E124: 346.20 | F124: 339.00 | G124: 334.50 | H124: 357.90 | I124: 362.40 | J124: 369.60 | K124: 355.2 | L124: 343.5 | M124: 48.9165
A125: 116 | B125: JINDALSTEL | C125: 162.25 | D125: 162.33 | E125: 158.72 | F125: 155.18 | G125: 151.57 | H125: 165.87 | I125: 169.48 | J125: 173.02 | K125: 165.95 | L125: 158.8 | M125: 99.69835
A126: 117 | B126: JUBLFOOD | C126: 1074.1 | D126: 1102.03 | E126: 1037.27 | F126: 1000.43 | G126: 935.67 | H126: 1138.87 | I126: 1203.63 | J126: 1240.47 | K126: 1166.8 | L126: 1065.2 | M126: 56.04538
A127: 118 | B127: JUBILANT | C127: 656.75 | D127: 653.07 | E127: 646.18 | F127: 635.62 | G127: 628.73 | H127: 663.63 | I127: 670.52 | J127: 681.08 | K127: 659.95 | L127: 642.5 | M127: 1.40326
A128: 119 | B128: KARURVYSYA | C128: 75.75 | D128: 75.97 | E128: 75.28 | F128: 74.82 | G128: 74.13 | H128: 76.43 | I128: 77.12 | J128: 77.58 | K128: 76.65 | L128: 75.5 | M128: 42.52316
A129: 120 | B129: KOTAKBANK | C129: 1185.8 | D129: 1181.67 | E129: 1169.13 | F129: 1152.47 | G129: 1139.93 | H129: 1198.33 | I129: 1210.87 | J129: 1227.53 | K129: 1194.2 | L129: 1165 | M129: 36.13893
A130: 121 | B130: L&TFH | C130: 117.2 | D130: 116.68 | E130: 111.17 | F130: 105.13 | G130: 99.62 | H130: 122.72 | I130: 128.23 | J130: 134.27 | K130: 122.2 | L130: 110.65 | M130: 351.00587
A131: 122 | B131: LICHSGFIN | C131: 409.6 | D131: 407.65 | E131: 403.45 | F131: 397.30 | G131: 393.10 | H131: 413.80 | I131: 418.00 | J131: 424.15 | K131: 411.85 | L131: 401.5 | M131: 39.51714
A132: 123 | B132: LT | C132: 1201.55 | D132: 1202.92 | E132: 1193.78 | F132: 1186.02 | G132: 1176.88 | H132: 1210.68 | I132: 1219.82 | J132: 1227.58 | K132: 1212.05 | L132: 1195.15 | M132: 30.63065
A133: 124 | B133: LUPIN | C133: 851.3 | D133: 857.68 | E133: 840.67 | F133: 830.03 | G133: 813.02 | H133: 868.32 | I133: 885.33 | J133: 895.97 | K133: 874.7 | L133: 847.05 | M133: 22.99649
A134: 125 | B134: MRF | C134: 61362.5 | D134: 61547.50 | E134: 60615.00 | F134: 59867.50 | G134: 58935.00 | H134: 62295.00 | I134: 63227.50 | J134: 63975.00 | K134: 62480 | L134: 60800 | M134: 0.07477
A135: 126 | B135: MGL | C135: 823.25 | D135: 816.98 | E135: 806.32 | F135: 789.38 | G135: 778.72 | H135: 833.92 | I135: 844.58 | J135: 861.52 | K135: 827.65 | L135: 800.05 | M135: 1.23352
A136: 127 | B136: M&MFIN | C136: 403.45 | D136: 405.12 | E136: 393.53 | F136: 383.62 | G136: 372.03 | H136: 415.03 | I136: 426.62 | J136: 436.53 | K136: 416.7 | L136: 395.2 | M136: 71.24092
A137: 128 | B137: M&M | C137: 733.75 | D137: 734.08 | E137: 723.67 | F137: 713.58 | G137: 703.17 | H137: 744.17 | I137: 754.58 | J137: 764.67 | K137: 744.5 | L137: 724 | M137: 39.66709
A138: 129 | B138: MANAPPURAM | C138: 72.7 | D138: 72.13 | E138: 70.57 | F138: 68.43 | G138: 66.87 | H138: 74.27 | I138: 75.83 | J138: 77.97 | K138: 73.7 | L138: 70 | M138: 164.05918
A139: 130 | B139: MRPL | C139: 83.25 | D139: 82.97 | E139: 82.03 | F139: 80.82 | G139: 79.88 | H139: 84.18 | I139: 85.12 | J139: 86.33 | K139: 83.9 | L139: 81.75 | M139: 15.9262
A140: 131 | B140: MARICO | C140: 297.55 | D140: 300.05 | E140: 292.60 | F140: 287.65 | G140: 280.20 | H140: 305.00 | I140: 312.45 | J140: 317.40 | K140: 307.5 | L140: 295.1 | M140: 42.19123
A141: 132 | B141: MARUTI | C141: 6723.2 | D141: 6732.37 | E141: 6611.03 | F141: 6498.87 | G141: 6377.53 | H141: 6844.53 | I141: 6965.87 | J141: 7078.03 | K141: 6853.7 | L141: 6620.2 | M141: 21.01936
A142: 133 | B142: MFSL | C142: 372.95 | D142: 373.42 | E142: 367.83 | F142: 362.72 | G142: 357.13 | H142: 378.53 | I142: 384.12 | J142: 389.23 | K142: 379 | L142: 368.3 | M142: 8.18891
A143: 134 | B143: MINDTREE | C143: 779.7 | D143: 781.20 | E143: 764.50 | F143: 749.30 | G143: 732.60 | H143: 796.40 | I143: 813.10 | J143: 828.30 | K143: 797.9 | L143: 766 | M143: 19.10519
A144: 135 | B144: MOTHERSUMI | C144: 231.9 | D144: 234.15 | E144: 225.30 | F144: 218.70 | G144: 209.85 | H144: 240.75 | I144: 249.60 | J144: 256.20 | K144: 243 | L144: 227.55 | M144: 74.26366
A145: 136 | B145: MPHASIS | C145: 972 | D145: 981.33 | E145: 952.67 | F145: 933.33 | G145: 904.67 | H145: 1000.67 | I145: 1029.33 | J145: 1048.67 | K145: 1010 | L145: 962 | M145: 4.69451
A146: 137 | B146: MUTHOOTFIN | C146: 388.95 | D146: 388.55 | E146: 382.40 | F146: 375.85 | G146: 369.70 | H146: 395.10 | I146: 401.25 | J146: 407.80 | K146: 394.7 | L146: 382 | M146: 24.97249
A147: 138 | B147: NATCOPHARM | C147: 681.75 | D147: 683.22 | E147: 672.53 | F147: 663.32 | G147: 652.63 | H147: 692.43 | I147: 703.12 | J147: 712.33 | K147: 693.9 | L147: 674 | M147: 1.12674
A148: 139 | B148: NBCC | C148: 54.85 | D148: 54.58 | E148: 52.47 | F148: 50.08 | G148: 47.97 | H148: 56.97 | I148: 59.08 | J148: 61.47 | K148: 56.7 | L148: 52.2 | M148: 199.77642
A149: 140 | B149: NHPC | C149: 24.3 | D149: 24.12 | E149: 23.78 | F149: 23.27 | G149: 22.93 | H149: 24.63 | I149: 24.97 | J149: 25.48 | K149: 24.45 | L149: 23.6 | M149: 28.1678
A150: 141 | B150: NMDC | C150: 105.7 | D150: 106.65 | E150: 103.65 | F150: 101.60 | G150: 98.60 | H150: 108.70 | I150: 111.70 | J150: 113.75 | K150: 109.65 | L150: 104.6 | M150: 100.34459
A151: 142 | B151: NTPC | C151: 162.3 | D151: 161.52 | E151: 158.08 | F151: 153.87 | G151: 150.43 | H151: 165.73 | I151: 169.17 | J151: 173.38 | K151: 164.95 | L151: 157.3 | M151: 788.59564
A152: 143 | B152: NATIONALUM | C152: 66.3 | D152: 66.55 | E152: 65.40 | F152: 64.50 | G152: 63.35 | H152: 67.45 | I152: 68.60 | J152: 69.50 | K152: 67.7 | L152: 65.65 | M152: 125.30936
A153: 144 | B153: OBEROIRLTY | C153: 420.05 | D153: 422.15 | E153: 413.30 | F153: 406.55 | G153: 397.70 | H153: 428.90 | I153: 437.75 | J153: 444.50 | K153: 431 | L153: 415.4 | M153: 3.94838
A154: 145 | B154: ONGC | C154: 155.35 | D154: 157.07 | E154: 151.33 | F154: 147.32 | G154: 141.58 | H154: 161.08 | I154: 166.82 | J154: 170.83 | K154: 162.8 | L154: 153.05 | M154: 321.00452
A155: 146 | B155: OIL | C155: 201.3 | D155: 198.52 | E155: 192.03 | F155: 182.77 | G155: 176.28 | H155: 207.78 | I155: 214.27 | J155: 223.53 | K155: 205 | L155: 189.25 | M155: 17.43752
A156: 147 | B156: OFSS | C156: 3612.9 | D156: 3622.27 | E156: 3544.53 | F156: 3476.17 | G156: 3398.43 | H156: 3690.63 | I156: 3768.37 | J156: 3836.73 | K156: 3700 | L156: 3553.9 | M156: 0.47953
A157: 148 | B157: PCJEWELLER | C157: 48.4 | D157: 48.62 | E157: 47.43 | F157: 46.47 | G157: 45.28 | H157: 49.58 | I157: 50.77 | J157: 51.73 | K157: 49.8 | L157: 47.65 | M157: 70.8447
A158: 149 | B158: PIIND | C158: 711 | D158: 711.00 | E158: 702.20 | F158: 693.40 | G158: 684.60 | H158: 719.80 | I158: 728.60 | J158: 737.40 | K158: 719.8 | L158: 702.2 | M158: 0.51587
A159: 150 | B159: PNBHOUSING | C159: 719.7 | D159: 716.92 | E159: 703.98 | F159: 688.27 | G159: 675.33 | H159: 732.63 | I159: 745.57 | J159: 761.28 | K159: 729.85 | L159: 701.2 | M159: 1.89012
A160: 151 | B160: PAGEIND | C160: 28556.45 | D160: 28279.17 | E160: 27807.33 | F160: 27058.22 | G160: 26586.38 | H160: 29028.28 | I160: 29500.12 | J160: 30249.23 | K160: 28751 | L160: 27530.05 | M160: 0.44308
A161: 152 | B161: PETRONET | C161: 212.25 | D161: 211.72 | E161: 208.43 | F161: 204.62 | G161: 201.33 | H161: 215.53 | I161: 218.82 | J161: 222.63 | K161: 215 | L161: 207.9 | M161: 89.51132
A162: 153 | B162: PIDILITIND | C162: 933.6 | D162: 935.28 | E162: 922.02 | F162: 910.43 | G162: 897.17 | H162: 946.87 | I162: 960.13 | J162: 971.72 | K162: 948.55 | L162: 923.7 | M162: 3.6886
A163: 154 | B163: PEL | C163: 1865.3 | D163: 1885.10 | E163: 1825.20 | F163: 1785.10 | G163: 1725.20 | H163: 1925.20 | I163: 1985.10 | J163: 2025.20 | K163: 1945 | L163: 1845 | M163: 9.47295
A164: 155 | B164: PFC | C164: 84.15 | D164: 82.07 | E164: 78.18 | F164: 72.22 | G164: 68.33 | H164: 88.03 | I164: 91.92 | J164: 97.88 | K164: 85.95 | L164: 76.1 | M164: 689.94919
A165: 156 | B165: POWERGRID | C165: 191.3 | D165: 190.05 | E165: 187.95 | F165: 184.60 | G165: 182.50 | H165: 193.40 | I165: 195.50 | J165: 198.85 | K165: 192.15 | L165: 186.7 | M165: 41.93672
A166: 157 | B166: PRESTIGE | C166: 192.1 | D166: 191.83 | E166: 184.67 | F166: 177.23 | G166: 170.07 | H166: 199.27 | I166: 206.43 | J166: 213.87 | K166: 199 | L166: 184.4 | M166: 0.80864
A167: 158 | B167: PGHH | C167: 9158.45 | D167: 9164.70 | E167: 9104.80 | F167: 9051.15 | G167: 8991.25 | H167: 9218.35 | I167: 9278.25 | J167: 9331.90 | K167: 9224.6 | L167: 9111.05 | M167: 0.07475
A168: 159 | B168: PNB | C168: 65.65 | D168: 65.78 | E168: 64.87 | F168: 64.08 | G168: 63.17 | H168: 66.57 | I168: 67.48 | J168: 68.27 | K168: 66.7 | L168: 65 | M168: 232.50113
A169: 160 | B169: RBLBANK | C169: 493.8 | D169: 491.78 | E169: 485.07 | F169: 476.33 | G169: 469.62 | H169: 500.52 | I169: 507.23 | J169: 515.97 | K169: 498.5 | L169: 483.05 | M169: 32.12247
A170: 161 | B170: RAJESHEXPO | C170: 565.35 | D170: 566.37 | E170: 562.98 | F170: 560.62 | G170: 557.23 | H170: 568.73 | I170: 572.12 | J170: 574.48 | K170: 569.75 | L170: 564 | M170: 1.62973
A171: 162 | B171: RELCAPITAL | C171: 233.35 | D171: 234.33 | E171: 229.67 | F171: 225.98 | G171: 221.32 | H171: 238.02 | I171: 242.68 | J171: 246.37 | K171: 239 | L171: 230.65 | M171: 68.40945
A172: 163 | B172: RCOM | C172: 10.35 | D172: 10.52 | E172: 10.13 | F172: 9.92 | G172: 9.53 | H172: 10.73 | I172: 11.12 | J172: 11.33 | K172: 10.9 | L172: 10.3 | M172: 428.67256
A173: 164 | B173: RELIANCE | C173: 1030.8 | D173: 1029.28 | E173: 1017.92 | F173: 1005.03 | G173: 993.67 | H173: 1042.17 | I173: 1053.53 | J173: 1066.42 | K173: 1040.65 | L173: 1016.4 | M173: 140.96237
A174: 165 | B174: RELINFRA | C174: 341.95 | D174: 341.10 | E174: 335.25 | F174: 328.55 | G174: 322.70 | H174: 347.80 | I174: 353.65 | J174: 360.35 | K174: 346.95 | L174: 334.4 | M174: 27.9786
A175: 166 | B175: RPOWER | C175: 27.7 | D175: 27.65 | E175: 26.90 | F175: 26.10 | G175: 25.35 | H175: 28.45 | I175: 29.20 | J175: 30.00 | K175: 28.4 | L175: 26.85 | M175: 74.54322
A176: 167 | B176: RECLTD | C176: 107 | D176: 107.50 | E176: 105.05 | F176: 103.10 | G176: 100.65 | H176: 109.45 | I176: 111.90 | J176: 113.85 | K176: 109.95 | L176: 105.55 | M176: 165.60289
A177: 168 | B177: SRF | C177: 1740.6 | D177: 1729.03 | E177: 1703.07 | F177: 1665.53 | G177: 1639.57 | H177: 1766.57 | I177: 1792.53 | J177: 1830.07 | K177: 1755 | L177: 1691.5 | M177: 2.23741
A178: 169 | B178: SHREECEM | C178: 13530.15 | D178: 13525.48 | E178: 13356.02 | F178: 13181.88 | G178: 13012.42 | H178: 13699.62 | I178: 13869.08 | J178: 14043.22 | K178: 13694.95 | L178: 13351.35 | M178: 0.60925
A179: 170 | B179: SRTRANSFIN | C179: 1084.65 | D179: 1067.52 | E179: 1040.78 | F179: 996.92 | G179: 970.18 | H179: 1111.38 | I179: 1138.12 | J179: 1181.98 | K179: 1094.25 | L179: 1023.65 | M179: 15.22381
A180: 171 | B180: SIEMENS | C180: 878.8 | D180: 878.32 | E180: 863.08 | F180: 847.37 | G180: 832.13 | H180: 894.03 | I180: 909.27 | J180: 924.98 | K180: 893.55 | L180: 862.6 | M180: 1.24933
A181: 172 | B181: SBIN | C181: 249.55 | D181: 250.98 | E181: 246.97 | F181: 244.38 | G181: 240.37 | H181: 253.57 | I181: 257.58 | J181: 260.17 | K181: 255 | L181: 248.4 | M181: 330.66232
A182: 173 | B182: SAIL | C182: 62.9 | D182: 63.37 | E182: 61.88 | F182: 60.87 | G182: 59.38 | H182: 64.38 | I182: 65.87 | J182: 66.88 | K182: 64.85 | L182: 62.35 | M182: 68.17127
A183: 174 | B183: SPARC | C183: 295.65 | D183: 294.40 | E183: 290.85 | F183: 286.05 | G183: 282.50 | H183: 299.20 | I183: 302.75 | J183: 307.55 | K183: 297.95 | L183: 289.6 | M183: 0.73989
A184: 175 | B184: SUNPHARMA | C184: 558.75 | D184: 561.10 | E184: 549.75 | F184: 540.75 | G184: 529.40 | H184: 570.10 | I184: 581.45 | J184: 590.45 | K184: 572.45 | L184: 552.1 | M184: 61.05402
A185: 176 | B185: SUNTV | C185: 615.4 | D185: 623.45 | E185: 602.95 | F185: 590.50 | G185: 570.00 | H185: 635.90 | I185: 656.40 | J185: 668.85 | K185: 643.95 | L185: 611 | M185: 23.97886
A186: 177 | B186: SUZLON | C186: 6.05 | D186: 6.03 | E186: 5.92 | F186: 5.78 | G186: 5.67 | H186: 6.17 | I186: 6.28 | J186: 6.42 | K186: 6.15 | L186: 5.9 | M186: 376.65575
A187: 178 | B187: SYNDIBANK | C187: 31.25 | D187: 31.28 | E187: 30.77 | F187: 30.28 | G187: 29.77 | H187: 31.77 | I187: 32.28 | J187: 32.77 | K187: 31.8 | L187: 30.8 | M187: 16.82805
A188: 179 | B188: SYNGENE | C188: 576.75 | D188: 572.18 | E188: 564.57 | F188: 552.38 | G188: 544.77 | H188: 584.37 | I188: 591.98 | J188: 604.17 | K188: 579.8 | L188: 560 | M188: 0.5336
A189: 180 | B189: TV18BRDCST | C189: 36.65 | D189: 36.70 | E189: 36.10 | F189: 35.55 | G189: 34.95 | H189: 37.25 | I189: 37.85 | J189: 38.40 | K189: 37.3 | L189: 36.15 | M189: 52.72421
A190: 181 | B190: TVSMOTOR | C190: 519.15 | D190: 523.57 | E190: 511.58 | F190: 504.02 | G190: 492.03 | H190: 531.13 | I190: 543.12 | J190: 550.68 | K190: 535.55 | L190: 516 | M190: 20.2585
A191: 182 | B191: TATACHEM | C191: 666.5 | D191: 667.20 | E191: 652.90 | F191: 639.30 | G191: 625.00 | H191: 680.80 | I191: 695.10 | J191: 708.70 | K191: 681.5 | L191: 653.6 | M191: 6.71366
A192: 183 | B192: TATACOMM | C192: 449.85 | D192: 451.08 | E192: 443.02 | F192: 436.18 | G192: 428.12 | H192: 457.92 | I192: 465.98 | J192: 472.82 | K192: 459.15 | L192: 444.25 | M192: 8.0775
A193: 184 | B193: TCS | C193: 1853 | D193: 1851.65 | E193: 1826.40 | F193: 1799.80 | G193: 1774.55 | H193: 1878.25 | I193: 1903.50 | J193: 1930.10 | K193: 1876.9 | L193: 1825.05 | M193: 25.07233
A194: 185 | B194: TATAGLOBAL | C194: 222.1 | D194: 220.93 | E194: 217.17 | F194: 212.23 | G194: 208.47 | H194: 225.87 | I194: 229.63 | J194: 234.57 | K194: 224.7 | L194: 216 | M194: 32.88126
A195: 186 | B195: TATAMTRDVR | C195: 91.3 | D195: 91.82 | E195: 90.28 | F195: 89.27 | G195: 87.73 | H195: 92.83 | I195: 94.37 | J195: 95.38 | K195: 93.35 | L195: 90.8 | M195: 37.87682
A196: 187 | B196: TATAMOTORS | C196: 165.35 | D196: 166.57 | E196: 163.38 | F196: 161.42 | G196: 158.23 | H196: 168.53 | I196: 171.72 | J196: 173.68 | K196: 169.75 | L196: 164.6 | M196: 148.77057
A197: 188 | B197: TATAPOWER | C197: 69 | D197: 68.82 | E197: 67.73 | F197: 66.47 | G197: 65.38 | H197: 70.08 | I197: 71.17 | J197: 72.43 | K197: 69.9 | L197: 67.55 | M197: 97.27241
A198: 189 | B198: TATASTEEL | C198: 545.75 | D198: 545.45 | E198: 540.30 | F198: 534.85 | G198: 529.70 | H198: 550.90 | I198: 556.05 | J198: 561.50 | K198: 550.6 | L198: 540 | M198: 44.67859
A199: 190 | B199: TECHM | C199: 651.4 | D199: 655.53 | E199: 644.92 | F199: 638.43 | G199: 627.82 | H199: 662.02 | I199: 672.63 | J199: 679.12 | K199: 666.15 | L199: 649.05 | M199: 21.42283
A200: 191 | B200: RAMCOCEM | C200: 571.1 | D200: 565.62 | E200: 553.48 | F200: 535.87 | G200: 523.73 | H200: 583.23 | I200: 595.37 | J200: 612.98 | K200: 577.75 | L200: 548 | M200: 3.5223
A201: 192 | B201: TITAN | C201: 791.25 | D201: 788.35 | E201: 780.70 | F201: 770.15 | G201: 762.50 | H201: 798.90 | I201: 806.55 | J201: 817.10 | K201: 796 | L201: 777.8 | M201: 16.81346
A202: 193 | B202: TORNTPHARM | C202: 1579 | D202: 1579.68 | E202: 1561.37 | F202: 1543.73 | G202: 1525.42 | H202: 1597.32 | I202: 1615.63 | J202: 1633.27 | K202: 1598 | L202: 1562.05 | M202: 1.10046
A203: 194 | B203: TORNTPOWER | C203: 224.6 | D203: 223.67 | E203: 219.43 | F203: 214.27 | G203: 210.03 | H203: 228.83 | I203: 233.07 | J203: 238.23 | K203: 227.9 | L203: 218.5 | M203: 12.89263
A204: 195 | B204: UPL | C204: 599.45 | D204: 604.47 | E204: 590.38 | F204: 581.32 | G204: 567.23 | H204: 613.53 | I204: 627.62 | J204: 636.68 | K204: 618.55 | L204: 595.4 | M204: 16.51219
A205: 196 | B205: ULTRACEMCO | C205: 3347.5 | D205: 3338.08 | E205: 3286.92 | F205: 3226.33 | G205: 3175.17 | H205: 3398.67 | I205: 3449.83 | J205: 3510.42 | K205: 3389.25 | L205: 3277.5 | M205: 5.19442
... 30 more rows

Sheet MidCap Intra
L5: Back To Main Page
A6: FOR INTRA DAY TRADING | K6: =Main!B10 -> 2018-10-26
A9: Sr.no | B9: Scrip | C9: CLOSE RATE | D9: Pivot Point | E9: Supports | H9: Resistances
C10: Point | E10: S1 | F10: S2 | G10: S3 | H10: R1 | I10: R2 | J10: R3 | K10: HIGH | L10: LOW | M10: Total Trade Quanity in Lakhs
A11: 1 | B11: 3MINDIA | C11: 19650.55 | D11: 19666.87 | E11: 19433.73 | F11: 19216.92 | G11: 18983.78 | H11: 19883.68 | I11: 20116.82 | J11: 20333.63 | K11: 19900 | L11: 19450.05 | M11: 0.02126
A12: 2 | B12: 8KMILES | C12: 88.4 | D12: 88.40 | E12: 88.40 | F12: 88.40 | G12: 88.40 | H12: 88.40 | I12: 88.40 | J12: 88.40 | K12: 88.4 | L12: 88.4 | M12: 0.22498
A13: 3 | B13: AARTIIND | C13: 1281.6 | D13: 1266.87 | E13: 1239.73 | F13: 1197.87 | G13: 1170.73 | H13: 1308.73 | I13: 1335.87 | J13: 1377.73 | K13: 1294 | L13: 1225 | M13: 0.31934
A14: 4 | B14: ABAN | C14: 72.5 | D14: 72.95 | E14: 71.30 | F14: 70.10 | G14: 68.45 | H14: 74.15 | I14: 75.80 | J14: 77.00 | K14: 74.6 | L14: 71.75 | M14: 3.62315
A15: 5 | B15: ABB | C15: 1219.9 | D15: 1221.32 | E15: 1203.68 | F15: 1187.47 | G15: 1169.83 | H15: 1237.53 | I15: 1255.17 | J15: 1271.38 | K15: 1238.95 | L15: 1205.1 | M15: 0.24711
A16: 6 | B16: ABCAPITAL | C16: 96.9 | D16: 96.27 | E16: 94.63 | F16: 92.37 | G16: 90.73 | H16: 98.53 | I16: 100.17 | J16: 102.43 | K16: 97.9 | L16: 94 | M16: 17.18136
A17: 7 | B17: ABFRL | C17: 173.8 | D17: 173.23 | E17: 171.67 | F17: 169.53 | G17: 167.97 | H17: 175.37 | I17: 176.93 | J17: 179.07 | K17: 174.8 | L17: 171.1 | M17: 2.24686
A18: 8 | B18: ACC | C18: 1367.6 | D18: 1368.40 | E18: 1356.90 | F18: 1346.20 | G18: 1334.70 | H18: 1379.10 | I18: 1390.60 | J18: 1401.30 | K18: 1379.9 | L18: 1357.7 | M18: 7.25333
A19: 9 | B19: ADANIPORTS | C19: 305.6 | D19: 305.73 | E19: 298.57 | F19: 291.53 | G19: 284.37 | H19: 312.77 | I19: 319.93 | J19: 326.97 | K19: 312.9 | L19: 298.7 | M19: 45.84103
A20: 10 | B20: ADANIPOWER | C20: 33 | D20: 33.12 | E20: 32.53 | F20: 32.07 | G20: 31.48 | H20: 33.58 | I20: 34.17 | J20: 34.63 | K20: 33.7 | L20: 32.65 | M20: 152.07295
A21: 11 | B21: ADANITRANS | C21: 155.8 | D21: 155.95 | E21: 151.95 | F21: 148.10 | G21: 144.10 | H21: 159.80 | I21: 163.80 | J21: 167.65 | K21: 159.95 | L21: 152.1 | M21: 0.18952
A22: 12 | B22: ADVENZYMES | C22: 178.7 | D22: 179.00 | E22: 175.00 | F22: 171.30 | G22: 167.30 | H22: 182.70 | I22: 186.70 | J22: 190.40 | K22: 183 | L22: 175.3 | M22: 1.04586
A23: 13 | B23: AEGISCHEM | C23: 228.4 | D23: 227.40 | E23: 223.00 | F23: 217.60 | G23: 213.20 | H23: 232.80 | I23: 237.20 | J23: 242.60 | K23: 231.8 | L23: 222 | M23: 0.77457
A24: 14 | B24: AIAENG | C24: 1628.2 | D24: 1602.70 | E24: 1575.40 | F24: 1522.60 | G24: 1495.30 | H24: 1655.50 | I24: 1682.80 | J24: 1735.60 | K24: 1630 | L24: 1549.9 | M24: 0.3651
A25: 15 | B25: AJANTPHARM | C25: 995.45 | D25: 998.48 | E25: 976.97 | F25: 958.48 | G25: 936.97 | H25: 1016.97 | I25: 1038.48 | J25: 1056.97 | K25: 1020 | L25: 980 | M25: 3.30154
A26: 16 | B26: AKZOINDIA | C26: 1493.15 | D26: 1509.02 | E26: 1459.08 | F26: 1425.02 | G26: 1375.08 | H26: 1543.08 | I26: 1593.02 | J26: 1627.08 | K26: 1558.95 | L26: 1474.95 | M26: 0.04562
A27: 17 | B27: ALBK | C27: 37.15 | D27: 37.12 | E27: 36.53 | F27: 35.92 | G27: 35.33 | H27: 37.73 | I27: 38.32 | J27: 38.93 | K27: 37.7 | L27: 36.5 | M27: 27.46567
A28: 18 | B28: ALKEM | C28: 1949.45 | D28: 1948.82 | E28: 1923.63 | F28: 1897.82 | G28: 1872.63 | H28: 1974.63 | I28: 1999.82 | J28: 2025.63 | K28: 1974 | L28: 1923 | M28: 0.33714
A29: 19 | B29: ALLCARGO | C29: 99.8 | D29: 98.38 | E29: 96.42 | F29: 93.03 | G29: 91.07 | H29: 101.77 | I29: 103.73 | J29: 107.12 | K29: 100.35 | L29: 95 | M29: 1.62601
A30: 20 | B30: AMARAJABAT | C30: 772.3 | D30: 761.42 | E30: 739.88 | F30: 707.47 | G30: 685.93 | H30: 793.83 | I30: 815.37 | J30: 847.78 | K30: 782.95 | L30: 729 | M30: 4.26134
A31: 21 | B31: AMBUJACEM | C31: 192.55 | D31: 193.93 | E31: 190.42 | F31: 188.28 | G31: 184.77 | H31: 196.07 | I31: 199.58 | J31: 201.72 | K31: 197.45 | L31: 191.8 | M31: 71.80208
A32: 22 | B32: ANDHRABANK | C32: 25.8 | D32: 25.83 | E32: 25.67 | F32: 25.53 | G32: 25.37 | H32: 25.97 | I32: 26.13 | J32: 26.27 | K32: 26 | L32: 25.7 | M32: 6.37139
A33: 23 | B33: APLAPOLLO | C33: 1229.1 | D33: 1222.02 | E33: 1208.08 | F33: 1187.07 | G33: 1173.13 | H33: 1243.03 | I33: 1256.97 | J33: 1277.98 | K33: 1235.95 | L33: 1201 | M33: 0.33054
A34: 24 | B34: APLLTD | C34: 550.3 | D34: 551.37 | E34: 544.73 | F34: 539.17 | G34: 532.53 | H34: 556.93 | I34: 563.57 | J34: 569.13 | K34: 558 | L34: 545.8 | M34: 0.30996
A35: 25 | B35: APOLLOHOSP | C35: 1109.6 | D35: 1113.97 | E35: 1067.33 | F35: 1025.07 | G35: 978.43 | H35: 1156.23 | I35: 1202.87 | J35: 1245.13 | K35: 1160.6 | L35: 1071.7 | M35: 7.59796
A36: 26 | B36: APOLLOTYRE | C36: 207.05 | D36: 205.03 | E36: 201.22 | F36: 195.38 | G36: 191.57 | H36: 210.87 | I36: 214.68 | J36: 220.52 | K36: 208.85 | L36: 199.2 | M36: 30.4327
A37: 27 | B37: ARVIND | C37: 319.25 | D37: 318.88 | E37: 315.02 | F37: 310.78 | G37: 306.92 | H37: 323.12 | I37: 326.98 | J37: 331.22 | K37: 322.75 | L37: 314.65 | M37: 18.82028
A38: 28 | B38: ASAHIINDIA | C38: 286.7 | D38: 287.40 | E38: 284.80 | F38: 282.90 | G38: 280.30 | H38: 289.30 | I38: 291.90 | J38: 293.80 | K38: 290 | L38: 285.5 | M38: 0.09458
A39: 29 | B39: ASHOKA | C39: 112.6 | D39: 110.47 | E39: 107.48 | F39: 102.37 | G39: 99.38 | H39: 115.58 | I39: 118.57 | J39: 123.68 | K39: 113.45 | L39: 105.35 | M39: 6.17951
A40: 30 | B40: ASHOKLEY | C40: 112.85 | D40: 113.23 | E40: 111.07 | F40: 109.28 | G40: 107.12 | H40: 115.02 | I40: 117.18 | J40: 118.97 | K40: 115.4 | L40: 111.45 | M40: 168.084
A41: 31 | B41: ASIANPAINT | C41: 1200.05 | D41: 1194.67 | E41: 1180.38 | F41: 1160.72 | G41: 1146.43 | H41: 1214.33 | I41: 1228.62 | J41: 1248.28 | K41: 1208.95 | L41: 1175 | M41: 19.95349
A42: 32 | B42: ASTRAL | C42: 880 | D42: 879.60 | E42: 864.45 | F42: 848.90 | G42: 833.75 | H42: 895.15 | I42: 910.30 | J42: 925.85 | K42: 894.75 | L42: 864.05 | M42: 1.46316
A43: 33 | B43: ATUL | C43: 3201.35 | D43: 3186.37 | E43: 3145.03 | F43: 3088.72 | G43: 3047.38 | H43: 3242.68 | I43: 3284.02 | J43: 3340.33 | K43: 3227.7 | L43: 3130.05 | M43: 0.16037
A44: 34 | B44: AUBANK | C44: 531.15 | D44: 526.17 | E44: 517.33 | F44: 503.52 | G44: 494.68 | H44: 539.98 | I44: 548.82 | J44: 562.63 | K44: 535 | L44: 512.35 | M44: 1.93086
A45: 35 | B45: AUROPHARMA | C45: 720.95 | D45: 726.88 | E45: 711.77 | F45: 702.58 | G45: 687.47 | H45: 736.07 | I45: 751.18 | J45: 760.37 | K45: 742 | L45: 717.7 | M45: 40.89242
A46: 36 | B46: AVANTIFEED | C46: 379.7 | D46: 377.90 | E46: 372.80 | F46: 365.90 | G46: 360.80 | H46: 384.80 | I46: 389.90 | J46: 396.80 | K46: 383 | L46: 371 | M46: 1.90569
A47: 37 | B47: AXISBANK | C47: 561.05 | D47: 559.40 | E47: 554.10 | F47: 547.15 | G47: 541.85 | H47: 566.35 | I47: 571.65 | J47: 578.60 | K47: 564.7 | L47: 552.45 | M47: 130.4186
A48: 38 | B48: BAJAJ-AUTO | C48: 2477.55 | D48: 2465.42 | E48: 2432.13 | F48: 2386.72 | G48: 2353.43 | H48: 2510.83 | I48: 2544.12 | J48: 2589.53 | K48: 2498.7 | L48: 2420 | M48: 9.13688
A49: 39 | B49: BAJAJCORP | C49: 359.45 | D49: 357.62 | E49: 355.23 | F49: 351.02 | G49: 348.63 | H49: 361.83 | I49: 364.22 | J49: 368.43 | K49: 360 | L49: 353.4 | M49: 0.27991
A50: 40 | B50: BAJAJELEC | C50: 482.5 | D50: 484.78 | E50: 476.57 | F50: 470.63 | G50: 462.42 | H50: 490.72 | I50: 498.93 | J50: 504.87 | K50: 493 | L50: 478.85 | M50: 4.0269
A51: 41 | B51: BAJAJFINSV | C51: 5367.65 | D51: 5362.32 | E51: 5262.58 | F51: 5157.52 | G51: 5057.78 | H51: 5467.38 | I51: 5567.12 | J51: 5672.18 | K51: 5462.05 | L51: 5257.25 | M51: 3.45421
A52: 42 | B52: BAJAJHIND | C52: 9.85 | D52: 9.83 | E52: 9.67 | F52: 9.48 | G52: 9.32 | H52: 10.02 | I52: 10.18 | J52: 10.37 | K52: 10 | L52: 9.65 | M52: 38.42224
A53: 43 | B53: BAJAJHLDNG | C53: 2651.4 | D53: 2620.98 | E53: 2580.97 | F53: 2510.53 | G53: 2470.52 | H53: 2691.42 | I53: 2731.43 | J53: 2801.87 | K53: 2661 | L53: 2550.55 | M53: 0.47285
A54: 44 | B54: BAJFINANCE | C54: 2335 | D54: 2313.27 | E54: 2278.53 | F54: 2222.07 | G54: 2187.33 | H54: 2369.73 | I54: 2404.47 | J54: 2460.93 | K54: 2348 | L54: 2256.8 | M54: 52.01159
A55: 45 | B55: BALKRISIND | C55: 1022 | D55: 1023.72 | E55: 1000.43 | F55: 978.87 | G55: 955.58 | H55: 1045.28 | I55: 1068.57 | J55: 1090.13 | K55: 1047 | L55: 1002.15 | M55: 3.14395
A56: 46 | B56: BALLARPUR | C56: 5.9 | D56: 5.90 | E56: 5.80 | F56: 5.70 | G56: 5.60 | H56: 6.00 | I56: 6.10 | J56: 6.20 | K56: 6 | L56: 5.8 | M56: 3.48612
A57: 47 | B57: BALMLAWRIE | C57: 187.15 | D57: 187.38 | E57: 185.07 | F57: 182.98 | G57: 180.67 | H57: 189.47 | I57: 191.78 | J57: 193.87 | K57: 189.7 | L57: 185.3 | M57: 0.18805
A58: 48 | B58: BALRAMCHIN | C58: 97.65 | D58: 97.30 | E58: 95.15 | F58: 92.65 | G58: 90.50 | H58: 99.80 | I58: 101.95 | J58: 104.45 | K58: 99.45 | L58: 94.8 | M58: 53.2821
A59: 49 | B59: BANKBARODA | C59: 98.45 | D59: 99.72 | E59: 96.63 | F59: 94.82 | G59: 91.73 | H59: 101.53 | I59: 104.62 | J59: 106.43 | K59: 102.8 | L59: 97.9 | M59: 176.53402
A60: 50 | B60: BANKINDIA | C60: 74.9 | D60: 74.90 | E60: 73.20 | F60: 71.50 | G60: 69.80 | H60: 76.60 | I60: 78.30 | J60: 80.00 | K60: 76.6 | L60: 73.2 | M60: 61.55722
A61: 51 | B61: BASF | C61: 1635.3 | D61: 1644.73 | E61: 1619.67 | F61: 1604.03 | G61: 1578.97 | H61: 1660.37 | I61: 1685.43 | J61: 1701.07 | K61: 1669.8 | L61: 1629.1 | M61: 0.02269
A62: 52 | B62: BATAINDIA | C62: 923.15 | D62: 906.20 | E62: 880.45 | F62: 837.75 | G62: 812.00 | H62: 948.90 | I62: 974.65 | J62: 1017.35 | K62: 931.95 | L62: 863.5 | M62: 26.83269
A63: 53 | B63: BBTC | C63: 1187.35 | D63: 1185.78 | E63: 1161.57 | F63: 1135.78 | G63: 1111.57 | H63: 1211.57 | I63: 1235.78 | J63: 1261.57 | K63: 1210 | L63: 1160 | M63: 0.65512
A64: 54 | B64: BEL | C64: 83.35 | D64: 83.52 | E64: 81.83 | F64: 80.32 | G64: 78.63 | H64: 85.03 | I64: 86.72 | J64: 88.23 | K64: 85.2 | L64: 82 | M64: 91.13303
A65: 55 | B65: BEML | C65: 543.25 | D65: 548.75 | E65: 535.00 | F65: 526.75 | G65: 513.00 | H65: 557.00 | I65: 570.75 | J65: 579.00 | K65: 562.5 | L65: 540.5 | M65: 8.78527
A66: 56 | B66: BERGEPAINT | C66: 290.95 | D66: 286.98 | E66: 277.97 | F66: 264.98 | G66: 255.97 | H66: 299.97 | I66: 308.98 | J66: 321.97 | K66: 296 | L66: 274 | M66: 17.79571
A67: 57 | B67: BFUTILITIE | C67: 198.35 | D67: 197.45 | E67: 194.95 | F67: 191.55 | G67: 189.05 | H67: 200.85 | I67: 203.35 | J67: 206.75 | K67: 199.95 | L67: 194.05 | M67: 1.07851
A68: 58 | B68: BGRENERGY | C68: 52.7 | D68: 52.97 | E68: 51.93 | F68: 51.17 | G68: 50.13 | H68: 53.73 | I68: 54.77 | J68: 55.53 | K68: 54 | L68: 52.2 | M68: 0.65979
A69: 59 | B69: BHARATFIN | C69: 904.6 | D69: 905.72 | E69: 884.88 | F69: 865.17 | G69: 844.33 | H69: 925.43 | I69: 946.27 | J69: 965.98 | K69: 926.55 | L69: 886 | M69: 29.04049
A70: 60 | B70: BHARATFORG | C70: 546.7 | D70: 547.17 | E70: 540.58 | F70: 534.47 | G70: 527.88 | H70: 553.28 | I70: 559.87 | J70: 565.98 | K70: 553.75 | L70: 541.05 | M70: 11.33717
A71: 61 | B71: BHARTIARTL | C71: 295.55 | D71: 299.37 | E71: 288.33 | F71: 281.12 | G71: 270.08 | H71: 306.58 | I71: 317.62 | J71: 324.83 | K71: 310.4 | L71: 292.15 | M71: 153.04817
A72: 62 | B72: BHEL | C72: 70.25 | D72: 72.00 | E72: 67.50 | F72: 64.75 | G72: 60.25 | H72: 74.75 | I72: 79.25 | J72: 82.00 | K72: 76.5 | L72: 69.25 | M72: 469.14007
A73: 63 | B73: BHUSANSTL | C73: 26.05 | D73: 26.17 | E73: 25.78 | F73: 25.52 | G73: 25.13 | H73: 26.43 | I73: 26.82 | J73: 27.08 | K73: 26.55 | L73: 25.9 | M73: 4.27501
A74: 64 | B74: BIOCON | C74: 618.3 | D74: 626.87 | E74: 603.43 | F74: 588.57 | G74: 565.13 | H74: 641.73 | I74: 665.17 | J74: 680.03 | K74: 650.3 | L74: 612 | M74: 26.31638
A75: 65 | B75: BIRLACORPN | C75: 591.5 | D75: 583.52 | E75: 569.03 | F75: 546.57 | G75: 532.08 | H75: 605.98 | I75: 620.47 | J75: 642.93 | K75: 598 | L75: 561.05 | M75: 0.28744
A76: 66 | B76: BLISSGVS | C76: 163.7 | D76: 163.85 | E76: 160.50 | F76: 157.30 | G76: 153.95 | H76: 167.05 | I76: 170.40 | J76: 173.60 | K76: 167.2 | L76: 160.65 | M76: 2.63796
A77: 67 | B77: BLUEDART | C77: 2660.35 | D77: 2660.20 | E77: 2625.50 | F77: 2590.65 | G77: 2555.95 | H77: 2695.05 | I77: 2729.75 | J77: 2764.60 | K77: 2694.9 | L77: 2625.35 | M77: 0.01244
A78: 68 | B78: BLUESTARCO | C78: 518.1 | D78: 517.00 | E78: 513.10 | F78: 508.10 | G78: 504.20 | H78: 522.00 | I78: 525.90 | J78: 530.90 | K78: 520.9 | L78: 512 | M78: 0.07424
A79: 69 | B79: BOMDYEING | C79: 86.65 | D79: 86.65 | E79: 86.65 | F79: 86.65 | G79: 86.65 | H79: 86.65 | I79: 86.65 | J79: 86.65 | K79: 86.65 | L79: 86.65 | M79: 0.89386
A80: 70 | B80: BOSCHLTD | C80: 19031.8 | D80: 18717.63 | E80: 18265.27 | F80: 17498.73 | G80: 17046.37 | H80: 19484.17 | I80: 19936.53 | J80: 20703.07 | K80: 19170 | L80: 17951.1 | M80: 0.13227
A81: 71 | B81: BPCL | C81: 277 | D81: 277.83 | E81: 273.37 | F81: 269.73 | G81: 265.27 | H81: 281.47 | I81: 285.93 | J81: 289.57 | K81: 282.3 | L81: 274.2 | M81: 90.59983
A82: 72 | B82: BRFL | C82: 14.8 | D82: 15.20 | E82: 14.40 | F82: 14.00 | G82: 13.20 | H82: 15.60 | I82: 16.40 | J82: 16.80 | K82: 16 | L82: 14.8 | M82: 1.05988
A83: 73 | B83: BRIGADE | C83: 170.7 | D83: 173.25 | E83: 167.45 | F83: 164.20 | G83: 158.40 | H83: 176.50 | I83: 182.30 | J83: 185.55 | K83: 179.05 | L83: 170 | M83: 0.26888
A84: 74 | B84: BRITANNIA | C84: 5309.3 | D84: 5324.97 | E84: 5240.33 | F84: 5171.37 | G84: 5086.73 | H84: 5393.93 | I84: 5478.57 | J84: 5547.53 | K84: 5409.6 | L84: 5256 | M84: 2.48108
A85: 75 | B85: BSE | C85: 603.85 | D85: 602.88 | E85: 596.97 | F85: 590.08 | G85: 584.17 | H85: 609.77 | I85: 615.68 | J85: 622.57 | K85: 608.8 | L85: 596 | M85: 1.41634
A86: 77 | B86: CADILAHC | C86: 340.7 | D86: 344.57 | E86: 335.13 | F86: 329.57 | G86: 320.13 | H86: 350.13 | I86: 359.57 | J86: 365.13 | K86: 354 | L86: 339 | M86: 29.26363
A87: 78 | B87: CANBK | C87: 211.65 | D87: 211.47 | E87: 208.18 | F87: 204.72 | G87: 201.43 | H87: 214.93 | I87: 218.22 | J87: 221.68 | K87: 214.75 | L87: 208 | M87: 47.14863
A88: 79 | B88: CANFINHOME | C88: 256.95 | D88: 252.58 | E88: 245.77 | F88: 234.58 | G88: 227.77 | H88: 263.77 | I88: 270.58 | J88: 281.77 | K88: 259.4 | L88: 241.4 | M88: 39.97399
A89: 80 | B89: CAPF | C89: 462.1 | D89: 465.65 | E89: 456.55 | F89: 451.00 | G89: 441.90 | H89: 471.20 | I89: 480.30 | J89: 485.85 | K89: 474.75 | L89: 460.1 | M89: 4.05018
A90: 81 | B90: CAPLIPOINT | C90: 398.55 | D90: 395.87 | E90: 388.68 | F90: 378.82 | G90: 371.63 | H90: 405.73 | I90: 412.92 | J90: 422.78 | K90: 403.05 | L90: 386 | M90: 0.2016
A91: 82 | B91: CARBORUNIV | C91: 370.85 | D91: 370.22 | E91: 360.63 | F91: 350.42 | G91: 340.83 | H91: 380.43 | I91: 390.02 | J91: 400.23 | K91: 379.8 | L91: 360 | M91: 0.94267
A92: 83 | B92: CARERATING | C92: 1122.2 | D92: 1106.23 | E92: 1080.57 | F92: 1038.93 | G92: 1013.27 | H92: 1147.87 | I92: 1173.53 | J92: 1215.17 | K92: 1131.9 | L92: 1064.6 | M92: 0.32031
A93: 84 | B93: CASTROLIND | C93: 146.9 | D93: 145.63 | E93: 142.37 | F93: 137.83 | G93: 134.57 | H93: 150.17 | I93: 153.43 | J93: 157.97 | K93: 148.9 | L93: 141.1 | M93: 31.90626
A94: 85 | B94: CCL | C94: 225.95 | D94: 227.80 | E94: 223.65 | F94: 221.35 | G94: 217.20 | H94: 230.10 | I94: 234.25 | J94: 236.55 | K94: 231.95 | L94: 225.5 | M94: 0.74515
A95: 86 | B95: CDSL | C95: 239.45 | D95: 237.52 | E95: 235.03 | F95: 230.62 | G95: 228.13 | H95: 241.93 | I95: 244.42 | J95: 248.83 | K95: 240 | L95: 233.1 | M95: 0.84589
A96: 87 | B96: CEATLTD | C96: 1016 | D96: 1017.48 | E96: 997.02 | F96: 978.03 | G96: 957.57 | H96: 1036.47 | I96: 1056.93 | J96: 1075.92 | K96: 1037.95 | L96: 998.5 | M96: 7.42954
A97: 88 | B97: CENTRALBK | C97: 29.4 | D97: 29.47 | E97: 29.23 | F97: 29.07 | G97: 28.83 | H97: 29.63 | I97: 29.87 | J97: 30.03 | K97: 29.7 | L97: 29.3 | M97: 3.69823
A98: 89 | B98: CENTURYPLY | C98: 169.9 | D98: 168.57 | E98: 165.93 | F98: 161.97 | G98: 159.33 | H98: 172.53 | I98: 175.17 | J98: 179.13 | K98: 171.2 | L98: 164.6 | M98: 1.69457
A99: 90 | B99: CENTURYTEX | C99: 776.8 | D99: 772.27 | E99: 755.03 | F99: 733.27 | G99: 716.03 | H99: 794.03 | I99: 811.27 | J99: 833.03 | K99: 789.5 | L99: 750.5 | M99: 6.76192
A100: 91 | B100: CERA | C100: 2319.35 | D100: 2330.57 | E100: 2278.78 | F100: 2238.22 | G100: 2186.43 | H100: 2371.13 | I100: 2422.92 | J100: 2463.48 | K100: 2382.35 | L100: 2290 | M100: 0.05181
A101: 92 | B101: CGPOWER | C101: 36 | D101: 35.78 | E101: 35.22 | F101: 34.43 | G101: 33.87 | H101: 36.57 | I101: 37.13 | J101: 37.92 | K101: 36.35 | L101: 35 | M101: 23.09048
A102: 93 | B102: CHAMBLFERT | C102: 142.9 | D102: 142.33 | E102: 140.27 | F102: 137.63 | G102: 135.57 | H102: 144.97 | I102: 147.03 | J102: 149.67 | K102: 144.4 | L102: 139.7 | M102: 0.97347
A103: 94 | B103: CHENNPETRO | C103: 258 | D103: 259.88 | E103: 254.12 | F103: 250.23 | G103: 244.47 | H103: 263.77 | I103: 269.53 | J103: 273.42 | K103: 265.65 | L103: 256 | M103: 2.95366
A104: 95 | B104: CHOLAFIN | C104: 1180 | D104: 1174.40 | E104: 1151.70 | F104: 1123.40 | G104: 1100.70 | H104: 1202.70 | I104: 1225.40 | J104: 1253.70 | K104: 1197.1 | L104: 1146.1 | M104: 2.88159
A105: 96 | B105: CIPLA | C105: 609 | D105: 612.72 | E105: 601.43 | F105: 593.87 | G105: 582.58 | H105: 620.28 | I105: 631.57 | J105: 639.13 | K105: 624 | L105: 605.15 | M105: 57.39386
A106: 97 | B106: COALINDIA | C106: 282.2 | D106: 280.08 | E106: 276.22 | F106: 270.23 | G106: 266.37 | H106: 286.07 | I106: 289.93 | J106: 295.92 | K106: 283.95 | L106: 274.1 | M106: 43.86393
A107: 98 | B107: COCHINSHIP | C107: 380.45 | D107: 380.85 | E107: 377.10 | F107: 373.75 | G107: 370.00 | H107: 384.20 | I107: 387.95 | J107: 391.30 | K107: 384.6 | L107: 377.5 | M107: 0.75862
A108: 99 | B108: COFFEEDAY | C108: 266.35 | D108: 266.10 | E108: 262.40 | F108: 258.45 | G108: 254.75 | H108: 270.05 | I108: 273.75 | J108: 277.70 | K108: 269.8 | L108: 262.15 | M108: 1.03049
A109: 100 | B109: COLPAL | C109: 1112.2 | D109: 1112.15 | E109: 1099.60 | F109: 1087.00 | G109: 1074.45 | H109: 1124.75 | I109: 1137.30 | J109: 1149.90 | K109: 1124.7 | L109: 1099.55 | M109: 3.9422
A110: 101 | B110: CONCOR | C110: 550.15 | D110: 550.72 | E110: 541.43 | F110: 532.72 | G110: 523.43 | H110: 559.43 | I110: 568.72 | J110: 577.43 | K110: 560 | L110: 542 | M110: 40.3622
A111: 102 | B111: COROMANDEL | C111: 384.35 | D111: 384.22 | E111: 373.23 | F111: 362.12 | G111: 351.13 | H111: 395.33 | I111: 406.32 | J111: 417.43 | K111: 395.2 | L111: 373.1 | M111: 0.69655
A112: 103 | B112: COX&KINGS | C112: 181.1 | D112: 177.58 | E112: 173.52 | F112: 165.93 | G112: 161.87 | H112: 185.17 | I112: 189.23 | J112: 196.82 | K112: 181.65 | L112: 170 | M112: 0.37481
A113: 104 | B113: CRISIL | C113: 1360.5 | D113: 1358.90 | E113: 1342.80 | F113: 1325.10 | G113: 1309.00 | H113: 1376.60 | I113: 1392.70 | J113: 1410.40 | K113: 1375 | L113: 1341.2 | M113: 0.77388
A114: 105 | B114: CROMPTON | C114: 199.4 | D114: 199.82 | E114: 196.63 | F114: 193.87 | G114: 190.68 | H114: 202.58 | I114: 205.77 | J114: 208.53 | K114: 203 | L114: 197.05 | M114: 3.80462
A115: 106 | B115: CUB | C115: 171.85 | D115: 170.98 | E115: 169.27 | F115: 166.68 | G115: 164.97 | H115: 173.57 | I115: 175.28 | J115: 177.87 | K115: 172.7 | L115: 168.4 | M115: 3.26382
A116: 107 | B116: CUMMINSIND | C116: 674.6 | D116: 674.47 | E116: 664.93 | F116: 655.27 | G116: 645.73 | H116: 684.13 | I116: 693.67 | J116: 703.33 | K116: 684 | L116: 664.8 | M116: 8.33126
A117: 108 | B117: CYIENT | C117: 617.2 | D117: 616.65 | E117: 606.55 | F117: 595.90 | G117: 585.80 | H117: 627.30 | I117: 637.40 | J117: 648.05 | K117: 626.75 | L117: 606 | M117: 1.45221
A118: 109 | B118: DABUR | C118: 398.55 | D118: 400.05 | E118: 394.50 | F118: 390.45 | G118: 384.90 | H118: 404.10 | I118: 409.65 | J118: 413.70 | K118: 405.6 | L118: 396 | M118: 32.4154
A119: 110 | B119: DBCORP | C119: 162.8 | D119: 162.32 | E119: 156.63 | F119: 150.47 | G119: 144.78 | H119: 168.48 | I119: 174.17 | J119: 180.33 | K119: 168 | L119: 156.15 | M119: 3.71436
A120: 111 | B120: DBL | C120: 381.45 | D120: 387.78 | E120: 373.67 | F120: 365.88 | G120: 351.77 | H120: 395.57 | I120: 409.68 | J120: 417.47 | K120: 401.9 | L120: 380 | M120: 4.38046
A121: 112 | B121: DBREALTY | C121: 16.75 | D121: 16.85 | E121: 16.20 | F121: 15.65 | G121: 15.00 | H121: 17.40 | I121: 18.05 | J121: 18.60 | K121: 17.5 | L121: 16.3 | M121: 3.27192
A122: 113 | B122: DCAL | C122: 230.35 | D122: 227.95 | E122: 221.60 | F122: 212.85 | G122: 206.50 | H122: 236.70 | I122: 243.05 | J122: 251.80 | K122: 234.3 | L122: 219.2 | M122: 0.91229
A123: 114 | B123: DCBBANK | C123: 160.3 | D123: 159.32 | E123: 155.98 | F123: 151.67 | G123: 148.33 | H123: 163.63 | I123: 166.97 | J123: 171.28 | K123: 162.65 | L123: 155 | M123: 15.0067
A124: 115 | B124: DCMSHRIRAM | C124: 377.25 | D124: 384.83 | E124: 367.42 | F124: 357.58 | G124: 340.17 | H124: 394.67 | I124: 412.08 | J124: 421.92 | K124: 402.25 | L124: 375 | M124: 1.01643
A125: 116 | B125: DEEPAKFERT | C125: 202.95 | D125: 202.43 | E125: 200.87 | F125: 198.78 | G125: 197.22 | H125: 204.52 | I125: 206.08 | J125: 208.17 | K125: 204 | L125: 200.35 | M125: 0.41253
A126: 117 | B126: DELTACORP | C126: 213.25 | D126: 212.57 | E126: 209.78 | F126: 206.32 | G126: 203.53 | H126: 216.03 | I126: 218.82 | J126: 222.28 | K126: 215.35 | L126: 209.1 | M126: 9.60187
A127: 118 | B127: DEN | C127: 68 | D127: 67.77 | E127: 66.83 | F127: 65.67 | G127: 64.73 | H127: 68.93 | I127: 69.87 | J127: 71.03 | K127: 68.7 | L127: 66.6 | M127: 1.60595
A128: 119 | B128: DENABANK | C128: 14.65 | D128: 14.68 | E128: 14.57 | F128: 14.48 | G128: 14.37 | H128: 14.77 | I128: 14.88 | J128: 14.97 | K128: 14.8 | L128: 14.6 | M128: 4.35405
A129: 120 | B129: DHFL | C129: 183.85 | D129: 182.65 | E129: 177.30 | F129: 170.75 | G129: 165.40 | H129: 189.20 | I129: 194.55 | J129: 201.10 | K129: 188 | L129: 176.1 | M129: 272.68536
A130: 121 | B130: DISHTV | C130: 36.95 | D130: 39.58 | E130: 33.27 | F130: 29.58 | G130: 23.27 | H130: 43.27 | I130: 49.58 | J130: 53.27 | K130: 45.9 | L130: 35.9 | M130: 296.37816
A131: 122 | B131: DIVISLAB | C131: 1253 | D131: 1247.73 | E131: 1230.47 | F131: 1207.93 | G131: 1190.67 | H131: 1270.27 | I131: 1287.53 | J131: 1310.07 | K131: 1265 | L131: 1225.2 | M131: 10.84503
A132: 123 | B132: DIXON | C132: 2105.3 | D132: 2132.75 | E132: 2070.55 | F132: 2035.80 | G132: 1973.60 | H132: 2167.50 | I132: 2229.70 | J132: 2264.45 | K132: 2194.95 | L132: 2098 | M132: 0.08403
A133: 124 | B133: DLF | C133: 154.95 | D133: 154.37 | E133: 151.43 | F133: 147.92 | G133: 144.98 | H133: 157.88 | I133: 160.82 | J133: 164.33 | K133: 157.3 | L133: 150.85 | M133: 47.32368
A134: 125 | B134: DMART | C134: 1187.1 | D134: 1179.73 | E134: 1150.47 | F134: 1113.83 | G134: 1084.57 | H134: 1216.37 | I134: 1245.63 | J134: 1282.27 | K134: 1209 | L134: 1143.1 | M134: 6.98215
A135: 126 | B135: DREDGECORP | C135: 303.35 | D135: 305.55 | E135: 299.15 | F135: 294.95 | G135: 288.55 | H135: 309.75 | I135: 316.15 | J135: 320.35 | K135: 311.95 | L135: 301.35 | M135: 0.64035
A136: 127 | B136: DRREDDY | C136: 2390.5 | D136: 2405.15 | E136: 2365.35 | F136: 2340.20 | G136: 2300.40 | H136: 2430.30 | I136: 2470.10 | J136: 2495.25 | K136: 2444.95 | L136: 2380 | M136: 13.393
A137: 128 | B137: ECLERX | C137: 1056.2 | D137: 1054.73 | E137: 1046.47 | F137: 1036.73 | G137: 1028.47 | H137: 1064.47 | I137: 1072.73 | J137: 1082.47 | K137: 1063 | L137: 1045 | M137: 0.02296
A138: 129 | B138: EDELWEISS | C138: 133.9 | D138: 136.65 | E138: 131.15 | F138: 128.40 | G138: 122.90 | H138: 139.40 | I138: 144.90 | J138: 147.65 | K138: 142.15 | L138: 133.9 | M138: 30.59571
A139: 130 | B139: EICHERMOT | C139: 22092.2 | D139: 22139.83 | E139: 21852.37 | F139: 21612.53 | G139: 21325.07 | H139: 22379.67 | I139: 22667.13 | J139: 22906.97 | K139: 22427.3 | L139: 21900 | M139: 1.29819
A140: 131 | B140: EIDPARRY | C140: 221 | D140: 220.33 | E140: 217.67 | F140: 214.33 | G140: 211.67 | H140: 223.67 | I140: 226.33 | J140: 229.67 | K140: 223 | L140: 217 | M140: 1.5631
A141: 132 | B141: EIHOTEL | C141: 158.3 | D141: 159.07 | E141: 156.73 | F141: 155.17 | G141: 152.83 | H141: 160.63 | I141: 162.97 | J141: 164.53 | K141: 161.4 | L141: 157.5 | M141: 1.37895
A142: 133 | B142: EMAMILTD | C142: 405.4 | D142: 407.27 | E142: 398.58 | F142: 391.77 | G142: 383.08 | H142: 414.08 | I142: 422.77 | J142: 429.58 | K142: 415.95 | L142: 400.45 | M142: 1.33233
A143: 134 | B143: ENDURANCE | C143: 1082.15 | D143: 1084.80 | E143: 1062.60 | F143: 1043.05 | G143: 1020.85 | H143: 1104.35 | I143: 1126.55 | J143: 1146.10 | K143: 1107 | L143: 1065.25 | M143: 0.30294
A144: 135 | B144: ENGINERSIN | C144: 112.25 | D144: 112.93 | E144: 111.12 | F144: 109.98 | G144: 108.17 | H144: 114.07 | I144: 115.88 | J144: 117.02 | K144: 114.75 | L144: 111.8 | M144: 53.6296
A145: 136 | B145: EQUITAS | C145: 128.25 | D145: 126.22 | E145: 123.53 | F145: 118.82 | G145: 116.13 | H145: 130.93 | I145: 133.62 | J145: 138.33 | K145: 128.9 | L145: 121.5 | M145: 16.58688
A146: 137 | B146: ERIS | C146: 690.65 | D146: 687.25 | E146: 669.65 | F146: 648.65 | G146: 631.05 | H146: 708.25 | I146: 725.85 | J146: 746.85 | K146: 704.85 | L146: 666.25 | M146: 0.18352
A147: 138 | B147: EROSMEDIA | C147: 69.3 | D147: 68.92 | E147: 68.03 | F147: 66.77 | G147: 65.88 | H147: 70.18 | I147: 71.07 | J147: 72.33 | K147: 69.8 | L147: 67.65 | M147: 2.15491
A148: 139 | B148: ESCORTS | C148: 569.95 | D148: 573.23 | E148: 560.67 | F148: 551.38 | G148: 538.82 | H148: 582.52 | I148: 595.08 | J148: 604.37 | K148: 585.8 | L148: 563.95 | M148: 13.09931
A149: 140 | B149: EVEREADY | C149: 194.25 | D149: 193.92 | E149: 190.33 | F149: 186.42 | G149: 182.83 | H149: 197.83 | I149: 201.42 | J149: 205.33 | K149: 197.5 | L149: 190 | M149: 0.56924
A150: 141 | B150: EXIDEIND | C150: 255.5 | D150: 254.95 | E150: 249.90 | F150: 244.30 | G150: 239.25 | H150: 260.55 | I150: 265.60 | J150: 271.20 | K150: 260 | L150: 249.35 | M150: 21.62509
A151: 142 | B151: FCONSUMER | C151: 41.15 | D151: 41.25 | E151: 40.80 | F151: 40.45 | G151: 40.00 | H151: 41.60 | I151: 42.05 | J151: 42.40 | K151: 41.7 | L151: 40.9 | M151: 9.87603
A152: 143 | B152: FEDERALBNK | C152: 80.65 | D152: 80.57 | E152: 79.38 | F152: 78.12 | G152: 76.93 | H152: 81.83 | I152: 83.02 | J152: 84.28 | K152: 81.75 | L152: 79.3 | M152: 89.19625
A153: 144 | B153: FINCABLES | C153: 472.95 | D153: 477.08 | E153: 465.87 | F153: 458.78 | G153: 447.57 | H153: 484.17 | I153: 495.38 | J153: 502.47 | K153: 488.3 | L153: 470 | M153: 0.12357
A154: 145 | B154: FINPIPE | C154: 527.75 | D154: 519.62 | E154: 503.23 | F154: 478.72 | G154: 462.33 | H154: 544.13 | I154: 560.52 | J154: 585.03 | K154: 536 | L154: 495.1 | M154: 0.26764
A155: 146 | B155: FLFL | C155: 368.9 | D155: 369.03 | E155: 363.32 | F155: 357.73 | G155: 352.02 | H155: 374.62 | I155: 380.33 | J155: 385.92 | K155: 374.75 | L155: 363.45 | M155: 0.11145
A156: 147 | B156: FSL | C156: 57.55 | D156: 57.78 | E156: 57.07 | F156: 56.58 | G156: 55.87 | H156: 58.27 | I156: 58.98 | J156: 59.47 | K156: 58.5 | L156: 57.3 | M156: 11.35433
A157: 148 | B157: GAIL | C157: 339.75 | D157: 340.25 | E157: 335.50 | F157: 331.25 | G157: 326.50 | H157: 344.50 | I157: 349.25 | J157: 353.50 | K157: 345 | L157: 336 | M157: 230.67001
A158: 149 | B158: GATI | C158: 72.5 | D158: 72.35 | E158: 71.35 | F158: 70.20 | G158: 69.20 | H158: 73.50 | I158: 74.50 | J158: 75.65 | K158: 73.35 | L158: 71.2 | M158: 3.02224
A159: 150 | B159: GDL | C159: 137.85 | D159: 138.23 | E159: 135.97 | F159: 134.08 | G159: 131.82 | H159: 140.12 | I159: 142.38 | J159: 144.27 | K159: 140.5 | L159: 136.35 | M159: 0.4492
A160: 151 | B160: GEPIL | C160: 821.45 | D160: 811.90 | E160: 795.80 | F160: 770.15 | G160: 754.05 | H160: 837.55 | I160: 853.65 | J160: 879.30 | K160: 828 | L160: 786.25 | M160: 0.19086
A161: 152 | B161: GESHIP | C161: 287.5 | D161: 291.37 | E161: 281.23 | F161: 274.97 | G161: 264.83 | H161: 297.63 | I161: 307.77 | J161: 314.03 | K161: 301.5 | L161: 285.1 | M161: 0.39094
A162: 153 | B162: GET&D | C162: 229.6 | D162: 230.00 | E162: 226.65 | F162: 223.70 | G162: 220.35 | H162: 232.95 | I162: 236.30 | J162: 239.25 | K162: 233.35 | L162: 227.05 | M162: 0.07785
A163: 154 | B163: GHCL | C163: 193.1 | D163: 193.60 | E163: 188.50 | F163: 183.90 | G163: 178.80 | H163: 198.20 | I163: 203.30 | J163: 207.90 | K163: 198.7 | L163: 189 | M163: 1.48154
A164: 155 | B164: GICRE | C164: 315.95 | D164: 319.52 | E164: 309.03 | F164: 302.12 | G164: 291.63 | H164: 326.43 | I164: 336.92 | J164: 343.83 | K164: 330 | L164: 312.6 | M164: 0.51389
A165: 156 | B165: GILLETTE | C165: 6581.75 | D165: 6610.70 | E165: 6506.40 | F165: 6431.05 | G165: 6326.75 | H165: 6686.05 | I165: 6790.35 | J165: 6865.70 | K165: 6715 | L165: 6535.35 | M165: 0.0457
A166: 157 | B166: GLAXO | C166: 1280.7 | D166: 1285.25 | E166: 1266.50 | F166: 1252.30 | G166: 1233.55 | H166: 1299.45 | I166: 1318.20 | J166: 1332.40 | K166: 1304 | L166: 1271.05 | M166: 0.16347
A167: 158 | B167: GLENMARK | C167: 612.6 | D167: 611.92 | E167: 600.93 | F167: 589.27 | G167: 578.28 | H167: 623.58 | I167: 634.57 | J167: 646.23 | K167: 622.9 | L167: 600.25 | M167: 8.13966
A168: 159 | B168: GMDCLTD | C168: 89.6 | D168: 90.05 | E168: 88.35 | F168: 87.10 | G168: 85.40 | H168: 91.30 | I168: 93.00 | J168: 94.25 | K168: 91.75 | L168: 88.8 | M168: 2.28308
A169: 160 | B169: GMRINFRA | C169: 15.65 | D169: 15.82 | E169: 15.33 | F169: 15.02 | G169: 14.53 | H169: 16.13 | I169: 16.62 | J169: 16.93 | K169: 16.3 | L169: 15.5 | M169: 331.58326
A170: 161 | B170: GNFC | C170: 329.95 | D170: 330.80 | E170: 326.40 | F170: 322.85 | G170: 318.45 | H170: 334.35 | I170: 338.75 | J170: 342.30 | K170: 335.2 | L170: 327.25 | M170: 1.75848
A171: 162 | B171: GODFRYPHLP | C171: 718.8 | D171: 715.60 | E171: 701.35 | F171: 683.90 | G171: 669.65 | H171: 733.05 | I171: 747.30 | J171: 764.75 | K171: 729.85 | L171: 698.15 | M171: 1.47524
A172: 163 | B172: GODREJAGRO | C172: 510.25 | D172: 509.70 | E172: 505.55 | F172: 500.85 | G172: 496.70 | H172: 514.40 | I172: 518.55 | J172: 523.25 | K172: 513.85 | L172: 505 | M172: 0.30774
A173: 164 | B173: GODREJCP | C173: 701.75 | D173: 706.57 | E173: 682.33 | F173: 662.92 | G173: 638.68 | H173: 725.98 | I173: 750.22 | J173: 769.63 | K173: 730.8 | L173: 687.15 | M173: 16.82499
A174: 165 | B174: GODREJIND | C174: 449 | D174: 446.15 | E174: 437.35 | F174: 425.70 | G174: 416.90 | H174: 457.80 | I174: 466.60 | J174: 478.25 | K174: 454.95 | L174: 434.5 | M174: 4.52854
A175: 166 | B175: GODREJPROP | C175: 511.65 | D175: 517.15 | E175: 498.30 | F175: 484.95 | G175: 466.10 | H175: 530.50 | I175: 549.35 | J175: 562.70 | K175: 536 | L175: 503.8 | M175: 1.09059
A176: 167 | B176: GPPL | C176: 100.05 | D176: 101.12 | E176: 98.23 | F176: 96.42 | G176: 93.53 | H176: 102.93 | I176: 105.82 | J176: 107.63 | K176: 104 | L176: 99.3 | M176: 0.7833
A177: 168 | B177: GRANULES | C177: 91.85 | D177: 92.77 | E177: 90.28 | F177: 88.72 | G177: 86.23 | H177: 94.33 | I177: 96.82 | J177: 98.38 | K177: 95.25 | L177: 91.2 | M177: 35.21218
A178: 169 | B178: GRAPHITE | C178: 941.4 | D178: 928.20 | E178: 898.40 | F178: 855.40 | G178: 825.60 | H178: 971.20 | I178: 1001.00 | J178: 1044.00 | K178: 958 | L178: 885.2 | M178: 7.60735
A179: 170 | B179: GRASIM | C179: 784.7 | D179: 788.03 | E179: 775.67 | F179: 766.63 | G179: 754.27 | H179: 797.07 | I179: 809.43 | J179: 818.47 | K179: 800.4 | L179: 779 | M179: 20.25198
A180: 171 | B180: GREAVESCOT | C180: 117.25 | D180: 116.02 | E180: 114.23 | F180: 111.22 | G180: 109.43 | H180: 119.03 | I180: 120.82 | J180: 123.83 | K180: 117.8 | L180: 113 | M180: 2.31306
A181: 172 | B181: GREENPLY | C181: 122.55 | D181: 121.17 | E181: 117.33 | F181: 112.12 | G181: 108.28 | H181: 126.38 | I181: 130.22 | J181: 135.43 | K181: 125 | L181: 115.95 | M181: 6.51977
A182: 173 | B182: GRUH | C182: 276.65 | D182: 270.92 | E182: 262.33 | F182: 248.02 | G182: 239.43 | H182: 285.23 | I182: 293.82 | J182: 308.13 | K182: 279.5 | L182: 256.6 | M182: 7.65164
A183: 174 | B183: GSFC | C183: 93.4 | D183: 93.95 | E183: 92.20 | F183: 91.00 | G183: 89.25 | H183: 95.15 | I183: 96.90 | J183: 98.10 | K183: 95.7 | L183: 92.75 | M183: 8.864
A184: 175 | B184: GSKCONS | C184: 7000.35 | D184: 6940.57 | E184: 6861.13 | F184: 6721.92 | G184: 6642.48 | H184: 7079.78 | I184: 7159.22 | J184: 7298.43 | K184: 7020 | L184: 6801.35 | M184: 0.07224
A185: 176 | B185: GSPL | C185: 167.1 | D185: 166.20 | E185: 162.10 | F185: 157.10 | G185: 153.00 | H185: 171.20 | I185: 175.30 | J185: 180.30 | K185: 170.3 | L185: 161.2 | M185: 2.8052
A186: 177 | B186: GUJALKALI | C186: 571.5 | D186: 569.52 | E186: 559.08 | F186: 546.67 | G186: 536.23 | H186: 581.93 | I186: 592.37 | J186: 604.78 | K186: 579.95 | L186: 557.1 | M186: 0.42246
A187: 178 | B187: GUJFLUORO | C187: 868.55 | D187: 856.85 | E187: 838.70 | F187: 808.85 | G187: 790.70 | H187: 886.70 | I187: 904.85 | J187: 934.70 | K187: 875 | L187: 827 | M187: 1.60659
A188: 179 | B188: GUJGASLTD | C188: 610.9 | D188: 615.82 | E188: 603.13 | F188: 595.37 | G188: 582.68 | H188: 623.58 | I188: 636.27 | J188: 644.03 | K188: 628.5 | L188: 608.05 | M188: 0.30976
A189: 180 | B189: GULFOILLUB | C189: 701 | D189: 704.02 | E189: 693.13 | F189: 685.27 | G189: 674.38 | H189: 711.88 | I189: 722.77 | J189: 730.63 | K189: 714.9 | L189: 696.15 | M189: 0.05045
A190: 181 | B190: GVKPIL | C190: 6.95 | D190: 6.90 | E190: 6.75 | F190: 6.55 | G190: 6.40 | H190: 7.10 | I190: 7.25 | J190: 7.45 | K190: 7.05 | L190: 6.7 | M190: 14.06863
A191: 182 | B191: HATHWAY | C191: 29.9 | D191: 29.90 | E191: 29.65 | F191: 29.40 | G191: 29.15 | H191: 30.15 | I191: 30.40 | J191: 30.65 | K191: 30.15 | L191: 29.65 | M191: 11.6775
A192: 183 | B192: HATSUN | C192: 572.9 | D192: 574.30 | E192: 563.60 | F192: 554.30 | G192: 543.60 | H192: 583.60 | I192: 594.30 | J192: 603.60 | K192: 585 | L192: 565 | M192: 0.059
A193: 184 | B193: HAVELLS | C193: 599.3 | D193: 599.45 | E193: 590.95 | F193: 582.60 | G193: 574.10 | H193: 607.80 | I193: 616.30 | J193: 624.65 | K193: 607.95 | L193: 591.1 | M193: 12.20249
A194: 185 | B194: HCC | C194: 11.85 | D194: 11.78 | E194: 11.57 | F194: 11.28 | G194: 11.07 | H194: 12.07 | I194: 12.28 | J194: 12.57 | K194: 12 | L194: 11.5 | M194: 50.29458
A195: 186 | B195: HCL-INSYS | C195: 25.95 | D195: 25.53 | E195: 24.32 | F195: 22.68 | G195: 21.47 | H195: 27.17 | I195: 28.38 | J195: 30.02 | K195: 26.75 | L195: 23.9 | M195: 38.29566
A196: 187 | B196: HCLTECH | C196: 1004.85 | D196: 994.77 | E196: 978.08 | F196: 951.32 | G196: 934.63 | H196: 1021.53 | I196: 1038.22 | J196: 1064.98 | K196: 1011.45 | L196: 968 | M196: 30.88129
A197: 188 | B197: HDFC | C197: 1694.45 | D197: 1706.50 | E197: 1673.00 | F197: 1651.55 | G197: 1618.05 | H197: 1727.95 | I197: 1761.45 | J197: 1782.90 | K197: 1740 | L197: 1685.05 | M197: 44.35395
A198: 189 | B198: HDFCBANK | C198: 1968.8 | D198: 1978.28 | E198: 1952.97 | F198: 1937.13 | G198: 1911.82 | H198: 1994.12 | I198: 2019.43 | J198: 2035.27 | K198: 2003.6 | L198: 1962.45 | M198: 74.61764
A199: 190 | B199: HDIL | C199: 18.8 | D199: 18.83 | E199: 18.52 | F199: 18.23 | G199: 17.92 | H199: 19.12 | I199: 19.43 | J199: 19.72 | K199: 19.15 | L199: 18.55 | M199: 18.45242
A200: 191 | B200: HEG | C200: 4053.55 | D200: 4027.17 | E200: 3876.38 | F200: 3699.22 | G200: 3548.43 | H200: 4204.33 | I200: 4355.12 | J200: 4532.28 | K200: 4177.95 | L200: 3850 | M200: 3.98771
A201: 192 | B201: HEIDELBERG | C201: 129.6 | D201: 128.17 | E201: 123.33 | F201: 117.07 | G201: 112.23 | H201: 134.43 | I201: 139.27 | J201: 145.53 | K201: 133 | L201: 121.9 | M201: 1.83876
A202: 193 | B202: HERITGFOOD | C202: 432.4 | D202: 436.48 | E202: 416.22 | F202: 400.03 | G202: 379.77 | H202: 452.67 | I202: 472.93 | J202: 489.12 | K202: 456.75 | L202: 420.3 | M202: 0.45296
A203: 194 | B203: HEROMOTOCO | C203: 2695.1 | D203: 2686.03 | E203: 2657.07 | F203: 2619.03 | G203: 2590.07 | H203: 2724.07 | I203: 2753.03 | J203: 2791.07 | K203: 2715 | L203: 2648 | M203: 7.00158
A204: 195 | B204: HEXAWARE | C204: 331.6 | D204: 328.65 | E204: 319.50 | F204: 307.40 | G204: 298.25 | H204: 340.75 | I204: 349.90 | J204: 362.00 | K204: 337.8 | L204: 316.55 | M204: 38.6349
A205: 196 | B205: HFCL | C205: 19.7 | D205: 19.65 | E205: 19.40 | F205: 19.10 | G205: 18.85 | H205: 19.95 | I205: 20.20 | J205: 20.50 | K205: 19.9 | L205: 19.35 | M205: 29.62533
A206: 197 | B206: HIMATSEIDE | C206: 223.9 | D206: 223.95 | E206: 221.95 | F206: 220.00 | G206: 218.00 | H206: 225.90 | I206: 227.90 | J206: 229.85 | K206: 225.95 | L206: 222 | M206: 0.11135
... 304 more rows

Sheet Bulk Deals
E6: Back To Main Page
A7: Subject : | B7: BULK DEAL | D7: =Main!B10 -> 2018-10-26
A9: Date | B9: Scrip code | C9: Scrip Name | D9: Client Name | E9: Buy / Sell | F9: Quantity Traded | G9: Trade Price / Wt.Avg.trade price | H9: Exchange
A10: 2018-10-25 | B10: 531673 | C10: ANKIN | D10: ANKUR ANAND | E10: BUY | F10: 24,983 | G10: 13 | H10: BSE
A11: 2018-10-25 | B11: 538716 | C11: ARYACAPM | D11: REKHA MUKESH SHAH | E11: BUY | F11: 95,000 | G11: 23 | H11: BSE
A12: 2018-10-25 | B12: 538716 | C12: ARYACAPM | D12: BABULAL VADILAL SHAH | E12: SELL | F12: 100,000 | G12: 23 | H12: BSE
A13: 2018-10-25 | B13: 540024 | C13: ASHARI | D13: MANOJKUMAR GUNVANTRAI SOMANI | E13: SELL | F13: 85,084 | G13: 33.07 | H13: BSE
A14: 2018-10-25 | B14: 540024 | C14: ASHARI | D14: MANOJKUMAR GUNVANTRAI SOMANI | E14: BUY | F14: 85,084 | G14: 33.07 | H14: BSE
A15: 2018-10-25 | B15: 540024 | C15: ASHARI | D15: VIRPAL SINGH | E15: SELL | F15: 50,196 | G15: 33.09 | H15: BSE
A16: 2018-10-25 | B16: 540024 | C16: ASHARI | D16: EURO PLUS CAPITAL LIMITED | E16: BUY | F16: 60,000 | G16: 33 | H16: BSE
A17: 2018-10-25 | B17: 541178 | C17: BENARA | D17: AMARKUMAR ODHAVJI DHAMECHA | E17: BUY | F17: 100,000 | G17: 55 | H17: BSE
A18: 2018-10-25 | B18: 539853 | C18: GOLDENCAP | D18: MILIND VASANT JOSHI . | E18: BUY | F18: 41,450 | G18: 26.6 | H18: BSE
A19: 2018-10-25 | B19: 539853 | C19: GOLDENCAP | D19: OMKAR RAJEEV GADRE | E19: BUY | F19: 40,200 | G19: 26.6 | H19: BSE
A20: 2018-10-25 | B20: 539853 | C20: GOLDENCAP | D20: ARVIND SHANTILAL SHAH | E20: SELL | F20: 81,650 | G20: 26.6 | H20: BSE
A21: 2018-10-25 | B21: 536709 | C21: INDRENEW | D21: KETAN ROOPCHAND JAIN | E21: BUY | F21: 16,020 | G21: 16.2 | H21: BSE
A22: 2018-10-25 | B22: 536709 | C22: INDRENEW | D22: RICHA ROOPCHAND JAIN | E22: BUY | F22: 16,020 | G22: 16.2 | H22: BSE
A23: 2018-10-25 | B23: 536709 | C23: INDRENEW | D23: BALDEVKUMAR BHAGWAN VARMA | E23: SELL | F23: 65,280 | G23: 16 | H23: BSE
A24: 2018-10-25 | B24: 536709 | C24: INDRENEW | D24: LAJU H DASWANI | E24: SELL | F24: 25,000 | G24: 16 | H24: BSE
A25: 2018-10-25 | B25: 536709 | C25: INDRENEW | D25: SURESH LEKHRAJ PURSWANEY | E25: SELL | F25: 16,225 | G25: 16.19 | H25: BSE
A26: 2018-10-25 | B26: 536709 | C26: INDRENEW | D26: ABIRAMI M ARUNACHALAM | E26: SELL | F26: 60,000 | G26: 16.21 | H26: BSE
A27: 2018-10-25 | B27: 541983 | C27: INNOVATIVE | D27: ORION RETAIL PVT LTD | E27: SELL | F27: 60,000 | G27: 96.5 | H27: BSE
A28: 2018-10-25 | B28: 541983 | C28: INNOVATIVE | D28: ORION RETAIL PVT LTD | E28: BUY | F28: 60,000 | G28: 96.56 | H28: BSE
A29: 2018-10-25 | B29: 540416 | C29: OCTAWARE | D29: OVERSKUD MULTI ASSET MANAGEMENT PRIVATE LIMITED | E29: BUY | F29: 113,600 | G29: 92 | H29: BSE
A30: 2018-10-25 | B30: 540416 | C30: OCTAWARE | D30: BABULAL VADILAL SHAH | E30: SELL | F30: 62,400 | G30: 92.07 | H30: BSE
A31: 2018-10-25 | B31: 540416 | C31: OCTAWARE | D31: SHAH BABULAL VADILAL HUF | E31: SELL | F31: 48,000 | G31: 92.1 | H31: BSE
A32: 2018-10-25 | B32: 531802 | C32: PRERINFRA | D32: VARSHA SHAH | E32: BUY | F32: 109,701 | G32: 18.15 | H32: BSE
A33: 2018-10-25 | B33: 531802 | C33: PRERINFRA | D33: AMANBHAI AMULAKHBHAI VALANI | E33: SELL | F33: 128,398 | G33: 18.15 | H33: BSE
A34: 2018-10-25 | B34: 540796 | C34: RATNABHUMI | D34: SHAH MUKESHKUMAR BABULAL | E34: BUY | F34: 102,000 | G34: 44 | H34: BSE
A35: 2018-10-25 | B35: 540796 | C35: RATNABHUMI | D35: MUKESH COMMOTRADE LTD | E35: SELL | F35: 122,000 | G35: 43.99 | H35: BSE
A36: 2018-10-25 | B36: 539520 | C36: SHAILJA | D36: NEERAJ KUMAR SINGH | E36: BUY | F36: 25,218 | G36: 18.74 | H36: BSE
A37: 2018-10-25 | B37: 542019 | C37: SHUBHAM | D37: PATEL BHAGVATPRASAD MANIL AL (HUF) | E37: SELL | F37: 45,000 | G37: 42.04 | H37: BSE
A38: 2018-10-25 | B38: 542019 | C38: SHUBHAM | D38: BHAGWATPRASAD MANILAL PATEL | E38: SELL | F38: 60,000 | G38: 42.1 | H38: BSE
A39: 2018-10-25 | B39: 542019 | C39: SHUBHAM | D39: GAURAV JITENDRAKUMAR SHAH (HUF) | E39: BUY | F39: 45,000 | G39: 42.04 | H39: BSE
A40: 2018-10-25 | B40: 542019 | C40: SHUBHAM | D40: HITENDRA KUMAR KEWALCHAND CHOPRA | E40: BUY | F40: 36,000 | G40: 42.1 | H40: BSE
A41: 2018-10-25 | B41: 542046 | C41: VIEL | D41: ARDI INVESTMENT AND TRADING COMPANY LIMITED | E41: BUY | F41: 170,000 | G41: 51.8 | H41: BSE
A42: 2018-10-25 | B42: 542046 | C42: VIEL | D42: PINALBEN R. SHAH | E42: BUY | F42: 58,000 | G42: 51.25 | H42: BSE
A43: 2018-10-25 | B43: 542046 | C43: VIEL | D43: PINALBEN R. SHAH | E43: SELL | F43: 20,000 | G43: 51.25 | H43: BSE
A44: 2018-10-25 | B44: 531518 | C44: VIKASPROP | D44: PUNEET | E44: SELL | F44: 1,500,000 | G44: 1.71 | H44: BSE
A45: 2018-10-25 | B45: AKASH | C45: Akash Infra-Projects Ltd. | D45: RAKESH RAMESHCHANDRA PATEL HUF | E45: BUY | F45: 43,000 | G45: 129.53 | H45: NSE
A46: 2018-10-25 | B46: BHARATFIN | C46: Bharat Fin. Inc. Ltd. | D46: ROUTE ONE FUND I LP | E46: BUY | F46: 802,000 | G46: 914.17 | H46: NSE
A47: 2018-10-25 | B47: DHFL | C47: Dewan Housing Fin Corp | D47: SHAASTRA SECURITIES TRADING PRIVATE LIMITED | E47: BUY | F47: 2,010,194 | G47: 181.48 | H47: NSE
A48: 2018-10-25 | B48: JETAIRWAYS | C48: Jet Airways (India) Ltd. | D48: SHAASTRA SECURITIES TRADING PRIVATE LIMITED | E48: BUY | F48: 611,306 | G48: 223.06 | H48: NSE
A49: 2018-10-25 | B49: JPASSOCIAT | C49: Jaiprakash Associates Lim | D49: SKYVEIL TRADE SOLUTIONS LLP | E49: BUY | F49: 12,384,635 | G49: 6.15 | H49: NSE
A50: 2018-10-25 | B50: MANAPPURAM | C50: Manappuram Finance Ltd | D50: AB SICAV I - INDIA GROWTH PORTFOLIO | E50: BUY | F50: 7,768,570 | G50: 72.85 | H50: NSE
A51: 2018-10-25 | B51: MCX | C51: Multi Commodity Exchange | D51: GRAVITON RESEARCH CAPITAL LLP | E51: BUY | F51: 219,070 | G51: 738.27 | H51: NSE
A52: 2018-10-25 | B52: MCX | C52: Multi Commodity Exchange | D52: SHAASTRA SECURITIES TRADING PRIVATE LIMITED | E52: BUY | F52: 281,804 | G52: 744.93 | H52: NSE
A53: 2018-10-25 | B53: VAISHALI | C53: VAISHALI PHARMA LIMITED | D53: VIKRAM JAYANTILAL | E53: BUY | F53: 40,000 | G53: 51 | H53: NSE
A54: 2018-10-25 | B54: DHFL | C54: Dewan Housing Fin Corp | D54: SHAASTRA SECURITIES TRADING PRIVATE LIMITED | E54: SELL | F54: 2,010,194 | G54: 181.57 | H54: NSE
A55: 2018-10-25 | B55: JETAIRWAYS | C55: Jet Airways (India) Ltd. | D55: SHAASTRA SECURITIES TRADING PRIVATE LIMITED | E55: SELL | F55: 611,306 | G55: 223.29 | H55: NSE
A56: 2018-10-25 | B56: JPASSOCIAT | C56: Jaiprakash Associates Lim | D56: SKYVEIL TRADE SOLUTIONS LLP | E56: SELL | F56: 9,290,635 | G56: 6.15 | H56: NSE
A57: 2018-10-25 | B57: MANAPPURAM | C57: Manappuram Finance Ltd | D57: ALLIANCEBERNSTEIN INDIA GROWTH (MAURITIUS) LIMITED | E57: SELL | F57: 7,768,570 | G57: 72.85 | H57: NSE
A58: 2018-10-25 | B58: MASTEK | C58: Mastek Ltd | D58: KIFS ENTERPRISE | E58: SELL | F58: 200,000 | G58: 405.25 | H58: NSE
A59: 2018-10-25 | B59: MCX | C59: Multi Commodity Exchange | D59: GRAVITON RESEARCH CAPITAL LLP | E59: SELL | F59: 282,070 | G59: 733.74 | H59: NSE
A60: 2018-10-25 | B60: MCX | C60: Multi Commodity Exchange | D60: SHAASTRA SECURITIES TRADING PRIVATE LIMITED | E60: SELL | F60: 281,804 | G60: 744.48 | H60: NSE

Sheet Call Tracker (Equity & F&O)
M5: Back To Main Page
A6: Retail Research Technical Calls & Fundamental Performance Report for the month of October -2018
M7: =Main!B10 -> 2018-10-26
B8: Positional Call
A9: Sr.no | B9: Date | D9: Company | E9: Rec | F9: Rec Price | G9: Stop Loss*** | H9: Call Closed At | I9: Target | J9: Remark | K9: Profit / Loss per Share | L9: Gain / Loss % | M9: Status | N9: Closed Date | O9: NSE Closed Price
A10: 1 | B10: 2018-09-24 | D10: SUNPHARMA | E10: Buy | F10: 632.5 | G10: 610 | H10: 605 | I10: 670-680 | J10: Loss of Rs. 27.50/- | K10: =H10-F10 -> -27.5 | L10: =K10/F10 -> -4.35% | M10: Unsuccessful | N10: 2018-10-04 | R10: H
A11: 2 | B11: 2018-09-26 | D11: SBIN | E11: Buy | F11: 266 | G11: 249.7 | H11: 274.5 | I11: 285-295 | J11: Profit of Rs. 8.50/- | K11: =H11-F11 -> 8.5 | L11: =K11/F11 -> 3.20% | M11: Successful | N11: 2018-10-01 | R11: R
A12: 3 | B12: 2018-09-27 | D12: ITC | E12: Buy | F12: 291.5 | G12: 278 | H12: 301.5 | I12: 320 | J12: Profit of Rs. 10/- | K12: 10 | L12: =K12/F12 -> 3.43% | M12: Successful | N12: 2018-10-01 | R12: H
A13: 4 | B13: 2018-09-28 | D13: RBLBANK | E13: Buy | F13: 520 | G13: 499 | H13: 538 | I13: 570-580 | J13: Profit of Rs. 18/- | K13: 18 | L13: =K13/F13 -> 3.46% | M13: Successful | N13: 2018-10-03 | R13: H
A14: 5 | B14: 2018-09-28 | D14: PIDILITIND | E14: Buy | F14: 1049.5 | G14: 1017.7 | H14: 998 | I14: 1100-1120 | J14: Loss of Rs. 51.50/- | K14: -51.5 | L14: =K14/F14 -> -4.91% | M14: Unsuccessful | N14: 2018-10-03 | R14: R
A15: 6 | B15: 2018-10-01 | D15: M&MFIN | E15: Buy | F15: 400 | G15: 379 | H15: 414 | I15: 440 | J15: Profit of Rs. 14/- | K15: 14 | L15: =K15/F15 -> 3.50% | M15: Successful | N15: 2018-10-01 | R15: H
A16: 7 | B16: 2018-10-01 | D16: CONCOR | E16: Buy | F16: 634 | G16: 598.7 | H16: 659 | I16: 690-700 | J16: Profit of Rs. 25/- | K16: 25 | L16: 3.94% | M16: Successful | N16: 2018-10-01 | R16: R
A17: 8 | B17: 2018-10-03 | D17: SUDARSCHEM | E17: Buy | F17: 402 | G17: 384.4 | H17: 384.4 | I17: 430-440 | J17: Loss of Rs. 17.60/- | K17: =H17-F17 -> -17.6 | L17: -4.38% | M17: Unsuccessful | N17: 2018-10-04 | R17: R
A18: 9 | B18: 2018-10-03 | D18: CEATLTD | E18: Buy | F18: 1133 | G18: 1078 | H18: 1073 | I18: 1200-1220 | J18: Loss of Rs. 60/- | K18: =H18-F18 -> -60 | L18: =K18/F18 -> -5.30% | M18: Unsuccessful | N18: 2018-10-04 | R18: H
A19: 10 | B19: 2018-10-03 | D19: INDUSINDBK | E19: Buy | F19: 1655 | G19: 1597.7 | H19: 1570 | I19: 1760-1780 | J19: Loss of Rs. 85/- | K19: =H19-F19 -> -85 | L19: =K19/F19 -> -5.14% | M19: Unsuccessful | N19: 2018-10-04 | R19: R
A20: 11 | B20: 2018-10-04 | D20: RBLBANK | E20: Buy | F20: 512.55 | G20: 489 | H20: 492 | I20: 550-560 | J20: Loss of Rs. 20.55/- | K20: =H20-F20 -> -20.55 | L20: =K20/F20 -> -4.01% | M20: Unsuccessful | N20: 2018-10-05 | R20: H
A21: 12 | B21: 2018-10-05 | D21: ITC | E21: Buy | F21: 283 | G21: 274 | H21: 270 | I21: 300 | J21: Loss of Rs. 13/- | K21: =H21-F21 -> -13 | L21: =K21/F21 -> -4.59% | M21: Unsuccessful | N21: 2018-10-09 | R21: H
A22: 13 | B22: 2018-10-08 | D22: RBLBANK | E22: Buy | F22: 498.5 | G22: 479 | H22: 514.5 | I22: 540-550 | J22: Profit of Rs. 16/- | K22: 16 | L22: 3.21% | M22: Successful | N22: 2018-10-10 | R22: H
A23: 14 | B23: 2018-10-10 | D23: SBIN | E23: Buy | F23: 263 | G23: 249.7 | H23: 272.5 | I23: 285-290 | J23: Profit of Rs. 9.5/- | K23: =H23-F23 -> 9.5 | L23: =K23/F23 -> 3.61% | M23: Successful | N23: 2018-10-10 | R23: R
A24: 15 | B24: 2018-10-10 | D24: KPIT | E24: Buy | F24: 200.5 | G24: 189.7 | H24: 211.5 | I24: 218-222 | J24: Profit of Rs. 11/- | K24: 11 | L24: 5.49% | M24: Successful | N24: 2018-10-15 | R24: R
A25: 16 | B25: 2018-10-10 | D25: ASIANPAINT | E25: Buy | F25: 1207.5 | G25: 1148 | H25: 1249 | I25: 1280-1300 | J25: Profit of Rs. 41.5/- | K25: =H25-F25 -> 41.5 | L25: =K25/F25 -> 3.44% | M25: Successful | N25: 2018-10-12 | R25: H
A26: 17 | B26: 2018-10-10 | D26: MARICO | E26: Buy | F26: 301 | G26: 289.7 | H26: 310.5 | I26: 325-330 | J26: Profit of Rs. 9.5/- | K26: =H26-F26 -> 9.5 | L26: =K26/F26 -> 3.16% | M26: Successful | N26: 2018-10-12 | R26: R
A27: 18 | B27: 2018-10-10 | D27: DABUR | E27: Buy | F27: 407 | G27: 389 | H27: 420.5 | I27: 445 | J27: Profit of Rs. 13.5/- | K27: =H27-F27 -> 13.5 | L27: =K27/F27 -> 3.32% | M27: Successful | N27: 2018-10-17 | R27: H
A28: 19 | B28: 2018-10-11 | D28: RBLBANK | E28: Buy | F28: 511 | G28: 493 | H28: 525.5 | I28: 545-555 | J28: Profit of Rs. 14.50/- | K28: =H28-F28 -> 14.5 | L28: =K28/F28 -> 2.84% | M28: Successful | N28: 2018-10-11 | R28: H
A29: 20 | B29: 2018-10-11 | D29: MCDOWELL-N | E29: Buy | F29: 462.5 | G29: 436.6 | H29: 478.5 | I29: 500-510 | J29: Profit of Rs. 16/- | K29: =H29-F29 -> 16 | L29: =K29/F29 -> 3.46% | M29: Successful | N29: 2018-10-11 | R29: R
A30: 21 | B30: 2018-10-12 | D30: SIEMENS | E30: Buy{} | F30: 900 | G30: 853 | H30: 936.75 | I30: 980-1000 | J30: Profit of Rs. 36.75/- | K30: 36.75 | L30: 4.08% | M30: Successful | N30: 2018-10-16 | R30: R
A31: 22 | B31: 2018-10-15 | D31: ASIANPAINT | E31: Buy | F31: 1245 | G31: 1190 | H31: 1283.5 | I31: 1320-1350 | J31: Profit of Rs. 38.5/- | K31: =H31-F31 -> 38.5 | L31: =K31/F31 -> 3.09% | M31: Successful | N31: 2018-10-19 | R31: H
A32: 23 | B32: 2018-10-16 | D32: MCDOWELL-N | E32: Sell{} | F32: 527.5 | G32: 551 | H32: 505.75 | I32: 490-480 | J32: Profit of Rs. 21.75/- | K32: =F32-H32 -> 21.75 | L32: =K32/F32 -> 4.12% | M32: Successful | N32: 2018-10-23 | R32: R
A33: 24 | B33: 2018-10-16 | D33: INDUSINDBK | E33: Buy | F33: 1635 | G33: 1569.6 | H33: 1535 | I33: 1750-1770 | J33: Loss of Rs. 100/- | K33: =H33-F33 -> -100 | L33: -6.12% | M33: Unsuccessful | N33: 2018-10-22 | R33: R
A34: 25 | B34: 2018-10-16 | D34: ENGINERSIN | E34: Sell{} | F34: 118.5 | G34: 125.6 | H34: 113.75 | I34: 107-103 | J34: Profit of Rs.4.5/- | K34: =F34-H34 -> 4.75 | L34: =K34/F34 -> 4.01% | M34: Successful | N34: 2018-10-19 | R34: R
A35: 26 | B35: 2018-10-17 | D35: BAJFINANCE | E35: Buy | F35: 2210 | G35: 2119 | H35: 2085 | I35: 2350-2400 | J35: Loss of Rs. 125/- | K35: =H35-F35 -> -125 | L35: -5.66% | M35: Unsuccessful | N35: 2018-10-19 | R35: H
A36: 27 | B36: 2018-10-19 | D36: PEL | E36: Buy | F36: 2120 | G36: 2010 | H36: 2010 | I36: 2300-2330 | J36: Loss of Rs. 110/- | K36: =H36-F36 -> -110 | L36: =K36/F36 -> -5.19% | M36: Unsuccessful | N36: 2018-10-19 | R36: R
A37: 28 | B37: 2018-10-19 | D37: SIEMENS | E37: Buy | F37: 890-895 | G37: 853 | I37: 980-1000 | J37: Open | O37: =VLOOKUP(D37,Sheet2!A7:F1632,6,0) -> 878.8 | R37: R
A38: 29 | B38: 2018-10-19 | D38: RBLBANK | E38: Buy | F38: 517 | G38: 495 | H38: 495 | I38: 560-570 | J38: Loss of Rs. 22/- | K38: =H38-F38 -> -22 | L38: =K38/F38 -> -4.26% | M38: Unsuccessful | N38: 2018-10-22 | R38: H
A39: 30 | B39: 2018-10-19 | D39: HINDZINC | E39: Sell | F39: 290.5 | G39: 302 | H39: 284 | I39: 270-260 | J39: Profit of Rs.6.5/- | K39: =F39-H39 -> 6.5 | L39: =K39/F39 -> 2.24% | M39: Successful | N39: 2018-10-22 | R39: H
A40: 31 | B40: 2018-10-23 | D40: TORNTPHARM | E40: Buy | F40: 1565-1580 | G40: 1495 | I40: 1700 | J40: Open | O40: =VLOOKUP(D40,Sheet2!A10:F1635,6,0) -> 1579 | R40: H
A41: 32 | B41: 2018-10-23 | D41: DABUR | E41: Buy | F41: 403-407 | G41: 388 | I41: 430-440 | J41: Open | O41: =VLOOKUP(D41,Sheet2!A11:F1636,6,0) -> 398.55 | R41: H
A42: 33 | B42: 2018-10-25 | D42: SUNPHARMA | E42: Buy | F42: 566-572 | G42: 528 | I42: 620-630 | J42: Open | O42: =VLOOKUP(D42,Sheet2!A12:F1637,6,0) -> 558.75 | R42: H
A47: CLBS = Closing Basis *** | F47: Reinitiated $
A48: Dividend adjusted <> | F48: Revised stoploss #
A49: Part book {}
A50: Master Trade High Risk
A51: Sr.no | B51: Date | D51: Company | E51: Rec | F51: Rec Price | G51: Stop Loss | H51: Call Closed At | I51: Target | J51: Remark | K51: Profit / Loss per share | L51: Gain / Loss per Lot | M51: Lot | N51: Status | O51: Closed Date
A52: 1 | B52: 2018-09-28 | D52: HDFCBANK OCT FUT | E52: Buy | F52: 2020 | G52: 1980 | H52: 2051.5 | I52: 2100 | J52: Profit of Rs 19.50/- | K52: =H52-F52 -> 31.5 | L52: 9750 | M52: 500 | N52: Successful | O52: 2018-10-01 | R52: H
D53: HDFCBANK OCT 2060 CE | E53: Sell | F53: 23 | H53: 35 | K53: =F53-H53 -> -12
A54: 2 | B54: 2018-10-01 | D54: NIFTY OCT FUT | E54: Buy | F54: 10920 | G54: 10780 | H54: 11030 | I54: 11200 | J54: Profit of Rs 85/- | K54: =H54-F54 -> 110 | L54: 6375 | M54: 75 | N54: Successful | O54: 2018-10-01 | R54: H
D55: NIFTY OCT 11100 CE | E55: Sell | F55: 112.5 | H55: 137.5 | K55: =F55-H55 -> -25
A56: 3 | B56: 2018-10-03 | D56: NIFTY OCT FUT | E56: Buy | F56: 10952.5 | G56: 10850 | H56: 10780 | I56: 11150 | J56: Loss of Rs.172.5/- | K56: =H56-F56 -> -172.5 | L56: =M56*K56 -> -12937.5 | M56: 75 | N56: Unsuccessful | O56: 2018-10-04 | R56: H
A57: 4 | B57: 2018-10-03 | D57: MARUTI OCT FUT | E57: Buy | F57: 7310 | G57: 7117 | H57: 7010 | I57: 7650-7700 | J57: Loss of Rs.300/- | K57: =H57-F57 -> -300 | L57: =M57*K57 -> -22500 | M57: 75 | N57: Unsuccessful | O57: 2018-10-05 | R57: R
A58: 5 | B58: 2018-10-03 | D58: RELIANCE OCT FUT | E58: Buy | F58: 1222.5 | G58: 1195 | H58: 1195 | I58: 1270-1280 | J58: Loss of Rs.16/- | K58: =H58-F58 -> -27.5 | L58: =-16*M58 -> -16000 | M58: 1000 | N58: Unsuccessful | O58: 2018-10-04 | R58: H
D59: RELIANCE OCT 1260 CE | E59: Sell | F59: 26 | H59: 14.5 | K59: =F59-H59 -> 11.5
A60: 6 | B60: 2018-10-05 | D60: NIFTY OCT FUT | E60: Buy | F60: 10535 | G60: 10400 | H60: 10410 | I60: 10800 | J60: Loss of Rs.55/- | K60: =H60-F60 -> -125 | L60: =-55*75 -> -4125 | M60: 75 | N60: Unsuccessful | O60: 2018-10-05 | R60: H
D61: NIFTY OCT 10700 CE | E61: Sell | F61: 132.5 | H61: 62.5 | K61: =F61-H61 -> 70
A62: 7 | B62: 2018-10-08 | D62: RECLTD OCT FUT | E62: Buy | F62: 100.25 | G62: 97 | H62: 102.4 | I62: 106 | J62: Profit of Rs 1.8/- | K62: =H62-F62 -> 2.15 | L62: =1.8*6000 -> 10800 | M62: 6000 | N62: Successful | O62: 2018-10-08 | R62: N
D63: RECLTD OCT 10700 CE | E63: Sell | F63: 3.3 | H63: 3.65 | K63: =F63-H63 -> -0.35
A64: 8 | B64: 2018-10-08 | D64: INFRATEL OCT FUT | E64: Sell | F64: 265.5 | G64: 275 | H64: 274.5 | I64: 250 | J64: Loss of Rs.5/- | K64: -9 | L64: =-5*1700 -> -8500 | M64: 1700 | N64: Unsuccessful | O64: 2018-10-10 | R64: H
D65: INFRATEL OCT 255 PE | E65: Sell | F65: 6.5 | H65: 2.5 | K65: 4
A66: 9 | B66: 2018-10-08 | D66: ONGC OCT FUT | E66: Sell | F66: 147.5 | G66: 153.5 | H66: 151 | I66: 140 | J66: Loss of Rs.0.75/- | K66: -3.5 | L66: =-0.75*3750 -> -2812.5 | M66: 3750 | N66: Unsuccessful | O66: 2018-10-11 | R66: H
D67: ONGC OCT 140 PE | E67: Sell | F67: 4.25 | H67: 1.5 | K67: 2.75
A68: 10 | B68: 2018-10-10 | D68: UPL OCT FUT | E68: Sell | F68: 619 | G68: 634 | H68: 600 | I68: 590 | J68: Profit of Rs 18/- | K68: 19 | L68: =18*1200 -> 21600 | M68: 1700 | N68: Successful | O68: 2018-10-11 | R68: N
D69: UPL OCT 580 PE | E69: Sell | F69: 12.5 | H69: 13.5 | K69: -1
A70: 11 | B70: 2018-10-12 | D70: NIFTY OCT FUT | E70: Sell | F70: 10450 | G70: 10615 | H70: 10675 | I70: 10300 | J70: Loss of Rs.145/- | K70: -225 | L70: =-145*75 -> -10875 | M70: 75 | N70: Unsuccessful | O70: 2018-10-17 | R70: H
D71: NIFTY OCT 10300 PE | E71: Sell | F71: 92.5 | H71: 12.5 | K71: =F71-H71 -> 80
A83: Master Trade Medium Risk
A84: Sr.no | B84: Date | D84: Company | E84: Rec | F84: Rec Price | G84: Stop Loss | H84: Call Closed At | I84: Target | J84: Remark | K84: Profit/ Loss per lot | L84: Gain / Loss per Lot | M84: Lot | N84: Status | O84: Closed Date
A85: 1 | B85: 2018-10-11 | D85: NIFTY OCT 10500 CE | E85: Buy | F85: 42 | G85: 0 | H85: 57 | I85: 100 | J85: Profit of Rs.15/- | K85: =H85-F85 -> 15 | L85: =M85*K85 -> 1125 | M85: 75 | N85: Successful | O85: 2018-10-11 | R85: H
A86: 2 | B86: 2018-10-11 | D86: NIFTY OCT 10500 CE | E86: Buy | F86: 42 | G86: 0 | H86: 55 | I86: 100 | J86: Profit of Rs.13/- | K86: =H86-F86 -> 13 | L86: =M86*K86 -> 975 | M86: 75 | N86: Successful | O86: 2018-10-11 | R86: H
A87: 3 | B87: 2018-10-17 | D87: MARUTI OCT 7300 CE | E87: Buy | F87: 67.5 | H87: 0 | I87: 140 | J87: Loss of Rs. 67.5/- | K87: =H87-F87 -> -67.5 | L87: =M87*K87 -> -5062.5 | M87: 75 | N87: Unsuccessful | O87: 2018-10-25 | R87: H
A88: 4 | B88: 2018-10-19 | D88: NIFTY OCT 10450 CE | E88: Buy | F88: 42 | G88: 0 | H88: 0 | I88: 100 | J88: Loss of Rs. 42/- | K88: -42 | L88: -3150 | M88: 75 | N88: Unsuccessful | O88: 2018-10-25 | R88: H
A89: 5 | B89: 2018-10-23 | D89: ZEEL OCT 450 CE | E89: Buy | F89: 2.5 | H89: 0 | I89: 6.00-7.00 | J89: Loss of Rs. 2.5/- | K89: -2.5 | L89: -3250 | M89: 1300 | N89: Unsuccessful | O89: 2018-10-25 | R89: N
B97: Smart Delivery Trade
A98: Sr.no | B98: Date | D98: Company | E98: Rec | F98: Rec Price | G98: Stop Loss*** | H98: Call Closed At | I98: Target | J98: Remark | K98: Profit / Loss per Share | L98: Gain / Loss % | M98: Status | N98: Closed Date | O98: NSE Closed Price
A99: 1 | B99: 2018-09-27 | D99: COLPAL | E99: Buy | F99: 1094 | G99: 1058 | H99: 1050 | I99: 1140-1160 | J99: Loss of Rs. 44/- | K99: =H99-F99 -> -44 | L99: =K99/F99 -> -4.02% | M99: Unsuccessful | N99: 2018-10-08 | R99: H
A100: 2 | B100: 2018-10-03 | D100: BAJFINACE | E100: Buy | F100: 2210 | G100: 2140 | H100: 2275 | I100: 2300-2350 | J100: Profit of Rs. 65/- | K100: 65 | L100: =K100/F100 -> 2.94% | M100: Successful | N100: 2018-10-03 | R100: H
A101: 3 | B101: 2018-10-03 | D101: ADVENZYMES | E101: Buy | F101: 186 | G101: 179.7 | H101: 174.5 | I101: 197-200 | J101: Loss of Rs. 11.5/- | K101: -11.5 | L101: -6.18% | M101: Unsuccessful | N101: 2018-10-08 | R101: R
A102: 4 | B102: 2018-10-03 | D102: LT | E102: Buy | F102: 1249.5 | G102: 1195 | H102: 1277.5 | I102: 1330-1350 | J102: Profit of Rs. 28/- | K102: 28 | L102: =K102/F102 -> 2.24% | M102: Successful | N102: 2018-10-04 | R102: H
A103: 5 | B103: 2018-10-04 | D103: BAJFINANCE | E103: Buy | F103: 2180 | G103: 2135 | H103: 2135 | I103: 2250-2300 | J103: Loss of Rs. 45/- | K103: -45 | L103: =K103/F103 -> -2.06% | M103: Unsuccessful | N103: 2018-10-05 | R103: H
A104: 6 | B104: 2018-10-08 | D104: BAJFINANCE | E104: Buy | F104: 1980 | G104: 1935 | H104: 2047.5 | I104: 2100 | J104: Profit of Rs. 67/- | K104: 67.5 | L104: 3.41% | M104: Successful | N104: 2018-10-08 | R104: H
A105: 7 | B105: 2018-10-08 | D105: HDFCBANK | E105: Buy | F105: 1960 | G105: 1890 | H105: 2018 | I105: 2150-2170 | J105: Profit of Rs. 58/- | K105: =H105-F105 -> 58 | L105: =K105/F105 -> 2.96% | M105: Successful | N105: 2018-10-16 | R105: H
A106: 8 | B106: 2018-10-08 | D106: L&TFH | E106: Buy | F106: 122 | G106: 117 | H106: 117.5 | I106: 130-132 | J106: Loss of Rs. 4.5/- | K106: =H106-F106 -> -4.5 | L106: =K106/F106 -> -3.69% | M106: Unsuccessful | N106: 2018-10-08 | R106: H
A107: 9 | B107: 2018-10-08 | D107: JINDALSTEEL | E107: Sell | F107: 172 | G107: 178 | H107: 167.5 | I107: 160 | J107: Profit of Rs.4.5/- | K107: =F107-H107 -> 4.5 | L107: 2.62% | M107: Successful | N107: 2018-10-08 | R107: H
A108: 10 | B108: 2018-10-09 | D108: BAJFINACE | E108: Buy | F108: 1970 | G108: 1920 | H108: 2015 | I108: 2100 | J108: Profit of Rs. 45/- | K108: =H108-F108 -> 45 | L108: =K108/F108 -> 2.28% | M108: Successful | N108: 2018-10-09 | R108: H
A109: 11 | B109: 2018-10-09 | D109: BALKRISIND | E109: Buy | F109: 994 | G109: 957 | H109: 1028.5 | I109: 1050-1070 | J109: Profit of Rs. 34.5/- | K109: 34.5 | L109: 3.47% | M109: Successful | N109: 2018-10-10 | R109: H
A110: 12 | B110: 2018-10-09 | D110: JINDALSTEEL | E110: Sell | F110: 174 | G110: 182 | H110: 173.5 | I110: 160 | J110: Profit of Rs.0.5/- | K110: =F110-H110 -> 0.5 | L110: =K110/F110 -> 0.29% | M110: Neutral | N110: 2018-10-09 | R110: H
A111: 13 | B111: 2018-10-10 | D111: BIOCON | E111: Buy | F111: 600 | G111: 576 | H111: 617.5 | I111: 640-650 | J111: Profit of Rs. 17.5/- | K111: =H111-F111 -> 17.5 | L111: 2.92% | M111: Successful | N111: 2018-10-10 | R111: R
A112: 12 | B112: 2018-10-11 | D112: BAJFINACE | E112: Buy | F112: 2115 | G112: 2040 | H112: 2195 | I112: 2220-2250 | J112: Profit of Rs. 80/- | K112: =H112-F112 -> 80 | L112: =K112/F112 -> 3.78% | M112: Successful | N112: 2018-10-11 | R112: H
A113: 13 | B113: 2018-10-11 | D113: BALKRISIND | E113: Buy | F113: 1010 | G113: 970 | H113: 1037.5 | I113: 1060-1080 | J113: Profit of Rs. 27.50/- | K113: 27.5 | L113: 2.72% | M113: Successful | N113: 2018-10-11 | R113: H
A114: 14 | B114: 2018-10-11 | D114: EXIDEIND | E114: Buy | F114: 250.5 | G114: 239.7 | H114: 259 | I114: 274-280 | J114: Profit of Rs. 8.50/- | K114: =H114-F114 -> 8.5 | L114: =K114/F114 -> 3.39% | M114: Successful | N114: 2018-10-11 | R114: R
A115: 15 | B115: 2018-10-11 | D115: SUNPHARMA | E115: Buy | F115: 596 | G115: 578 | H115: 601 | I115: 620-630 | J115: Profit of Rs. 5/- | K115: 5 | L115: 0.84% | M115: Neutral | N115: 2018-10-16 | R115: H
A116: 16 | B116: 2018-10-12 | D116: BALKRISIND | E116: Buy | F116: 1020 | G116: 978 | H116: 1047.5 | I116: 1100 | J116: Profit of Rs. 27.50/- | K116: =H116-F116 -> 27.5 | L116: =K116/F116 -> 2.70% | M116: Successful | N116: 2018-10-12 | R116: H
A117: 17 | B117: 2018-10-12 | D117: NIITTECH | E117: Buy | F117: 1060 | G117: 1024.7 | H117: 1092.5 | I117: 1140-1160 | J117: Profit of Rs. 32.5/- | K117: 32.5 | L117: 3.07% | M117: Successful | N117: 2018-10-15 | R117: R
A118: 18 | B118: 2018-10-15 | D118: AUROPHARMA | E118: Buy | F118: 747 | G118: 718 | H118: 769.5 | I118: 800-810 | J118: Profit of Rs. 22.5/- | K118: =H118-F118 -> 22.5 | L118: =K118/F118 -> 3.01% | M118: Successful | N118: 2018-10-16 | R118: H
A119: 19 | B119: 2018-10-15 | D119: SUNTV | E119: Buy | F119: 659.5 | G119: 635.7 | H119: 680.5 | I119: 700-710 | J119: Profit of Rs. 21/- | K119: =H119-F119 -> 21 | L119: =K119/F119 -> 3.18% | M119: Successful | N119: 2018-10-16 | R119: R
A120: 20 | B120: 2018-10-16 | D120: UJJIVAN | E120: Buy | F120: 251 | G120: 241 | H120: 241 | I120: 265-270 | J120: Loss of Rs. 10/- | K120: -10 | L120: -3.98% | M120: Unsuccessful | N120: 2018-10-17 | R120: R
A121: 21 | B121: 2018-10-17 | D121: BIOCON | E121: Sell | F121: 643 | G121: 662.6 | H121: 677.5 | I121: 610-600 | J121: Loss of Rs. 34.5/- | K121: =H121-F121 -> 34.5 | L121: =K121/F121 -> 5.37% | M121: Unsuccessful | N121: 2018-10-22 | R121: R
A122: 22 | B122: 2018-10-22 | D122: GLENMARK | E122: Sell | F122: 614-618 | G122: 642 | I122: 580 | J122: Open | O122: =VLOOKUP(D122,Sheet2!A92:F1717,6,0) -> 612.6 | R122: H
A123: 23 | B123: 2018-10-22 | D123: VEDL | E123: Sell | F123: 216.5 | G123: 225 | H123: 210.5 | I123: 208 | J123: Profit of Rs.6/- | K123: =F123-H123 -> 6 | L123: =K123/F123 -> 2.77% | M123: Successful | N123: 2018-10-23 | R123: H
A124: 24 | B124: 2018-10-23 | D124: BRITANNIA | E124: Buy | F124: 5590 | G124: 5414 | H124: 5330 | I124: 5900-5950 | J124: Loss of Rs. 260/- | K124: =H124-F124 -> -260 | L124: -4.65% | M124: Unsuccessful | N124: 2018-10-24 | R124: R
A125: 25 | B125: 2018-10-23 | D125: BALKRISIND | E125: Buy | F125: 1008 | G125: 970 | H125: 1039 | I125: 1070-1080 | J125: Profit of Rs.31/- | K125: 31 | L125: 3.08% | M125: Successful | N125: 2018-10-25 | R125: H
A126: 26 | B126: 2018-10-23 | D126: OFSS | E126: Buy | F126: 3710 | G126: 3577 | H126: 3535 | I126: 3970-3800 | J126: Loss of Rs. 175/- | K126: =H126-F126 -> -175 | L126: =K126/F126 -> -4.72% | M126: Unsuccessful | N126: 2018-10-24 | R126: R
A127: 27 | B127: 2018-10-24 | D127: BATAINDIA | E127: Buy | F127: 865 | G127: 832 | H127: 899 | I127: 920-930 | J127: Profit of Rs.34/- | K127: 34 | L127: 3.93% | M127: Successful | N127: 2018-10-25 | R127: R
A128: 28 | B128: 2018-10-24 | D128: PIDILITIND | E128: Buy | F128: 928-934 | G128: 896 | I128: 990-1000 | J128: Open | O128: =VLOOKUP(D128,Sheet2!A98:F1723,6,0) -> 933.6 | R128: R
A129: 29 | B129: 2018-10-24 | D129: EIHOTEL | E129: Buy | F129: 160-161 | G129: 154 | I129: 168-172 | J129: Open | O129: =VLOOKUP(D129,Sheet2!A99:F1724,6,0) -> 158.3 | R129: R
A130: 30 | B130: 2018-10-25 | D130: VEDL | E130: Buy | F130: 203-204 | G130: 197 | I130: 216-220 | J130: Open | O130: =VLOOKUP(D130,Sheet2!A100:F1725,6,0) -> 204.6 | R130: R
A131: 31 | B131: 2018-10-25 | D131: RELIANCE | E131: Buy | F131: 1020-1030 | G131: 990 | I131: 1070-1080 | J131: Open | O131: =VLOOKUP(D131,Sheet2!A101:F1726,6,0) -> 1030.8 | R131: H
A132: 32 | B132: 2018-10-26 | D132: MARUTI | E132: Buy | F132: 6640-6680 | G132: 6470 | I132: 6900-7000 | J132: Open | O132: =VLOOKUP(D132,Sheet2!A102:F1727,6,0) -> 6723.2 | R132: H
A138: CLBS = Closing Basis *** | F138: Reinitiated $
A139: Dividend adjusted <> | F139: Revised stoploss #
B142: Momentum Call
A143: Sr.no | B143: Date | D143: Company | E143: Rec | F143: Rec Price | G143: Stop Loss | H143: Call Closed At | I143: Target | J143: Remark | K143: Profit / Loss per Share/Lot | L143: Gain / Loss % | M143: Gain / Loss per Lot | N143: Lot | O143: Status | P143: Closed Date
A144: 1 | B144: 2018-10-01 | D144: INFRATEL OCT FUT | E144: Buy | F144: 268 | G144: 260 | H144: 260 | I144: 282 | J144: Loss of Rs.8/- | K144: =H144-F144 -> -8 | M144: =N144*K144 -> -13600 | N144: 1700 | O144: Unsuccessful | P144: 2018-10-03 | R144: N
A145: 2 | B145: 2018-10-03 | D145: TATASTEEL OCT FUT | E145: Buy | F145: 591.5 | G145: 579 | H145: 578 | I145: 610 | J145: Loss of Rs.13.5/- | K145: =H145-F145 -> -13.5 | M145: -14323.5 | N145: 1061 | O145: Unsuccessful | P145: 2018-10-04 | R145: N
A146: 3 | B146: 2018-10-03 | D146: UPL OCT FUT | E146: Buy | F146: 647 | G146: 636 | H146: 640 | I146: 665-670 | J146: Loss of Rs.7/- | K146: =H146-F146 -> -7 | M146: -8400 | N146: 1200 | O146: Unsuccessful | P146: 2018-10-04 | R146: N
A147: 4 | B147: 2018-10-08 | D147: INFRATEL OCT FUT | E147: Buy | F147: 256.5 | G147: 251 | H147: 262 | I147: 265-270 | J147: Profit of Rs.5.5/- | K147: =H147-F147 -> 5.5 | M147: 9350 | N147: 1700 | O147: Successful | P147: 2018-10-08 | R147: N
A148: 5 | B148: 2018-10-08 | D148: HDFC OCT FUT | E148: Sell | F148: 1672.5 | G148: 1702 | H148: 1659 | I148: 1620 | J148: Profit of Rs.13.5/- | K148: =F148-H148 -> 13.5 | M148: 6750 | N148: 500 | O148: Successful | P148: 2018-10-08 | R148: H
A149: 6 | B149: 2018-10-09 | D149: NIITTECH OCT FUT | E149: Buy | F149: 1132.5 | G149: 1115 | H149: 1115 | I149: 1160 | J149: Loss of Rs.17.50/- | K149: =H149-F149 -> -17.5 | M149: -13125 | N149: 750 | O149: Unsuccessful | P149: 2018-10-09 | R149: R
A150: 7 | B150: 2018-10-09 | D150: DIVISLAB OCT FUT | E150: Buy | F150: 1269 | G150: 1255 | H150: 1255 | I150: 1300 | J150: Loss of Rs.14/- | K150: =H150-F150 -> -14 | M150: -11200 | N150: 800 | O150: Unsuccessful | P150: 2018-10-09 | R150: N
A151: 8 | B151: 2018-10-09 | D151: APOLLOHOSP OCT FUT | E151: Buy | F151: 1087.5 | G151: 1058 | H151: 1106.5 | I151: 1150 | J151: Profit of Rs.19/- | K151: =H151-F151 -> 19 | M151: 9500 | N151: 500 | O151: Successful | P151: 2018-10-09 | R151: R
A152: 9 | B152: 2018-10-09 | D152: DIVISLAB OCT FUT | E152: Buy | F152: 1252.5 | G152: 1238 | H152: 1265 | I152: 1300 | J152: Profit of Rs.12.50/- | K152: =H152-F152 -> 12.5 | M152: 10000 | N152: 800 | O152: Successful | P152: 2018-10-09 | R152: R
A153: 10 | B153: 2018-10-10 | D153: VEDL OCT FUT | E153: Sell | F153: 220.5 | G153: 227.3 | H153: 202 | I153: 208-205 | J153: Profit of Rs.18.50/- | K153: =F153-H153 -> 18.5 | M153: =N153*K153 -> 32375 | N153: 1750 | O153: Successful | P153: 2018-10-11 | R153: R
A154: 11 | B154: 2018-10-10 | D154: KOTAKBANK OCT FUT | E154: Buy | F154: 1139 | G154: 1127 | H154: 1120 | I154: 1170 | J154: Loss of Rs.19/- | K154: =H154-F154 -> -19 | M154: -15200 | N154: 800 | O154: Unsuccessful | P154: 2018-10-11 | R154: H
A155: 12 | B155: 2018-10-10 | D155: HINDUNILVR OCT FUT | E155: Buy | F155: 1520 | G155: 1498.7 | H155: 1533.5 | I155: 1550-1560 | J155: Profit of Rs.13.50/- | K155: 13.5 | M155: =N155*K155 -> 8100 | N155: 600 | O155: Successful | P155: 2018-10-10 | R155: R
A156: 13 | B156: 2018-10-10 | D156: CIPLA OCT FUT | E156: Buy | F156: 639 | G156: 627 | H156: 627.5 | I156: 660 | J156: Loss of Rs.11.50/- | K156: -11.5 | M156: -11500 | N156: 1000 | O156: Unsuccessful | P156: 2018-10-11 | R156: R
A157: 14 | B157: 2018-10-11 | D157: BAJAJ-AUTO OCT FUT | E157: Buy | F157: 2550 | G157: 2497 | H157: 2585 | I157: 2650 | J157: Profit of Rs.35/- | K157: 35 | M157: 8750 | N157: 250 | O157: Successful | P157: 2018-10-12 | R157: R
A158: 15 | B158: 2018-10-11 | D158: RAYMOND OCT FUT | E158: Buy | F158: 638 | G158: 623 | H158: 647.5 | I158: 665 | J158: Profit of Rs.9.50/- | K158: 9.5 | M158: =N158*K158 -> 7600 | N158: 800 | O158: Successful | P158: 2018-10-11 | R158: N
A159: 16 | B159: 2018-10-11 | D159: DIVISLAB OCT FUT | E159: Buy | F159: 1283.5 | G159: 1268 | H159: 1268 | I159: 1310 | J159: Loss of Rs.15.50/- | K159: -15.5 | M159: -12400 | N159: 800 | O159: Unsuccessful | P159: 2018-10-11 | R159: R
A160: 17 | B160: 2018-10-12 | D160: APOLLOHOSP OCT FUT | E160: Buy | F160: 1106.5 | G160: 1080 | H160: 1123 | I160: 1160 | J160: Profit of Rs.16.5/- | K160: 16.5 | M160: 8250 | N160: 500 | O160: Successful | P160: 2018-10-12 | R160: N
A161: 18 | B161: 2018-10-12 | D161: ARVIND OCT FUT | E161: Buy | F161: 329.5 | G161: 323 | H161: 323.5 | I161: 345 | J161: Loss of Rs.6/- | K161: =H161-F161 -> -6 | M161: =N161*K161 -> -12000 | N161: 2000 | O161: Unsuccessful | P161: 2018-10-15 | R161: N
A162: 19 | B162: 2018-10-12 | D162: HINDALCO OCT FUT | E162: Sell | F162: 226 | G162: 229.8 | H162: 229.8 | I162: 220-218 | J162: Loss of Rs 3.8/- | K162: =F162-H162 -> -3.8 | M162: =N162*K162 -> -13300 | N162: 3500 | O162: Unsuccessful | P162: 2018-10-15 | R162: R
A163: 20 | B163: 2018-10-12 | D163: DIVISLAB OCT FUT | E163: Sell | F163: 1288.5 | G163: 1305 | H163: 1281 | I163: 1260 | J163: Profit of Rs.7.50/- | K163: =F163-H163 -> 7.5 | M163: =N163*K163 -> 6000 | N163: 800 | O163: Successful | P163: 2018-10-12 | R163: N
A164: 21 | B164: 2018-10-12 | D164: STAR OCT FUT | E164: Sell | F164: 423.5 | G164: 436 | H164: 436 | I164: 405 | J164: Loss of Rs.12.5/- | K164: =F164-H164 -> -12.5 | M164: -10000 | N164: 800 | O164: Unsuccessful | P164: 2018-10-15 | R164: H
A165: 22 | B165: 2018-10-15 | D165: ACC | E165: Buy | F165: 1474 | G165: 1441 | H165: 1498.5 | I165: 1520-1530 | J165: Profit of Rs.24.5/- | K165: =H165-F165 -> 24.5 | L165: =K165/F165 -> 1.66% | O165: Successful | P165: 2018-10-15 | R165: H
A166: 23 | B166: 2018-10-15 | D166: GRASIM OCT FUT | E166: Sell | F166: 893 | G166: 910 | H166: 910 | I166: 860 | J166: Loss of Rs.17/- | K166: =F166-H166 -> -17 | M166: =N166*K166 -> -12750 | N166: 750 | O166: Unsuccessful | P166: 2018-10-16 | R166: N
A167: 24 | B167: 2018-10-15 | D167: SUNTV OCT FUT | E167: Buy | F167: 661 | G167: 652 | H167: 652 | I167: 685 | J167: Loss of Rs.9/- | K167: =H167-F167 -> -9 | M167: =N167*K167 -> -9000 | N167: 1000 | O167: Unsuccessful | P167: 2018-10-15 | R167: R
A168: 25 | B168: 2018-10-16 | D168: INFRATEL OCT FUT | E168: Sell | F168: 275 | G168: 282.5 | H168: 267.5 | I168: 260-255 | J168: Profit of Rs.7.5/- | K168: =F168-H168 -> 7.5 | M168: 12750 | N168: 1700 | O168: Successful | P168: 2018-10-16 | R168: R
A169: 26 | B169: 2018-10-16 | D169: BALKRISIND | E169: Buy | F169: 1049 | G169: 1028 | H169: 1015 | I169: 1100 | J169: Loss of Rs.34/- | K169: =H169-F169 -> -34 | L169: =K169/F169 -> -3.24% | O169: Unsuccessful | P169: 2018-10-22 | R169: H
A170: 27 | B170: 2018-10-16 | D170: APOLLOHOSP OCT FUT | E170: Buy | F170: 1098 | G170: 1073 | H170: 1116 | I170: 1150 | J170: Profit of Rs.18/- | K170: =H170-F170 -> 18 | M170: =N170*K170 -> 9000 | N170: 500 | O170: Successful | P170: 2018-10-17 | R170: N
A171: 28 | B171: 2018-10-17 | D171: HCLTECH OCT FUT | E171: Sell | F171: 1034 | G171: 1052.3 | H171: 1023.5 | I171: 1000 | J171: Profit of Rs.10.50/- | K171: =F171-H171 -> 10.5 | M171: 6300 | N171: 600 | O171: Successful | P171: 2018-10-17 | R171: R
A172: 29 | B172: 2018-10-17 | D172: RAYMOND OCT FUT | E172: Buy | F172: 651 | G172: 636 | H172: 633 | I172: 680 | J172: Loss of Rs.18/- | K172: =H172-F172 -> -18 | M172: -14400 | N172: 800 | O172: Unsuccessful | P172: 2018-10-19 | R172: N
A173: 30 | B173: 2018-10-19 | D173: JUBLFOOD | E173: Buy | F173: 1220 | G173: 1195 | H173: 1244.5 | I173: 1260-1280 | J173: Profit of Rs.24.5/- | K173: 24.5 | L173: =K173/F173 -> 2.01% | O173: Successful | P173: 2018-10-19 | R173: R
A174: 31 | B174: 2018-10-19 | D174: MARUTI OCT FUT | E174: Buy | F174: 6815 | G174: 6650 | H174: 6905 | I174: 7200 | J174: Profit of Rs.90/- | K174: 90 | M174: =N174*K174 -> 6750 | N174: 75 | O174: Successful | P174: 2018-10-22 | R174: N
A175: 32 | B175: 2018-10-22 | D175: KOTAKBANK | E175: Buy | F175: 1195 | G175: 1158 | H175: 1210.5 | I175: 1250-1260 | J175: Profit of Rs.15.5/- | K175: =H175-F175 -> 15.5 | L175: =K175/F175 -> 1.30% | O175: Successful | P175: 2018-10-22 | R175: H
A176: 33 | B176: 2018-10-23 | D176: DIVISLAB OCT FUT | E176: Buy | F176: 1286.5 | G176: 1271 | H176: 1298 | I176: 1315 | J176: Profit of Rs.11.50/- | K176: =H176-F176 -> 11.5 | M176: =N176*K176 -> 9200 | N176: 800 | O176: Successful | P176: 2018-10-23 | R176: N
A177: 34 | B177: 2018-10-23 | D177: TATASTEEL NOV FUT | E177: Sell | F177: 542 | G177: 555 | H177: 555.5 | I177: 520 | J177: Loss of Rs.13.5/- | K177: =F177-H177 -> -13.5 | M177: -14323.5 | N177: 1061 | O177: Unsuccessful | P177: 2018-10-24 | R177: H
A178: 35 | B178: 2018-10-24 | D178: VOLTAS NOV FUT | E178: Sell | F178: 506-508 | G178: 517 | I178: 490 | J178: Open | R178: R
A179: 36 | B179: 2018-10-24 | D179: DIVISLAB OCT FUT | E179: Buy | F179: 1253 | G179: 1238 | H179: 1239 | I179: 1290 | J179: Loss of Rs.14/- | K179: =H179-F179 -> -14 | M179: =N179*K179 -> -11200 | N179: 800 | O179: Unsuccessful | P179: 2018-10-24 | R179: N
A180: 37 | B180: 2018-10-25 | D180: ASHOKLEY NOV FUT | E180: Buy | F180: 112-112.50 | G180: 109 | I180: 118 | J180: Open | R180: N
A189: CLBS = Closing Basis ***
A190: Dividend adjusted <> | F190: Reinitiated $
F191: Revised stoploss #
B192: Quick Pick Intraday
A193: Sr.no | B193: Date | D193: Company | E193: Rec | F193: Rec Price | G193: Stop Loss*** | H193: Call Closed At | I193: Target | J193: Remark | K193: Profit / Loss per Share | L193: Status | M193: Closed Date
A207: Techno -Funda (positional)
A208: Sr.no | B208: Date | D208: Company | E208: Rec | F208: Rec Price | G208: Stop Loss*** | H208: Call Closed At | I208: Target | J208: Remark | K208: Profit / Loss per Share | L208: Gain / Loss % | M208: Status | N208: Closed Date | O208: NSE Closed Price
A211: CLBS = Closing Basis *** | F211: Reinitiated $
A212: Dividend adjusted <> | F212: Revised stoploss #
B217: Investment Idea
A218: Sr.no | B218: Date | D218: Company | E218: Rec | F218: Rec Price | G218: Point of Review | H218: Close Rate | I218: Target | J218: Remark | K218: Profit / Loss per Share | L218: Gain / Loss % | M218: Status | N218: Closed Date
A219: 1 | B219: 2013-11-01 | D219: L&T Finance Holding | E219: Accu | F219: 82.00 | G219: - | H219: 100 | I219: 100.00 | J219: Target Achieved | K219: =H219-F219 -> 18.00 | L219: =K219/F219 -> 21.95% | M219: Successful | N219: 2016-10-14
A220: 2 | B220: 2014-06-04 | D220: Finolex Inds | E220: Buy | F220: 257.00 | G220: - | H220: 300 | I220: 300.00 | J220: Target Achieved | K220: =H220-F220 -> 43.00 | L220: 16.73% | M220: Successful | N220: 2014-07-02
A221: =1+A220 -> 3 | B221: 2014-07-08 | D221: JK Cement | E221: Buy | F221: 393.00 | G221: - | H221: 468 | I221: 468.00 | J221: Target Achieved | K221: =H221-F221 -> 75.00 | L221: 19.08% | M221: Successful | N221: 2014-08-12
A222: 4 | B222: 2014-08-06 | D222: Finolex Cables | E222: Buy | F222: 205.00 | G222: - | H222: 275 | I222: 250.00 | J222: Target Achieved | K222: 70.00 | L222: 34.15% | M222: Successful | N222: 2014-11-19
A223: 5 | B223: 2014-09-04 | D223: Exide Inds | E223: Buy | F223: 162.00 | G223: - | H223: 190 | I223: 190.00 | J223: Target Achieved | K223: 28.00 | L223: 17.28% | M223: Successful | N223: 2015-01-02
A224: 6 | B224: 2014-09-04 | D224: Deepak Nitrite | E224: Buy | F224: 75.00 | G224: - | H224: 91.5 | I224: 95-100 | J224: Profit of Rs.16.50/- | K224: 16.50 | L224: 22.00% | M224: Successful | N224: 2014-11-11
A225: 7 | B225: 2014-10-01 | D225: Mercks | E225: Buy | F225: 850.00 | G225: - | H225: 982.5 | I225: 1050.00 | J225: Profit of Rs.132.50/- | K225: 132.50 | L225: 15.59% | M225: Successful | N225: 2015-02-04
A226: 8 | B226: 2014-10-01 | D226: Grindwell Norton | E226: Buy | F226: 475.00 | G226: - | H226: 515 | I226: 600.00 | J226: Profit of Rs.40/- | K226: 40.00 | L226: 8.42% | M226: Successful | N226: 2014-10-27
A227: 9 | B227: 2014-10-01 | D227: Snowman Logistics | E227: Buy | F227: 86.00 | G227: - | H227: 99 | I227: 140.00 | J227: Profit of Rs.13.00/- | K227: 13.00 | L227: 15.12% | M227: Successful | N227: 2014-10-27
A228: 10 | B228: 2014-10-14 | D228: Birla Corp | E228: Buy | F228: 496.60 | G228: - | H228: 621 | I228: 580.00 | J228: Target Achieved | K228: 124.40 | L228: 25.05% | M228: Successful | N228: 2016-08-23
A229: 11 | B229: 2014-10-14 | D229: Ultratech Cem | E229: Buy | F229: 2481.90 | G229: - | H229: 2840 | I229: 2870.00 | J229: Profit of Rs.358.10/- | K229: 358.10 | L229: 14.43% | M229: Successful | N229: 2015-01-13
A230: =1+A227 -> 10 | B230: 2014-10-16 | D230: Sintex Inds | E230: Buy | F230: 84.50 | G230: - | H230: 93 | I230: 110.00 | J230: Profit of Rs.8.50/- | K230: 8.50 | L230: 10.06% | M230: Successful | N230: 2014-10-27
A231: =1+A230 -> 11 | B231: 2014-10-16 | D231: HSIL | E231: Buy | F231: 401.00 | G231: - | H231: 428 | I231: 450.00 | J231: Profit of Rs.27.00/- | K231: 27.00 | L231: 6.73% | M231: Successful | N231: 2015-01-16
A232: 12 | B232: 2014-10-16 | D232: Eveready Inds | E232: Buy | F232: 101.00 | G232: - | H232: 112 | I232: 120.00 | J232: Profit of Rs.11.00/- | K232: 11.00 | L232: 10.89% | M232: Successful | N232: 2014-10-27
A233: 13 | B233: 2014-11-11 | D233: Pennar Inds | E233: Buy | F233: 59.00 | G233: - | H233: 76 | I233: 76.00 | J233: Target Achieved | K233: 17.00 | L233: 28.81% | M233: Successful | N233: 2017-10-24
A234: 14 | B234: 2014-11-11 | D234: Snowman Logistics | E234: Buy | F234: 99.00 | G234: - | H234: 120 | I234: 120.00 | J234: Profit of Rs.21/- | K234: 21.00 | L234: 21.21% | M234: Successful | N234: 2014-11-17
A235: 15 | B235: 2014-11-13 | D235: Dharamsi Morarji Chem | E235: Buy | F235: 22.00 | G235: - | H235: 33.55 | I235: 32.00 | J235: Profit of Rs 11.55/- | K235: 11.55 | L235: 52.50% | M235: Successful | N235: 2015-07-03
A236: 16 | B236: 2014-12-03 | D236: Tatachem | E236: Buy | F236: 440.00 | G236: - | H236: 520 | I236: 520.00 | J236: Profit of Rs 80.00/- | K236: 80.00 | L236: 18.18% | M236: Successful | N236: 2015-07-23
A237: 17 | B237: 2014-12-03 | D237: Advanta | E237: Buy | F237: 360.00 | G237: - | H237: 427 | I237: 425.00 | J237: Profit of Rs.67.00/- | K237: 67.00 | L237: 18.61% | M237: Successful | N237: 2015-02-23
A238: 18 | B238: 2015-01-08 | D238: GDL | E238: Buy | F238: 360.00 | G238: - | H238: 455 | I238: 420.00 | J238: Profit of Rs.95.00/- | K238: 95.00 | L238: 26.39% | M238: Successful | N238: 2015-01-20
A239: 19 | B239: 2015-01-08 | D239: NRB Bearing | E239: Buy | F239: 130.00 | H239: 175.5 | I239: 165.00 | J239: Profit of Rs 45.50/- | K239: 45.50 | L239: 35.00% | M239: Successful | N239: 2017-12-19
A240: 20 | B240: 2015-02-05 | D240: GSFC | E240: Accu | F240: 98.00 | H240: 120 | I240: 120.00 | J240: Target Achieved | K240: 22.00 | L240: 22.45% | M240: Successful | N240: 2017-01-18
A241: 21 | B241: 2015-02-05 | D241: Sundrmfast | E241: Accu | F241: 196.00 | H241: 262 | I241: 255.00 | J241: Target Achieved | K241: 66.00 | L241: 33.67% | M241: Successful | N241: 2016-08-17
A242: 22 | B242: 2015-03-04 | D242: GPPL | E242: Accu | F242: 230-240 | I242: 280-285 | J242: Open
A243: 23 | B243: 2015-03-04 | D243: ORIENTCEM | E243: Accu | F243: 185.00 | H243: 224 | I243: 220-225 | J243: Target Achieved | K243: 39.00 | L243: =K243/F243 -> 21.08% | M243: Successful | N243: 2016-10-04
A244: 24 | B244: 2015-03-27 | D244: PFS | E244: Accu | F244: 49-50 | I244: 67.00 | J244: Open
A245: 25 | B245: 2015-03-30 | D245: Walchandnagar Ind Ltd | E245: Accu | F245: 183.50 | H245: 219 | I245: 218.00 | J245: Profit of Rs.35.50/- | K245: 35.50 | L245: =K245/F245 -> 19.35% | M245: Successful | N245: 2015-04-09
A246: 26 | B246: 2015-04-20 | D246: Kalpataru Power Transmission Ltd | E246: Accu | F246: =(227+237)/2 -> 232.00 | H246: 298 | I246: 298.00 | J246: Target Achieved | K246: 66.00 | L246: 28.45% | M246: Successful | N246: 2017-03-29
A247: 27 | B247: 2015-05-04 | D247: Mastek Ltd | E247: Buy | F247: 385.00 | H247: =212.5+331 -> 543.5 | I247: 510.00 | J247: Profit of Rs 158.50/- | K247: 158.50 | L247: 41.17% | M247: Successful | N247: 2015-08-19
A248: 28 | B248: 2015-05-04 | D248: Suprajit Eng | E248: Buy | F248: 115.50 | H248: 146 | I248: 142.00 | J248: Profit of Rs 30.50/- | K248: 30.50 | L248: 26.41% | M248: Successful | N248: 2015-07-17
A249: 29 | B249: 2015-05-27 | D249: TCI | E249: Buy | F249: 237.50 | H249: 279.5 | I249: 278.00 | J249: Target Achieved | K249: 42.00 | L249: 17.68% | M249: Successful | N249: 2015-08-06
A250: 30 | B250: 2015-06-19 | D250: HSIL | E250: Accu | F250: 340.00 | H250: 448 | I250: 448.00 | J250: Target Achieved | K250: 108.00 | L250: 31.76% | M250: Successful | N250: 2017-10-10
A251: 31 | B251: 2015-07-06 | D251: Capital First | E251: Accu | F251: 390.00 | H251: 460 | I251: 460.00 | J251: Target Achieved | K251: 70.00 | L251: 17.95% | M251: Successful | N251: 2016-04-18
A252: 32 | B252: 2015-07-10 | D252: Dolphin OffShore | E252: Accu | F252: 122.5 | H252: 61.00 | I252: 172.00 | J252: Loss of Rs.61.50/- | K252: -61.50 | L252: -50.20% | M252: Unsuccessful | N252: 2018-08-21
A253: 33 | B253: 2015-08-03 | D253: Allcargo logistics | E253: Accu | F253: 297.50 | H253: 350 | I253: 360.00 | J253: Profit of Rs 52.50/- | K253: 52.50 | L253: =K253/F253 -> 17.65% | M253: Successful | N253: 2015-08-16
A254: 34 | B254: 2015-08-03 | D254: Camline Fine | E254: Accu | F254: 115.50 | H254: 149 | I254: 140.00 | J254: Profit of Rs 33.50/- | K254: 33.50 | L254: 29.00% | M254: Successful | N254: 2017-01-05
A255: 35 | B255: 2015-09-04 | D255: TCI | E255: Accu | F255: 226.00 | H255: 292 | I255: 292.00 | J255: Target Achieved | K255: 66.00 | L255: 29.20% | M255: Successful | N255: 2015-10-09
A256: 36 | B256: 2015-09-07 | D256: Kalpataru Power Transmission Ltd | E256: Accu | F256: 232.50 | H256: 312.5 | I256: 310.00 | J256: Target Achieved | K256: 80.00 | L256: 34.41% | M256: Successful | N256: 2017-03-29
A257: 37 | B257: 2015-09-21 | D257: LLOYD ELECTRIC & ENG LTD | E257: Accu | F257: 196.50 | H257: 238 | I257: 238.00 | J257: Target Achieved | K257: 41.50 | L257: 21.12% | M257: Successful | N257: 2015-10-14
A258: 38 | B258: 2015-09-24 | D258: L&T Finance Holding | E258: Accu | F258: 65.00 | H258: 82 | I258: 82.00 | J258: Target Achieved | K258: 17.00 | L258: 26.15% | M258: Successful | N258: 2016-07-27
A259: 39 | B259: 2015-10-14 | D259: KEC International ltd | E259: Accu | F259: 144.00 | H259: 182.5 | I259: 181.00 | J259: Target Achieved | K259: 38.50 | L259: 26.74% | M259: Successful | N259: 2017-03-23
A260: 40 | B260: 2015-10-14 | D260: Gruh Finance | E260: Accu | F260: 264.00 | H260: 311 | I260: 311.00 | J260: Target Achieved | K260: 47.00 | L260: 17.80% | M260: Successful | N260: 2016-08-22
... 100 more rows

Sheet Sheet2 (hidden)
A1: SYMBOL | B1: SERIES | C1: OPEN | D1: HIGH | E1: LOW | F1: CLOSE | G1: LAST | H1: PREVCLOSE | I1: TOTTRDQTY | J1: TOTTRDVAL | K1: TIMESTAMP | L1: TOTALTRADES | M1: ISIN | N1: ISIN
A2: 20MICRONS | B2: EQ | C2: 39 | D2: 39.95 | E2: 38.65 | F2: 39.1 | G2: 39.15 | H2: 39.8 | I2: 23830 | J2: 930979.3 | K2: 2018-10-25 | L2: 271 | M2: INE144J01027
A3: 21STCENMGM | B3: EQ | C3: 24.5 | D3: 24.5 | E3: 24.5 | F3: 24.5 | G3: 24.5 | H3: 25 | I3: 913 | J3: 22368.5 | K3: 2018-10-25 | L3: 13 | M3: INE253B01015
A4: 3IINFOTECH | B4: EQ | C4: 3.15 | D4: 3.2 | E4: 3.15 | F4: 3.15 | G4: 3.2 | H4: 3.2 | I4: 749510 | J4: 2374929.2 | K4: 2018-10-25 | L4: 482 | M4: INE748C01020
A5: 3MINDIA | B5: EQ | C5: 19700 | D5: 19900 | E5: 19450.05 | F5: 19650.55 | G5: 19560.7 | H5: 19893.15 | I5: 2126 | J5: 41843204.85 | K5: 2018-10-25 | L5: 541 | M5: INE470A01017
A6: 3PLAND | B6: BE | C6: 11.4 | D6: 11.4 | E6: 11.4 | F6: 11.4 | G6: 11.4 | H6: 12 | I6: 500 | J6: 5700 | K6: 2018-10-25 | L6: 1 | M6: INE105C01023
A7: 5PAISA | B7: EQ | C7: 176.9 | D7: 186 | E7: 170.05 | F7: 182.95 | G7: 183.35 | H7: 178.4 | I7: 4551 | J7: 819886.7 | K7: 2018-10-25 | L7: 321 | M7: INE618L01018
A8: 63MOONS | B8: EQ | C8: 77 | D8: 82.4 | E8: 74.55 | F8: 77.65 | G8: 78.7 | H8: 79.7 | I8: 572595 | J8: 45071380.3 | K8: 2018-10-25 | L8: 8373 | M8: INE111B01023
A9: 8KMILES | B9: EQ | C9: 88.4 | D9: 88.4 | E9: 88.4 | F9: 88.4 | G9: 88.4 | H9: 93.05 | I9: 22498 | J9: 1988823.2 | K9: 2018-10-25 | L9: 264 | M9: INE650K01021
A10: A2ZINFRA | B10: EQ | C10: 10.3 | D10: 10.55 | E10: 10.2 | F10: 10.35 | G10: 10.3 | H10: 10.65 | I10: 426918 | J10: 4418634.85 | K10: 2018-10-25 | L10: 458 | M10: INE619I01012
A11: AARTIDRUGS | B11: EQ | C11: 575 | D11: 584.5 | E11: 568.5 | F11: 576.1 | G11: 582.5 | H11: 576.5 | I11: 8945 | J11: 5156759.5 | K11: 2018-10-25 | L11: 705 | M11: INE767A01016
A12: AARTIIND | B12: EQ | C12: 1272 | D12: 1294 | E12: 1225 | F12: 1281.6 | G12: 1285 | H12: 1266.6 | I12: 31934 | J12: 40503907.8 | K12: 2018-10-25 | L12: 4347 | M12: INE769A01020
A13: AARVEEDEN | B13: EQ | C13: 23.65 | D13: 23.65 | E13: 22.7 | F13: 23.4 | G13: 23.4 | H13: 23.4 | I13: 1609 | J13: 37581.8 | K13: 2018-10-25 | L13: 26 | M13: INE273D01019
A14: AAVAS | B14: EQ | C14: 639.9 | D14: 660.8 | E14: 617.05 | F14: 643.55 | G14: 640.2 | H14: 643.3 | I14: 68841 | J14: 43803374.45 | K14: 2018-10-25 | L14: 3110 | M14: INE216P01012
A15: ABAN | B15: EQ | C15: 73.55 | D15: 74.6 | E15: 71.75 | F15: 72.5 | G15: 72.9 | H15: 74.7 | I15: 362315 | J15: 26328163.55 | K15: 2018-10-25 | L15: 4093 | M15: INE421A01028
A16: ABB | B16: EQ | C16: 1224 | D16: 1238.95 | E16: 1205.1 | F16: 1219.9 | G16: 1215 | H16: 1238.7 | I16: 24711 | J16: 30062792.25 | K16: 2018-10-25 | L16: 2920 | M16: INE117A01022
A17: ABBOTINDIA | B17: EQ | C17: 7065.05 | D17: 7108 | E17: 6917 | F17: 7039.85 | G17: 7108 | H17: 7067.4 | I17: 1866 | J17: 13039273.3 | K17: 2018-10-25 | L17: 500 | M17: INE358A01014
A18: ABCAPITAL | B18: EQ | C18: 94.45 | D18: 97.9 | E18: 94 | F18: 96.9 | G18: 97.5 | H18: 95.6 | I18: 1718136 | J18: 166001598.4 | K18: 2018-10-25 | L18: 22138 | M18: INE674K01013
A19: ABFRL | B19: EQ | C19: 173.3 | D19: 174.8 | E19: 171.1 | F19: 173.8 | G19: 174.5 | H19: 174.55 | I19: 224686 | J19: 38861972.2 | K19: 2018-10-25 | L19: 5236 | M19: INE647O01011
A20: ACC | B20: EQ | C20: 1360.25 | D20: 1379.9 | E20: 1357.7 | F20: 1367.6 | G20: 1370 | H20: 1382.3 | I20: 725333 | J20: 993699987.1 | K20: 2018-10-25 | L20: 38766 | M20: INE012A01025
A21: ACCELYA | B21: EQ | C21: 949.05 | D21: 954.15 | E21: 945 | F21: 950.25 | G21: 950 | H21: 954.15 | I21: 28122 | J21: 26714475.25 | K21: 2018-10-25 | L21: 451 | M21: INE793A01012
A22: ACE | B22: EQ | C22: 96 | D22: 96 | E22: 92 | F22: 92.9 | G22: 92.5 | H22: 94.6 | I22: 59732 | J22: 5553378.75 | K22: 2018-10-25 | L22: 1102 | M22: INE731H01025
A23: ADANIENT | B23: EQ | C23: 166.75 | D23: 174.4 | E23: 161.5 | F23: 172.1 | G23: 174.25 | H23: 167.55 | I23: 7460591 | J23: 1245300183 | K23: 2018-10-25 | L23: 36613 | M23: INE423A01024
A24: ADANIGREEN | B24: EQ | C24: 36.9 | D24: 37.95 | E24: 35.5 | F24: 36.2 | G24: 36.75 | H24: 37 | I24: 539990 | J24: 19741512 | K24: 2018-10-25 | L24: 3687 | M24: INE364U01010
A25: ADANIPORTS | B25: EQ | C25: 311.9 | D25: 312.9 | E25: 298.7 | F25: 305.6 | G25: 306.85 | H25: 314.15 | I25: 4584103 | J25: 1396689962 | K25: 2018-10-25 | L25: 79054 | M25: INE742F01042
A26: ADANIPOWER | B26: EQ | C26: 33.25 | D26: 33.7 | E26: 32.65 | F26: 33 | G26: 33.05 | H26: 33.7 | I26: 15207295 | J26: 504115130.4 | K26: 2018-10-25 | L26: 20088 | M26: INE814H01011
A27: ADANITRANS | B27: BE | C27: 156.8 | D27: 159.95 | E27: 152.1 | F27: 155.8 | G27: 158 | H27: 159.8 | I27: 18952 | J27: 2922820.85 | K27: 2018-10-25 | L27: 199 | M27: INE931S01010
A28: ADFFOODS | B28: EQ | C28: 198.5 | D28: 201.95 | E28: 197.05 | F28: 198.4 | G28: 197.9 | H28: 202.85 | I28: 12279 | J28: 2444383.65 | K28: 2018-10-25 | L28: 515 | M28: INE982B01019
A29: ADHUNIK | B29: EQ | C29: 2.8 | D29: 2.8 | E29: 2.7 | F29: 2.7 | G29: 2.7 | H29: 2.8 | I29: 1366 | J29: 3760.3 | K29: 2018-10-25 | L29: 9 | M29: INE400H01019
A30: ADHUNIKIND | B30: EQ | C30: 47 | D30: 48.85 | E30: 43.2 | F30: 46.15 | G30: 46.1 | H30: 46.4 | I30: 40069 | J30: 1829481.15 | K30: 2018-10-25 | L30: 297 | M30: INE452L01012
A31: ADLABS | B31: EQ | C31: 10.8 | D31: 11.4 | E31: 10.5 | F31: 10.55 | G31: 10.6 | H31: 11.05 | I31: 225022 | J31: 2420454.75 | K31: 2018-10-25 | L31: 876 | M31: INE172N01012
A32: ADORWELD | B32: EQ | C32: 353.95 | D32: 357.5 | E32: 343 | F32: 345.75 | G32: 345.1 | H32: 354.8 | I32: 9047 | J32: 3153661 | K32: 2018-10-25 | L32: 387 | M32: INE045A01017
A33: ADROITINFO | B33: EQ | C33: 20.55 | D33: 21.4 | E33: 20.5 | F33: 21 | G33: 21 | H33: 21.55 | I33: 5206 | J33: 109299.8 | K33: 2018-10-25 | L33: 8 | M33: INE737B01033
A34: ADSL | B34: EQ | C34: 12.8 | D34: 12.85 | E34: 12.2 | F34: 12.65 | G34: 12.65 | H34: 12.5 | I34: 11667 | J34: 147526.35 | K34: 2018-10-25 | L34: 78 | M34: INE102I01027
A35: ADVANIHOTR | B35: EQ | C35: 51.4 | D35: 53 | E35: 51.2 | F35: 52.4 | G35: 52.25 | H35: 51.9 | I35: 16273 | J35: 850467.8 | K35: 2018-10-25 | L35: 86 | M35: INE199C01026
A36: ADVENZYMES | B36: EQ | C36: 183 | D36: 183 | E36: 175.3 | F36: 178.7 | G36: 178 | H36: 184.65 | I36: 104586 | J36: 18744345.6 | K36: 2018-10-25 | L36: 4036 | M36: INE837H01020
A37: AEGISCHEM | B37: EQ | C37: 222 | D37: 231.8 | E37: 222 | F37: 228.4 | G37: 228 | H37: 227.95 | I37: 77457 | J37: 17669952.05 | K37: 2018-10-25 | L37: 3809 | M37: INE208C01025
A38: AGARIND | B38: EQ | C38: 189.8 | D38: 190 | E38: 180 | F38: 189.4 | G38: 180.5 | H38: 181.6 | I38: 7458 | J38: 1412196.65 | K38: 2018-10-25 | L38: 39 | M38: INE204E01012
A39: AGCNET | B39: EQ | C39: 51 | D39: 52 | E39: 50.05 | F39: 50.3 | G39: 50.25 | H39: 51 | I39: 7045 | J39: 357769.35 | K39: 2018-10-25 | L39: 80 | M39: INE676A01019
A40: AGLSL | B40: EQ | C40: 74.95 | D40: 78.8 | E40: 74.05 | F40: 77.9 | G40: 78 | H40: 77.2 | I40: 3925 | J40: 293688.65 | K40: 2018-10-25 | L40: 63 | M40: INE517U01013
A41: AGRITECH | B41: EQ | C41: 55 | D41: 55 | E41: 53.5 | F41: 53.65 | G41: 53.55 | H41: 55 | I41: 3667 | J41: 197891.8 | K41: 2018-10-25 | L41: 90 | M41: INE449G01018
A42: AHLEAST | B42: EQ | C42: 233 | D42: 239.5 | E42: 230.7 | F42: 235 | G42: 235 | H42: 237.6 | I42: 2243 | J42: 529400.85 | K42: 2018-10-25 | L42: 88 | M42: INE926K01017
A43: AHLUCONT | B43: EQ | C43: 269 | D43: 269.5 | E43: 264 | F43: 264.45 | G43: 265 | H43: 272.55 | I43: 1012 | J43: 269029.95 | K43: 2018-10-25 | L43: 72 | M43: INE758C01029
A44: AHLWEST | B44: EQ | C44: 271 | D44: 275 | E44: 271 | F44: 275 | G44: 275 | H44: 275 | I44: 192 | J44: 52772 | K44: 2018-10-25 | L44: 9 | M44: INE915K01010
A45: AIAENG | B45: EQ | C45: 1559.5 | D45: 1630 | E45: 1549.9 | F45: 1628.2 | G45: 1630 | H45: 1584.85 | I45: 36510 | J45: 58306861.35 | K45: 2018-10-25 | L45: 5426 | M45: INE212H01026
A46: AIFL | B46: EQ | C46: 102.6 | D46: 102.6 | E46: 102.6 | F46: 102.6 | G46: 102.6 | H46: 107.95 | I46: 320 | J46: 32832 | K46: 2018-10-25 | L46: 18 | M46: INE428O01016
A47: AIONJSW | B47: BE | C47: 33.85 | D47: 34 | E47: 30.95 | F47: 30.95 | G47: 30.95 | H47: 32.55 | I47: 92856 | J47: 2940203.75 | K47: 2018-10-25 | L47: 217 | M47: INE743C01021
A48: AJANTPHARM | B48: EQ | C48: 988.4 | D48: 1020 | E48: 980 | F48: 995.45 | G48: 993 | H48: 988 | I48: 330154 | J48: 331231551.2 | K48: 2018-10-25 | L48: 11754 | M48: INE031B01049
A49: AJMERA | B49: EQ | C49: 146.9 | D49: 150.8 | E49: 144.3 | F49: 148 | G49: 147.1 | H49: 147.95 | I49: 18553 | J49: 2748462.4 | K49: 2018-10-25 | L49: 805 | M49: INE298G01027
A50: AKSHARCHEM | B50: EQ | C50: 487.8 | D50: 487.8 | E50: 465.5 | F50: 468.45 | G50: 470.9 | H50: 474.3 | I50: 579 | J50: 271464.8 | K50: 2018-10-25 | L50: 51 | M50: INE542B01011
A51: AKSHOPTFBR | B51: EQ | C51: 25.75 | D51: 27.25 | E51: 25.35 | F51: 26.95 | G51: 27 | H51: 26.45 | I51: 1513338 | J51: 39778150.75 | K51: 2018-10-25 | L51: 3580 | M51: INE523B01011
A52: AKZOINDIA | B52: EQ | C52: 1558.95 | D52: 1558.95 | E52: 1474.95 | F52: 1493.15 | G52: 1485 | H52: 1533.8 | I52: 4562 | J52: 6853029.65 | K52: 2018-10-25 | L52: 566 | M52: INE133A01011
A53: ALANKIT | B53: EQ | C53: 20.4 | D53: 20.8 | E53: 20.05 | F53: 20.2 | G53: 20.35 | H53: 20.9 | I53: 1298583 | J53: 26219262.4 | K53: 2018-10-25 | L53: 982 | M53: INE914E01040
A54: ALBERTDAVD | B54: EQ | C54: 475 | D54: 480 | E54: 453.5 | F54: 469.7 | G54: 479.95 | H54: 476.85 | I54: 10279 | J54: 4763868.95 | K54: 2018-10-25 | L54: 493 | M54: INE155C01010
A55: ALBK | B55: EQ | C55: 36.8 | D55: 37.7 | E55: 36.5 | F55: 37.15 | G55: 37.5 | H55: 37.3 | I55: 2746567 | J55: 101743210.5 | K55: 2018-10-25 | L55: 6874 | M55: INE428A01015
A56: ALCHEM | B56: BE | C56: 4 | D56: 4.1 | E56: 3.8 | F56: 3.8 | G56: 3.8 | H56: 3.95 | I56: 9322 | J56: 35873.55 | K56: 2018-10-25 | L56: 33 | M56: INE964B01033
A57: ALEMBICLTD | B57: EQ | C57: 39 | D57: 40 | E57: 38.8 | F57: 39.6 | G57: 39.65 | H57: 39.5 | I57: 171349 | J57: 6765555.8 | K57: 2018-10-25 | L57: 1241 | M57: INE426A01027
A58: ALICON | B58: EQ | C58: 575.05 | D58: 589 | E58: 575 | F58: 585.3 | G58: 585 | H58: 583.15 | I58: 558 | J58: 323952.65 | K58: 2018-10-25 | L58: 33 | M58: INE062D01024
A59: ALKALI | B59: EQ | C59: 57.45 | D59: 57.45 | E59: 55.35 | F59: 56.15 | G59: 56.4 | H59: 57.35 | I59: 4021 | J59: 225817.8 | K59: 2018-10-25 | L59: 101 | M59: INE773I01017
A60: ALKEM | B60: EQ | C60: 1930 | D60: 1974 | E60: 1923 | F60: 1949.45 | G60: 1950 | H60: 1940.55 | I60: 33714 | J60: 65620066 | K60: 2018-10-25 | L60: 5286 | M60: INE540L01014
A61: ALKYLAMINE | B61: EQ | C61: 576.9 | D61: 577 | E61: 568.2 | F61: 573.5 | G61: 577 | H61: 569.4 | I61: 163 | J61: 93321.3 | K61: 2018-10-25 | L61: 13 | M61: INE150B01021
A62: ALLCARGO | B62: EQ | C62: 97.45 | D62: 100.35 | E62: 95 | F62: 99.8 | G62: 100 | H62: 98.45 | I62: 162601 | J62: 16015670.35 | K62: 2018-10-25 | L62: 1671 | M62: INE418H01029
A63: ALLSEC | B63: EQ | C63: 222.05 | D63: 235 | E63: 222 | F63: 232.15 | G63: 232 | H63: 222.25 | I63: 4928 | J63: 1134564.85 | K63: 2018-10-25 | L63: 348 | M63: INE835G01018
A64: ALMONDZ | B64: EQ | C64: 21.75 | D64: 22.7 | E64: 20.7 | F64: 20.7 | G64: 20.7 | H64: 21.75 | I64: 3167 | J64: 66304 | K64: 2018-10-25 | L64: 22 | M64: INE326B01027
A65: ALOKTEXT | B65: EQ | C65: 2.95 | D65: 3.25 | E65: 2.95 | F65: 3.25 | G65: 3.25 | H65: 3.1 | I65: 5084580 | J65: 15436033.2 | K65: 2018-10-25 | L65: 2085 | M65: INE270A01011
A66: ALPA | B66: EQ | C66: 25 | D66: 25.2 | E66: 24.45 | F66: 24.65 | G66: 24.6 | H66: 25.3 | I66: 16102 | J66: 399492.15 | K66: 2018-10-25 | L66: 80 | M66: INE385I01010
A67: ALPHAGEO | B67: EQ | C67: 470 | D67: 489.8 | E67: 458 | F67: 480.9 | G67: 479 | H67: 469.8 | I67: 4880 | J67: 2328472.55 | K67: 2018-10-25 | L67: 798 | M67: INE137C01018
A68: ALPSINDUS | B68: BE | C68: 2.6 | D68: 2.6 | E68: 2.6 | F68: 2.6 | G68: 2.6 | H68: 2.5 | I68: 4734 | J68: 12308.4 | K68: 2018-10-25 | L68: 9 | M68: INE093B01015
A69: AMARAJABAT | B69: EQ | C69: 729 | D69: 782.95 | E69: 729 | F69: 772.3 | G69: 768 | H69: 741.75 | I69: 426134 | J69: 323183665.8 | K69: 2018-10-25 | L69: 12879 | M69: INE885A01032
A70: AMBER | B70: EQ | C70: 826.3 | D70: 848 | E70: 826.3 | F70: 841.05 | G70: 842 | H70: 853.45 | I70: 3526 | J70: 2949905.05 | K70: 2018-10-25 | L70: 484 | M70: INE371P01015
A71: AMBIKCO | B71: EQ | C71: 1156.3 | D71: 1164.9 | E71: 1134 | F71: 1137 | G71: 1134 | H71: 1157 | I71: 1051 | J71: 1206507 | K71: 2018-10-25 | L71: 218 | M71: INE540G01014
A72: AMBUJACEM | B72: EQ | C72: 194 | D72: 197.45 | E72: 191.8 | F72: 192.55 | G72: 192.35 | H72: 196.4 | I72: 7180208 | J72: 1394311065 | K72: 2018-10-25 | L72: 64081 | M72: INE079A01024
A73: AMDIND | B73: EQ | C73: 21.15 | D73: 21.15 | E73: 19.4 | F73: 19.7 | G73: 19.7 | H73: 20.25 | I73: 2859 | J73: 56750.95 | K73: 2018-10-25 | L73: 18 | M73: INE005I01014
A74: AMJLAND | B74: EQ | C74: 21.2 | D74: 21.75 | E74: 20.6 | F74: 21.15 | G74: 21.2 | H74: 21.4 | I74: 7958 | J74: 166893.65 | K74: 2018-10-25 | L74: 74 | M74: INE606A01024
A75: AMRUTANJAN | B75: EQ | C75: 250.75 | D75: 250.95 | E75: 247.85 | F75: 249.85 | G75: 250.5 | H75: 250.55 | I75: 11499 | J75: 2856599.1 | K75: 2018-10-25 | L75: 238 | M75: INE098F01031
A76: ANANTRAJ | B76: EQ | C76: 33.8 | D76: 33.85 | E76: 32.9 | F76: 33.4 | G76: 33.2 | H76: 34.4 | I76: 324049 | J76: 10798082.25 | K76: 2018-10-25 | L76: 1481 | M76: INE242C01024
A77: ANDHRABANK | B77: EQ | C77: 25.9 | D77: 26 | E77: 25.7 | F77: 25.8 | G77: 25.7 | H77: 26.1 | I77: 637139 | J77: 16457334.65 | K77: 2018-10-25 | L77: 1851 | M77: INE434A01013
A78: ANDHRACEMT | B78: EQ | C78: 6.15 | D78: 6.3 | E78: 6.1 | F78: 6.2 | G78: 6.2 | H78: 6.25 | I78: 52460 | J78: 328287.4 | K78: 2018-10-25 | L78: 108 | M78: INE666E01012
A79: ANDHRSUGAR | B79: EQ | C79: 319.7 | D79: 330.75 | E79: 317.2 | F79: 318.1 | G79: 317.2 | H79: 322.85 | I79: 47130 | J79: 15190088.55 | K79: 2018-10-25 | L79: 1701 | M79: INE715B01013
A80: ANGIND | B80: BE | C80: 1.5 | D80: 1.6 | E80: 1.5 | F80: 1.5 | G80: 1.5 | H80: 1.55 | I80: 6846 | J80: 10411 | K80: 2018-10-25 | L80: 26 | M80: INE017D01010
A81: ANIKINDS | B81: EQ | C81: 23.8 | D81: 25.7 | E81: 23.8 | F81: 25.7 | G81: 25.7 | H81: 24.95 | I81: 520 | J81: 12589 | K81: 2018-10-25 | L81: 9 | M81: INE087B01017
A82: ANKITMETAL | B82: BE | C82: 0.45 | D82: 0.5 | E82: 0.45 | F82: 0.45 | G82: 0.45 | H82: 0.45 | I82: 6838 | J82: 3082.1 | K82: 2018-10-25 | L82: 10 | M82: INE106I01010
A83: ANSALAPI | B83: EQ | C83: 10.25 | D83: 10.7 | E83: 10.25 | F83: 10.45 | G83: 10.4 | H83: 10.45 | I83: 14236 | J83: 148644.7 | K83: 2018-10-25 | L83: 85 | M83: INE436A01026
A84: ANSALHSG | B84: EQ | C84: 9.7 | D84: 9.85 | E84: 9.5 | F84: 9.75 | G84: 9.8 | H84: 9.85 | I84: 11404 | J84: 109827.85 | K84: 2018-10-25 | L84: 53 | M84: INE880B01015
A85: ANTGRAPHIC | B85: BE | C85: 0.45 | D85: 0.55 | E85: 0.45 | F85: 0.5 | G85: 0.5 | H85: 0.5 | I85: 60686 | J85: 27550 | K85: 2018-10-25 | L85: 25 | M85: INE414B01021
A86: APARINDS | B86: EQ | C86: 555 | D86: 566.25 | E86: 547 | F86: 550.4 | G86: 554.6 | H86: 558.4 | I86: 4385 | J86: 2434972.6 | K86: 2018-10-25 | L86: 854 | M86: INE372A01015
A87: APCL | B87: EQ | C87: 114.35 | D87: 117.7 | E87: 109.05 | F87: 111.15 | G87: 114.75 | H87: 110.9 | I87: 3954 | J87: 446194.45 | K87: 2018-10-25 | L87: 167 | M87: INE071F01012
A88: APCOTEXIND | B88: EQ | C88: 524 | D88: 524 | E88: 512.5 | F88: 515 | G88: 516 | H88: 520.5 | I88: 15066 | J88: 7756129.15 | K88: 2018-10-25 | L88: 796 | M88: INE116A01024
A89: APEX | B89: EQ | C89: 337.5 | D89: 346 | E89: 333 | F89: 341.5 | G89: 344.5 | H89: 340.7 | I89: 50103 | J89: 17013612.05 | K89: 2018-10-25 | L89: 1938 | M89: INE346W01013
A90: APLAPOLLO | B90: EQ | C90: 1224.95 | D90: 1235.95 | E90: 1201 | F90: 1229.1 | G90: 1225.1 | H90: 1248.2 | I90: 33054 | J90: 40469283.1 | K90: 2018-10-25 | L90: 8454 | M90: INE702C01019
A91: APLLTD | B91: EQ | C91: 554.5 | D91: 558 | E91: 545.8 | F91: 550.3 | G91: 549 | H91: 559.75 | I91: 30996 | J91: 17083194.1 | K91: 2018-10-25 | L91: 2040 | M91: INE901L01018
A92: APOLLO | B92: EQ | C92: 112 | D92: 118 | E92: 109.45 | F92: 116.2 | G92: 118 | H92: 114.1 | I92: 30479 | J92: 3479085.1 | K92: 2018-10-25 | L92: 1260 | M92: INE713T01010
A93: APOLLOHOSP | B93: EQ | C93: 1110.35 | D93: 1160.6 | E93: 1071.7 | F93: 1109.6 | G93: 1076.75 | H93: 1126.4 | I93: 759796 | J93: 846242551.6 | K93: 2018-10-25 | L93: 43869 | M93: INE437A01024
A94: APOLLOTYRE | B94: EQ | C94: 201.5 | D94: 208.85 | E94: 199.2 | F94: 207.05 | G94: 205.65 | H94: 205.05 | I94: 3043270 | J94: 625223841 | K94: 2018-10-25 | L94: 22624 | M94: INE438A01022
A95: APOLSINHOT | B95: EQ | C95: 615 | D95: 620 | E95: 586.05 | F95: 610.55 | G95: 620 | H95: 615 | I95: 876 | J95: 532928.8 | K95: 2018-10-25 | L95: 61 | M95: INE451F01024
A96: APTECHT | B96: EQ | C96: 153.1 | D96: 159.6 | E96: 151.5 | F96: 153.2 | G96: 152.05 | H96: 158.3 | I96: 214920 | J96: 33313179.15 | K96: 2018-10-25 | L96: 4361 | M96: INE266F01018
A97: ARCHIDPLY | B97: EQ | C97: 43.25 | D97: 43.85 | E97: 41.05 | F97: 41.8 | G97: 42 | H97: 42.45 | I97: 9274 | J97: 389818.15 | K97: 2018-10-25 | L97: 199 | M97: INE877I01016
A98: ARCHIES | B98: EQ | C98: 24.5 | D98: 24.75 | E98: 23.1 | F98: 24.45 | G98: 24.7 | H98: 24.8 | I98: 40469 | J98: 971705 | K98: 2018-10-25 | L98: 318 | M98: INE731A01020
A99: ARCOTECH | B99: BE | C99: 5.5 | D99: 5.5 | E99: 5.5 | F99: 5.5 | G99: 5.5 | H99: 5.75 | I99: 142158 | J99: 781869 | K99: 2018-10-25 | L99: 100 | M99: INE574I01035
A100: ARIES | B100: EQ | C100: 91 | D100: 97 | E100: 90.5 | F100: 95.4 | G100: 96 | H100: 93.35 | I100: 7876 | J100: 738561.9 | K100: 2018-10-25 | L100: 186 | M100: INE298I01015
A101: ARIHANT | B101: EQ | C101: 25.6 | D101: 27.9 | E101: 23.7 | F101: 24.25 | G101: 24.05 | H101: 25.8 | I101: 1533 | J101: 37910.45 | K101: 2018-10-25 | L101: 37 | M101: INE413D01011
A102: ARIHANTSUP | B102: EQ | C102: 51 | D102: 54.8 | E102: 49.25 | F102: 53.5 | G102: 53.85 | H102: 51 | I102: 46964 | J102: 2410669.85 | K102: 2018-10-25 | L102: 3073 | M102: INE643K01018
A103: ARMANFIN | B103: EQ | C103: 295 | D103: 300 | E103: 286 | F103: 290.3 | G103: 291 | H103: 302.8 | I103: 1156 | J103: 341355.05 | K103: 2018-10-25 | L103: 84 | M103: INE109C01017
A104: AROGRANITE | B104: EQ | C104: 53 | D104: 53.75 | E104: 50.5 | F104: 52.4 | G104: 53.25 | H104: 51.75 | I104: 3935 | J104: 203376.9 | K104: 2018-10-25 | L104: 115 | M104: INE210C01013
A105: ARROWGREEN | B105: EQ | C105: 107.55 | D105: 107.55 | E105: 101.5 | F105: 103.15 | G105: 103 | H105: 106.7 | I105: 3959 | J105: 406866.65 | K105: 2018-10-25 | L105: 126 | M105: INE570D01018
A106: ARROWTEX | B106: EQ | C106: 25.8 | D106: 25.8 | E106: 23.9 | F106: 24.1 | G106: 24.8 | H106: 24.9 | I106: 2762 | J106: 66614.7 | K106: 2018-10-25 | L106: 65 | M106: INE933J01015
A107: ARSHIYA | B107: EQ | C107: 34.5 | D107: 34.95 | E107: 33.1 | F107: 34.1 | G107: 34 | H107: 35.2 | I107: 165314 | J107: 5632090.85 | K107: 2018-10-25 | L107: 264 | M107: INE968D01022
A108: ARSSINFRA | B108: EQ | C108: 22 | D108: 22.8 | E108: 21.5 | F108: 22.2 | G108: 22 | H108: 22.95 | I108: 7712 | J108: 168464.65 | K108: 2018-10-25 | L108: 76 | M108: INE267I01010
A109: ARVIND | B109: EQ | C109: 315.2 | D109: 322.75 | E109: 314.65 | F109: 319.25 | G109: 320.55 | H109: 322.1 | I109: 1882028 | J109: 599985229 | K109: 2018-10-25 | L109: 23000 | M109: INE034A01011
A110: ARVSMART | B110: EQ | C110: 104.85 | D110: 108 | E110: 102 | F110: 103.8 | G110: 108 | H110: 104.85 | I110: 8836 | J110: 913997.35 | K110: 2018-10-25 | L110: 253 | M110: INE034S01021
A111: ASAHIINDIA | B111: EQ | C111: 288.2 | D111: 290 | E111: 285.5 | F111: 286.7 | G111: 286.55 | H111: 290.6 | I111: 9458 | J111: 2714264.15 | K111: 2018-10-25 | L111: 331 | M111: INE439A01020
A112: ASAHISONG | B112: EQ | C112: 244.3 | D112: 244.4 | E112: 237.05 | F112: 243.9 | G112: 244 | H112: 244.4 | I112: 370 | J112: 89602.9 | K112: 2018-10-25 | L112: 51 | M112: INE228I01012
A113: ASAL | B113: EQ | C113: 41.3 | D113: 42.75 | E113: 40.2 | F113: 41.9 | G113: 42.75 | H113: 42.3 | I113: 3262 | J113: 135298.4 | K113: 2018-10-25 | L113: 179 | M113: INE900C01027
A114: ASHAPURMIN | B114: EQ | C114: 27 | D114: 28 | E114: 26.7 | F114: 26.9 | G114: 26.85 | H114: 27.55 | I114: 56750 | J114: 1545169.75 | K114: 2018-10-25 | L114: 383 | M114: INE348A01023
A115: ASHIANA | B115: EQ | C115: 126.2 | D115: 127.95 | E115: 122.8 | F115: 126.75 | G115: 127 | H115: 126.55 | I115: 112000 | J115: 14019410.5 | K115: 2018-10-25 | L115: 707 | M115: INE365D01021
A116: ASHIMASYN | B116: EQ | C116: 14.2 | D116: 14.5 | E116: 13.8 | F116: 14.4 | G116: 14.5 | H116: 14.25 | I116: 30283 | J116: 429933.4 | K116: 2018-10-25 | L116: 109 | M116: INE440A01010
A117: ASHOKA | B117: EQ | C117: 110 | D117: 113.45 | E117: 105.35 | F117: 112.6 | G117: 113 | H117: 110.75 | I117: 617951 | J117: 66886257.85 | K117: 2018-10-25 | L117: 4798 | M117: INE442H01029
A118: ASHOKLEY | B118: EQ | C118: 113.6 | D118: 115.4 | E118: 111.45 | F118: 112.85 | G118: 113.2 | H118: 116.8 | I118: 16808400 | J118: 1903021974 | K118: 2018-10-25 | L118: 60462 | M118: INE208A01029
A119: ASIANHOTNR | B119: EQ | C119: 155 | D119: 163.95 | E119: 147 | F119: 150.6 | G119: 150.15 | H119: 150.9 | I119: 1359 | J119: 207812.9 | K119: 2018-10-25 | L119: 42 | M119: INE363A01022
A120: ASIANPAINT | B120: EQ | C120: 1180.5 | D120: 1208.95 | E120: 1175 | F120: 1200.05 | G120: 1199 | H120: 1186.9 | I120: 1995349 | J120: 2386460338 | K120: 2018-10-25 | L120: 80449 | M120: INE021A01026
A121: ASIANTILES | B121: EQ | C121: 167 | D121: 175 | E121: 161.3 | F121: 171.9 | G121: 172.4 | H121: 170.05 | I121: 54278 | J121: 9146506.5 | K121: 2018-10-25 | L121: 1359 | M121: INE022I01019
A122: ASPINWALL | B122: EQ | C122: 184 | D122: 185 | E122: 177 | F122: 180 | G122: 180 | H122: 184 | I122: 3465 | J122: 625893.35 | K122: 2018-10-25 | L122: 79 | M122: INE991I01015
A123: ASTEC | B123: EQ | C123: 525 | D123: 535 | E123: 513.35 | F123: 530.45 | G123: 532 | H123: 524.7 | I123: 7484 | J123: 3952243.9 | K123: 2018-10-25 | L123: 360 | M123: INE563J01010
A124: ASTERDM | B124: EQ | C124: 160 | D124: 160 | E124: 155.2 | F124: 157.5 | G124: 156.4 | H124: 159.35 | I124: 18806 | J124: 2957168.1 | K124: 2018-10-25 | L124: 2203 | M124: INE914M01019
A125: ASTRAL | B125: EQ | C125: 864.05 | D125: 894.75 | E125: 864.05 | F125: 880 | G125: 879.9 | H125: 878.95 | I125: 146316 | J125: 128710121.9 | K125: 2018-10-25 | L125: 10177 | M125: INE006I01046
A126: ASTRAMICRO | B126: EQ | C126: 78 | D126: 78.75 | E126: 77.2 | F126: 78.15 | G126: 78 | H126: 79 | I126: 66207 | J126: 5164297.2 | K126: 2018-10-25 | L126: 631 | M126: INE386C01029
A127: ASTRAZEN | B127: EQ | C127: 1650 | D127: 1700 | E127: 1650 | F127: 1688.7 | G127: 1685 | H127: 1663.3 | I127: 16411 | J127: 27591423.45 | K127: 2018-10-25 | L127: 1461 | M127: INE203A01020
A128: ASTRON | B128: EQ | C128: 111.4 | D128: 113.5 | E128: 109.35 | F128: 111.55 | G128: 111 | H128: 112.15 | I128: 84989 | J128: 9504960.4 | K128: 2018-10-25 | L128: 1882 | M128: INE646X01014
A129: ATFL | B129: EQ | C129: 510 | D129: 516.95 | E129: 503.7 | F129: 507.65 | G129: 509 | H129: 512.45 | I129: 4667 | J129: 2373865.95 | K129: 2018-10-25 | L129: 303 | M129: INE209A01019
A130: ATLANTA | B130: EQ | C130: 28.4 | D130: 29.1 | E130: 27.2 | F130: 29.1 | G130: 29.1 | H130: 27.75 | I130: 176808 | J130: 5090652.5 | K130: 2018-10-25 | L130: 955 | M130: INE285H01022
A131: ATNINTER | B131: BE | C131: 0.1 | D131: 0.15 | E131: 0.05 | F131: 0.15 | G131: 0.15 | H131: 0.1 | I131: 43930 | J131: 5082.6 | K131: 2018-10-25 | L131: 38 | M131: INE803A01027
A132: ATUL | B132: EQ | C132: 3211 | D132: 3227.7 | E132: 3130.05 | F132: 3201.35 | G132: 3200 | H132: 3197.95 | I132: 16037 | J132: 51271702.65 | K132: 2018-10-25 | L132: 2754 | M132: INE100A01010
A133: ATULAUTO | B133: EQ | C133: 328.1 | D133: 331.25 | E133: 321.4 | F133: 329.55 | G133: 331.25 | H133: 329.55 | I133: 4111 | J133: 1346866.9 | K133: 2018-10-25 | L133: 397 | M133: INE951D01028
A134: AUBANK | B134: EQ | C134: 514 | D134: 535 | E134: 512.35 | F134: 531.15 | G134: 528.2 | H134: 525.85 | I134: 193086 | J134: 101251917.7 | K134: 2018-10-25 | L134: 16581 | M134: INE949L01017
A135: AURIONPRO | B135: EQ | C135: 145.8 | D135: 145.8 | E135: 140 | F135: 141.95 | G135: 143.75 | H135: 144.45 | I135: 15617 | J135: 2214177.95 | K135: 2018-10-25 | L135: 230 | M135: INE132H01018
A136: AUROPHARMA | B136: EQ | C136: 729 | D136: 742 | E136: 717.7 | F136: 720.95 | G136: 723.35 | H136: 734.45 | I136: 4089242 | J136: 2977300073 | K136: 2018-10-25 | L136: 80344 | M136: INE406A01037
A137: AUSOMENT | B137: EQ | C137: 52.05 | D137: 53.1 | E137: 48 | F137: 50.3 | G137: 50.95 | H137: 52.35 | I137: 2633 | J137: 134223.4 | K137: 2018-10-25 | L137: 154 | M137: INE218C01016
A138: AUTOAXLES | B138: EQ | C138: 1000 | D138: 1054 | E138: 990 | F138: 1039.1 | G138: 1038 | H138: 1018.25 | I138: 13371 | J138: 13773306.55 | K138: 2018-10-25 | L138: 1301 | M138: INE449A01011
A139: AUTOIND | B139: EQ | C139: 57.65 | D139: 58.35 | E139: 57.2 | F139: 57.9 | G139: 58.35 | H139: 57.7 | I139: 10820 | J139: 625019.05 | K139: 2018-10-25 | L139: 203 | M139: INE718H01014
A140: AUTOLITIND | B140: EQ | C140: 39.9 | D140: 42 | E140: 39 | F140: 39.8 | G140: 39.4 | H140: 40.35 | I140: 3401 | J140: 135417.35 | K140: 2018-10-25 | L140: 123 | M140: INE448A01013
A141: AVADHSUGAR | B141: EQ | C141: 465 | D141: 488 | E141: 462 | F141: 472.15 | G141: 474.65 | H141: 469.9 | I141: 43586 | J141: 20755201.3 | K141: 2018-10-25 | L141: 2009 | M141: INE349W01017
A142: AVANTIFEED | B142: EQ | C142: 374.7 | D142: 383 | E142: 371 | F142: 379.7 | G142: 382 | H142: 378.7 | I142: 190569 | J142: 72034319.9 | K142: 2018-10-25 | L142: 7926 | M142: INE871C01038
A143: AVTNPL | B143: EQ | C143: 26.05 | D143: 26.4 | E143: 25.75 | F143: 26.25 | G143: 26.4 | H143: 26.25 | I143: 20538 | J143: 536182.65 | K143: 2018-10-25 | L143: 161 | M143: INE488D01021
A144: AXISBANK | B144: EQ | C144: 558 | D144: 564.7 | E144: 552.45 | F144: 561.05 | G144: 561.2 | H144: 564.1 | I144: 13041860 | J144: 7285406738 | K144: 2018-10-25 | L144: 148250 | M144: INE238A01034
A145: AXISCADES | B145: EQ | C145: 63.8 | D145: 68 | E145: 63.3 | F145: 66.4 | G145: 66.6 | H145: 64.6 | I145: 41726 | J145: 2733005.8 | K145: 2018-10-25 | L145: 962 | M145: INE555B01013
A146: AXISGOLD | B146: EQ | C146: 2810 | D146: 2848.8 | E146: 2795 | F146: 2795 | G146: 2795 | H146: 2810 | I146: 217 | J146: 609962.1 | K146: 2018-10-25 | L146: 64 | M146: INF846K01347
A147: AXISNIFTY | B147: EQ | C147: 1035.28 | D147: 1035.83 | E147: 1028 | F147: 1035.83 | G147: 1035.83 | H147: 1034.1 | I147: 121 | J147: 124684.38 | K147: 2018-10-25 | L147: 11 | M147: INF846K01ZL0
A148: AYMSYNTEX | B148: EQ | C148: 40.5 | D148: 42.65 | E148: 38.8 | F148: 40.4 | G148: 40.25 | H148: 40 | I148: 11963 | J148: 483723.25 | K148: 2018-10-25 | L148: 174 | M148: INE193B01039
A149: BAFNAPHARM | B149: EQ | C149: 13.1 | D149: 14.75 | E149: 13.1 | F149: 14.6 | G149: 14.75 | H149: 13.75 | I149: 14408 | J149: 206253.85 | K149: 2018-10-25 | L149: 119 | M149: INE878I01014
A150: BAGFILMS | B150: EQ | C150: 4.7 | D150: 4.8 | E150: 4.5 | F150: 4.6 | G150: 4.5 | H150: 4.7 | I150: 81432 | J150: 376989.45 | K150: 2018-10-25 | L150: 123 | M150: INE116D01028
A151: BAJAJ-AUTO | B151: EQ | C151: 2455 | D151: 2498.7 | E151: 2420 | F151: 2477.55 | G151: 2477.55 | H151: 2475.15 | I151: 913688 | J151: 2256532805 | K151: 2018-10-25 | L151: 76195 | M151: INE917I01010
A152: BAJAJCORP | B152: EQ | C152: 355.35 | D152: 360 | E152: 353.4 | F152: 359.45 | G152: 359.85 | H152: 354.35 | I152: 27991 | J152: 10025014.75 | K152: 2018-10-25 | L152: 798 | M152: INE933K01021
A153: BAJAJELEC | B153: EQ | C153: 491 | D153: 493 | E153: 478.85 | F153: 482.5 | G153: 485 | H153: 495.1 | I153: 402690 | J153: 194733826.1 | K153: 2018-10-25 | L153: 3701 | M153: INE193E01025
A154: BAJAJFINSV | B154: EQ | C154: 5299 | D154: 5462.05 | E154: 5257.25 | F154: 5367.65 | G154: 5387 | H154: 5391.45 | I154: 345421 | J154: 1850813799 | K154: 2018-10-25 | L154: 49903 | M154: INE918I01018
A155: BAJAJHIND | B155: EQ | C155: 9.7 | D155: 10 | E155: 9.65 | F155: 9.85 | G155: 9.9 | H155: 9.85 | I155: 3842224 | J155: 37864787.3 | K155: 2018-10-25 | L155: 5408 | M155: INE306A01021
A156: BAJAJHLDNG | B156: EQ | C156: 2620 | D156: 2661 | E156: 2550.55 | F156: 2651.4 | G156: 2658.9 | H156: 2635.55 | I156: 47285 | J156: 124945372.1 | K156: 2018-10-25 | L156: 1104 | M156: INE118A01012
A157: BAJFINANCE | B157: EQ | C157: 2285 | D157: 2348 | E157: 2256.8 | F157: 2335 | G157: 2334.3 | H157: 2311.8 | I157: 5201159 | J157: 1.198773303e+10 | K157: 2018-10-25 | L157: 192063 | M157: INE296A01024
A158: BALAJITELE | B158: EQ | C158: 98.6 | D158: 99.3 | E158: 95.25 | F158: 97.1 | G158: 97.5 | H158: 98.9 | I158: 17711 | J158: 1718190.15 | K158: 2018-10-25 | L158: 423 | M158: INE794B01026
A159: BALAMINES | B159: EQ | C159: 441 | D159: 441 | E159: 427.85 | F159: 436.4 | G159: 436 | H159: 447.2 | I159: 8869 | J159: 3865313.15 | K159: 2018-10-25 | L159: 605 | M159: INE050E01027
A160: BALKRISHNA | B160: EQ | C160: 46.8 | D160: 46.8 | E160: 45.25 | F160: 46.45 | G160: 46.8 | H160: 47.1 | I160: 5224 | J160: 242986.15 | K160: 2018-10-25 | L160: 85 | M160: INE875R01011
A161: BALKRISIND | B161: EQ | C161: 1008.5 | D161: 1047 | E161: 1002.15 | F161: 1022 | G161: 1023.8 | H161: 1017.85 | I161: 314395 | J161: 322123819.9 | K161: 2018-10-25 | L161: 21185 | M161: INE787D01026
A162: BALLARPUR | B162: EQ | C162: 5.95 | D162: 6 | E162: 5.8 | F162: 5.9 | G162: 5.95 | H162: 6 | I162: 348612 | J162: 2053446.85 | K162: 2018-10-25 | L162: 362 | M162: INE294A01037
A163: BALMLAWRIE | B163: EQ | C163: 186 | D163: 189.7 | E163: 185.3 | F163: 187.15 | G163: 187.05 | H163: 187.25 | I163: 18805 | J163: 3520488.2 | K163: 2018-10-25 | L163: 1294 | M163: INE164A01016
A164: BALPHARMA | B164: EQ | C164: 78.65 | D164: 79.7 | E164: 75.05 | F164: 76.7 | G164: 76.4 | H164: 78.7 | I164: 12499 | J164: 960781.1 | K164: 2018-10-25 | L164: 505 | M164: INE083D01012
A165: BALRAMCHIN | B165: EQ | C165: 95.8 | D165: 99.45 | E165: 94.8 | F165: 97.65 | G165: 97.7 | H165: 96.45 | I165: 5328210 | J165: 519834433.1 | K165: 2018-10-25 | L165: 30944 | M165: INE119A01028
A166: BANARBEADS | B166: EQ | C166: 49 | D166: 49 | E166: 49 | F166: 49 | G166: 49 | H166: 49.5 | I166: 240 | J166: 11760 | K166: 2018-10-25 | L166: 7 | M166: INE655B01011
A167: BANARISUG | B167: EQ | C167: 1715.05 | D167: 1776.8 | E167: 1715.05 | F167: 1758.9 | G167: 1735.1 | H167: 1755.2 | I167: 970 | J167: 1707287.6 | K167: 2018-10-25 | L167: 147 | M167: INE459A01010
A168: BANCOINDIA | B168: EQ | C168: 183.1 | D168: 188.3 | E168: 182.2 | F168: 182.95 | G168: 182.4 | H168: 184.2 | I168: 26955 | J168: 4961773.8 | K168: 2018-10-25 | L168: 1469 | M168: INE213C01025
A169: BANDHANBNK | B169: EQ | C169: 386.2 | D169: 389 | E169: 377.2 | F169: 380.05 | G169: 378.9 | H169: 392.8 | I169: 2489963 | J169: 949505228.5 | K169: 2018-10-25 | L169: 20324 | M169: INE545U01014
A170: BANG | B170: EQ | C170: 50.7 | D170: 51 | E170: 49.5 | F170: 50.3 | G170: 49.65 | H170: 50.95 | I170: 7383 | J170: 370785.9 | K170: 2018-10-25 | L170: 77 | M170: INE863I01016
A171: BANKBARODA | B171: EQ | C171: 101 | D171: 102.8 | E171: 97.9 | F171: 98.45 | G171: 98.7 | H171: 102.65 | I171: 17653402 | J171: 1774493068 | K171: 2018-10-25 | L171: 50096 | M171: INE028A01039
A172: BANKBEES | B172: EQ | C172: 2531.96 | D172: 2550 | E172: 2521 | F172: 2529.72 | G172: 2534.5 | H172: 2550.29 | I172: 7007 | J172: 17746822.13 | K172: 2018-10-25 | L172: 232 | M172: INF732E01078
A173: BANKINDIA | B173: EQ | C173: 75.05 | D173: 76.6 | E173: 73.2 | F173: 74.9 | G173: 75.2 | H173: 75.95 | I173: 6155722 | J173: 460836692.9 | K173: 2018-10-25 | L173: 19948 | M173: INE084A01016
A174: BANSWRAS | B174: EQ | C174: 67.2 | D174: 69.85 | E174: 67 | F174: 69.45 | G174: 69.3 | H174: 67.05 | I174: 5114 | J174: 348513.55 | K174: 2018-10-25 | L174: 66 | M174: INE629D01012
A175: BARTRONICS | B175: EQ | C175: 6.8 | D175: 8.4 | E175: 6.8 | F175: 7.55 | G175: 7.45 | H175: 7 | I175: 66917 | J175: 517865.05 | K175: 2018-10-25 | L175: 203 | M175: INE855F01034
A176: BASF | B176: EQ | C176: 1666.95 | D176: 1669.8 | E176: 1629.1 | F176: 1635.3 | G176: 1637 | H176: 1669.35 | I176: 2269 | J176: 3727762.4 | K176: 2018-10-25 | L176: 459 | M176: INE373A01013
A177: BASML | B177: EQ | C177: 206.35 | D177: 206.35 | E177: 196.95 | F177: 199 | G177: 199 | H177: 192.85 | I177: 299 | J177: 61136.2 | K177: 2018-10-25 | L177: 18 | M177: INE186H01014
A178: BATAINDIA | B178: EQ | C178: 863.5 | D178: 931.95 | E178: 863.5 | F178: 923.15 | G178: 928 | H178: 880.5 | I178: 2683269 | J178: 2433202465 | K178: 2018-10-25 | L178: 50847 | M178: INE176A01028
A179: BAYERCROP | B179: EQ | C179: 3800 | D179: 3819 | E179: 3635 | F179: 3762.95 | G179: 3755 | H179: 3827.85 | I179: 10526 | J179: 39538183.5 | K179: 2018-10-25 | L179: 3427 | M179: INE462A01022
A180: BBL | B180: EQ | C180: 1114.4 | D180: 1151.15 | E180: 1101.05 | F180: 1117.25 | G180: 1120.9 | H180: 1134.2 | I180: 8941 | J180: 10095597.85 | K180: 2018-10-25 | L180: 1060 | M180: INE464A01028
A181: BBTC | B181: EQ | C181: 1184 | D181: 1210 | E181: 1160 | F181: 1187.35 | G181: 1194.5 | H181: 1192.15 | I181: 65512 | J181: 77805735.65 | K181: 2018-10-25 | L181: 3932 | M181: INE050A01025
A182: BCG | B182: EQ | C182: 3.6 | D182: 3.65 | E182: 3.4 | F182: 3.4 | G182: 3.45 | H182: 3.6 | I182: 200604 | J182: 707023.75 | K182: 2018-10-25 | L182: 213 | M182: INE425B01027
A183: BDL | B183: EQ | C183: 276.4 | D183: 287.8 | E183: 273 | F183: 283.3 | G183: 287.8 | H183: 279.55 | I183: 14008 | J183: 3929839.35 | K183: 2018-10-25 | L183: 908 | M183: INE171Z01018
A184: BEARDSELL | B184: EQ | C184: 25.5 | D184: 25.5 | E184: 24 | F184: 24.8 | G184: 24.1 | H184: 25.2 | I184: 1478 | J184: 36034.55 | K184: 2018-10-25 | L184: 26 | M184: INE520H01022
A185: BEDMUTHA | B185: BE | C185: 19.7 | D185: 20.9 | E185: 19.5 | F185: 19.75 | G185: 19.5 | H185: 20.2 | I185: 2300 | J185: 45747.5 | K185: 2018-10-25 | L185: 11 | M185: INE844K01012
A186: BEL | B186: EQ | C186: 83.8 | D186: 85.2 | E186: 82 | F186: 83.35 | G186: 82.85 | H186: 84.7 | I186: 9113303 | J186: 758933971.1 | K186: 2018-10-25 | L186: 28797 | M186: INE263A01024
A187: BEML | B187: EQ | C187: 556 | D187: 562.5 | E187: 540.5 | F187: 543.25 | G187: 542 | H187: 566.3 | I187: 878527 | J187: 480658765.6 | K187: 2018-10-25 | L187: 32225 | M187: INE258A01016
A188: BEPL | B188: EQ | C188: 92 | D188: 94 | E188: 90.4 | F188: 91.45 | G188: 91.3 | H188: 93.65 | I188: 482782 | J188: 44349226.6 | K188: 2018-10-25 | L188: 4007 | M188: INE922A01025
A189: BERGEPAINT | B189: EQ | C189: 276.1 | D189: 296 | E189: 274 | F189: 290.95 | G189: 290.8 | H189: 277.3 | I189: 1779571 | J189: 512377295.6 | K189: 2018-10-25 | L189: 28991 | M189: INE463A01038
A190: BFINVEST | B190: EQ | C190: 214.9 | D190: 218.1 | E190: 209.25 | F190: 214.4 | G190: 215.1 | H190: 216 | I190: 64828 | J190: 13765910.85 | K190: 2018-10-25 | L190: 2468 | M190: INE878K01010
A191: BFUTILITIE | B191: EQ | C191: 198.95 | D191: 199.95 | E191: 194.05 | F191: 198.35 | G191: 199 | H191: 201.05 | I191: 107851 | J191: 21291867.2 | K191: 2018-10-25 | L191: 3514 | M191: INE243D01012
A192: BGLOBAL | B192: BE | C192: 2.45 | D192: 2.55 | E192: 2.45 | F192: 2.5 | G192: 2.5 | H192: 2.45 | I192: 9999 | J192: 24975.25 | K192: 2018-10-25 | L192: 39 | M192: INE224M01013
A193: BGRENERGY | B193: EQ | C193: 54 | D193: 54 | E193: 52.2 | F193: 52.7 | G193: 52.5 | H193: 54 | I193: 65979 | J193: 3484442.9 | K193: 2018-10-25 | L193: 1139 | M193: INE661I01014
A194: BHAGERIA | B194: EQ | C194: 302 | D194: 307.9 | E194: 294 | F194: 296.35 | G194: 296.2 | H194: 307.9 | I194: 37618 | J194: 11261126.25 | K194: 2018-10-25 | L194: 1145 | M194: INE354C01027
A195: BHAGYANGR | B195: EQ | C195: 29.8 | D195: 30.75 | E195: 29.65 | F195: 30.1 | G195: 30.05 | H195: 31.2 | I195: 5928 | J195: 178629.9 | K195: 2018-10-25 | L195: 96 | M195: INE458B01036
A196: BHAGYAPROP | B196: EQ | C196: 21 | D196: 23.9 | E196: 20.15 | F196: 22.15 | G196: 22.15 | H196: 21.35 | I196: 2768 | J196: 63877.05 | K196: 2018-10-25 | L196: 19 | M196: INE363W01018
A197: BHANDARI | B197: EQ | C197: 1.95 | D197: 2.1 | E197: 1.95 | F197: 2 | G197: 2.05 | H197: 1.95 | I197: 1147817 | J197: 2336563.8 | K197: 2018-10-25 | L197: 563 | M197: INE474E01029
A198: BHARATFIN | B198: EQ | C198: 915 | D198: 926.55 | E198: 886 | F198: 904.6 | G198: 909.25 | H198: 924 | I198: 2904049 | J198: 2639303203 | K198: 2018-10-25 | L198: 55313 | M198: INE180K01011
A199: BHARATFORG | B199: EQ | C199: 550 | D199: 553.75 | E199: 541.05 | F199: 546.7 | G199: 550 | H199: 556.75 | I199: 1133717 | J199: 620705331 | K199: 2018-10-25 | L199: 19941 | M199: INE465A01025
A200: BHARATGEAR | B200: EQ | C200: 160.05 | D200: 166 | E200: 157.55 | F200: 163.35 | G200: 162.5 | H200: 161.4 | I200: 13527 | J200: 2178956.9 | K200: 2018-10-25 | L200: 595 | M200: INE561C01019
... 1438 more rows
